{"text_format":"1","workbook":"xlsx","n_sheets":4,"sheets":["FORMULARIO","APOYO","AMBITO_GEOGRAFICO","CATASTRO"],"not_rendered":{"charts":0,"images":1,"macros":1,"external_links":0,"defined_names":4,"comments":0,"pivot_tables":0},"unopened":[],"bounds":{"document_bytes":16777216,"sheet_cells":100000,"rows_first":2000,"rows_last":500,"rows_between":2000,"halvings":0,"cell_chars":16384,"cell_head_chars":4096},"cells_cut":0,"cells_raw":0,"read":"whole","date_system":"1900"}

{"sheet":"FORMULARIO","index":0,"n_rows":9,"n_cols":25,"rows_kept":9,"cut":false,"hidden":false,"merged":[]}
[]
[null,null,null,null,null,null,"FORMULARIO DE PERSONAS ESTRATÉGICAS"]
[null,null,"Datos de la organización"]
[null,null,"Ruc:"]
[null,null,"Razón Social:",{"$f":"IF(D4<>\"\", IFERROR(VLOOKUP(D4,CATASTRO!A:B,2,0),\"RUC NO EXISTE\"),\"\")","v":""}]
[null,null,"Fecha de corte:"]
[]
[null,null,"Función estratégica",null,null,null,null,"Datos de identificación",null,null,"               Periodo del cargo",null,null,null,null,null,"Datos de domicilio legal",null,null,null,null,null,"          Datos de contacto"]
["CARGO","COD_CARGO","TIPO DE DESIGNACIÓN","SEGUNDO CARGO","COD_S_CARGO","CÉDULA/RUC","PRIMER APELLIDO/RAZÓN SOCIAL","SEGUNDO APELLIDO","PRIMER NOMBRE/RAZÓN SOCIAL","SEGUNDO NOMBRE","FECHA INICIO","FECHA FIN","PROVINCIA",null,"CANTÓN",null,"PARROQUIA",null,"CALLE PRINCIPAL","NÚMERO DE DOMICILIO","CALLE SECUNDARIA","TELÉFONO DE DOMICILIO","TELÉFONO CELULAR","CORREO ELECTRÓNICO PERSONAL","Nivel de instrucción"]

{"sheet":"APOYO","index":1,"n_rows":67,"n_cols":6,"rows_kept":67,"cut":false,"hidden":true,"merged":[]}
["CARGOS","COD_CARGOS","DESGINACION","S_CARGO","COD_S_CARGO","INSTRUCCION"]
["REPRESENTANTE LEGAL","01","TITULAR","N/A","01","PRIMARIA"]
["PRESIDENTE DEL CONSEJO DE ADMINISTRACIÓN","02","SUPLENTE","JEFE DE PLANIFICACIÓN","02","SECUNDARIA"]
["PRIMER VOCAL DEL CONSEJO DE ADMINISTRACIÓN","03","N/A","ANALISTA/ASISTENTE DE PLANIFICACIÓN","03","TÉCNICO"]
["SEGUNDO VOCAL DEL CONSEJO DE ADMINISTRACIÓN","04",null,"JEFE DE PROCESOS","04","SUPERIOR"]
["TERCER VOCAL DEL CONSEJO DE ADMINISTRACIÓN","05",null,"ANALISTA/ASISTENTE DE PROCESOS","05","ESPECIALIZACIÓN O MAESTRIA"]
["CUARTO VOCAL DEL CONSEJO DE ADMINISTRACIÓN","06",null,"JEFE DE MARKETING","06","DOCTORADO"]
["QUINTO VOCAL DEL CONSEJO DE ADMINISTRACIÓN","07",null,"ANALISTA/ASISTENTE DE MARKETING","07"]
["SEXTO VOCAL DEL CONSEJO DE ADMINISTRACIÓN","08",null,"JEFE DE RIESGOS","08"]
["SÉPTIMO VOCAL DEL CONSEJO DE ADMINISTRACIÓN","09",null,"ASISTENTE/ ANALISTA DE RIESGOS","09"]
["OCTAVO VOCAL DEL CONSEJO DE ADMINISTRACIÓN","10",null,"JEFE DE SEGURIDAD DE INFORMACIÓN","10"]
["NOVENO VOCAL DEL CONSEJO DE ADMINISTRACIÓN","11",null,"ASISTENTE/ ANALISTA DE SEGURIDAD DE INFORMACIÓN","11"]
["PRESIDENTE DEL CONSEJO DE VIGILANCIA","12",null,"JEFE DE SEGURIDAD FÍSICA","12"]
["PRIMER VOCAL DEL CONSEJO DE VIGILANCIA","13",null,"ASISTENTE/ ANALISTA DE SEGURIDAD FÍSICA","13"]
["SEGUNDO VOCAL DEL CONSEJO DE VIGILANCIA","14",null,"JEFE DE CRÉDITO","14"]
["TERCER VOCAL DEL CONSEJO DE VIGILANCIA","15",null,"ASISTENTE/ ANALISTA DE CRÉDITO","15"]
["CUARTO VOCAL DEL CONSEJO DE VIGILANCIA","16",null,"JEFE DE OPERACIONES","16"]
["QUINTO VOCAL DEL CONSEJO DE VIGILANCIA","17",null,"ASISTENTE/ ANALISTA DE OPERACIONES","17"]
["SECRETARIO","18",null,"JEFE DE NEGOCIOS","18"]
["OFICIAL DE CUMPLIMIENTO","19",null,"ASISTENTE/ ANALISTA DE NEGOCIOS","19"]
["RESPONSABLE DE CUMPLIMIENTO","20",null,"JEFE DE CAPTACIONES","20"]
["CONTADOR","21",null,"ASISTENTE/ ANALISTA DE CAPTACIONES","21"]
["AUDITOR INTERNO","22",null,"CAJEROS","22"]
["AUDITOR EXTERNO","23",null,"JEFE ADMINISTRATIVO","23"]
["GERENTE SUBROGANTE","24",null,"ASISTENTE/ ANALISTA DE ADMINISTRATIVO","24"]
[null,null,null,"JEFE DE TESORERÍA – INVERSIONES","25"]
[null,null,null,"ASISTENTE/ ANALISTA DE TESORERÍA - INVERSIONES","26"]
[null,null,null,"JEFE DE SERVICIO AL CLIENTE","27"]
[null,null,null,"ASISTENTE/ ANALISTA DE SERVICIO AL CLIENTE","28"]
[null,null,null,"JEFE DE COBRANZAS","29"]
[null,null,null,"ASISTENTE/ ANALISTA DE COBRANZAS","30"]
[null,null,null,"JEFE DE TALENTO HUMANO","31"]
[null,null,null,"ASISTENTE/ ANALISTA DE TALENTO HUMANO","32"]
[null,null,null,"JEFE FINANCIERO","33"]
[null,null,null,"ASISTENTE / ANALISTA FINANCIERO","34"]
[null,null,null,"JEFE DE CONTABILIDAD","35"]
[null,null,null,"ASISTENTE / ANALISTA CONTABLE","36"]
[null,null,null,"JEFE DE AUDITORIA INTERNA","37"]
[null,null,null,"ASISTENTE / ANALISTA AUDITORIA INTERNA","38"]
[null,null,null,"JEFE DE TECNOLOGÍA DE INFORMACIÓN","39"]
[null,null,null,"ASISTENTE / ANALISTA DE TECNOLOGÍA DE INFORMACIÓN","40"]
[null,null,null,"JEFE DE SERVICIOS GENERALES","41"]
[null,null,null,"CONSERJE","42"]
[null,null,null,"JEFE DE TRANSPARENCIA DE INFORMACIÓN","43"]
[null,null,null,"ASISTENTE / ANALISTA DE TRANSPARENCIA DE INFORMACIÓN","44"]
[null,null,null,"JEFE/ ASESOR LEGAL","45"]
[null,null,null,"ASISTENTE / ANALISTA DE LEGAL","46"]
[null,null,null,"JEFE DE ADQUISICIONES Y LOGÍSTICA","47"]
[null,null,null,"ASISTENTE / ANALISTA DE ADQUISICIONES Y LOGÍSTICA","48"]
[null,null,null,"JEFE DE AGENCIA","49"]
[null,null,null,"ASISTENTE / ANALISTA DE AGENCIA","50"]
[null,null,null,"ASISTENTE/AUXILIAR DE GERENTE","51"]
[null,null,null,"GUARDIA","52"]
[null,null,null,"GERENTE","53"]
[null,null,null,"REPRESENTANTE LEGAL","54"]
[null,null,null,"PRESIDENTE DEL CONSEJO DE ADMINISTRACIÓN","55"]
[null,null,null,"VOCAL PRINCIPAL DEL CONSEJO DE ADMINISTRACIÓN","56"]
[null,null,null,"PRESIDENTE DEL CONSEJO DE VIGILANCIA","57"]
[null,null,null,"VOCAL PRINCIPAL DEL CONSEJO DE VIGILANCIA","58"]
[null,null,null,"CONTADOR","59"]
[null,null,null,"SECRETARIO","60"]
[null,null,null,"OFICIAL DE CUMPLIMIENTO","61"]
[null,null,null,"AUDITOR INTERNO","62"]
[null,null,null,"AUDITOR EXTERNO","63"]
[null,null,null,"ADMINISTRADOR TEMPORAL","64"]
[null,null,null,"LIQUIDADOR","65"]
[null,null,null,"RESPONSABLE DE CUMPLIMIENTO","66"]

{"sheet":"AMBITO_GEOGRAFICO","index":2,"n_rows":1295,"n_cols":10,"rows_kept":1295,"cut":false,"hidden":true,"merged":[]}
["NOM_NOMBRE","COD_DPA",null,null,"NOM_NOMBRE","COD_DPA",null,null,"NOM_NOMBRE","COD_DPA"]
["AZUAY","01",null,{"$f":"LEFT(F2,2)","v":"13"},"24 DE MAYO","1316",null,{"$f":"LEFT(J2,4)","v":"2101"},"10 DE AGOSTO","210160"]
["BOLIVAR","02",null,"90","ABDON CALDERON","9007",null,"1207","10 DE NOVIEMBRE","120701"]
["CAÑAR","03",null,"22","AGUARICO","2202",null,"0501","11 DE NOVIEMBRE (ILINCHISI)","050157"]
["CARCHI","04",null,"06","ALAUSI","0602",null,"1210","11 DE OCTUBRE","121003"]
["CHIMBORAZO","06",null,"09","ALFREDO BAQUERIZO MORENO (JUJAN)","0902",null,"1114","12 DE DICIEMBRE (CAB. EN ACHIOTES)","111452"]
["COTOPAXI","05",null,"18","AMBATO","1801",null,"1301","12 DE MARZO","130102"]
["EL ORO","07",null,"10","ANTONIO ANTE","1002",null,"1404","16 DE AGOSTO","140455"]
["ESMERALDAS","08",null,"16","ARAJUNO","1604",null,"1301","18 DE OCTUBRE","130108"]
["GALAPAGOS","20",null,"15","ARCHIDONA","1503",null,"1205","24 DE MAYO","120508"]
["GUAYAS","09",null,"07","ARENILLAS","0702",null,"1106","27 DE ABRIL (CAB. EN LA NARANJA)","110654"]
["IMBABURA","10",null,"08","ATACAMES","0806",null,"0403","27 DE SEPTIEMBRE","040302"]
["LOJA","11",null,"07","ATAHUALPA","0703",null,"1904","28 DE MAYO (SAN JOSE DE YACUAMBI)","190450"]
["LOS RIOS","12",null,"03","AZOGUES","0301",null,"1304","4 DE DICIEMBRE","130402"]
["MANABI","13",null,"12","BABA","1202",null,"0801","5 DE AGOSTO","080102"]
["MORONA SANTIAGO","14",null,"12","BABAHOYO","1201",null,"0805","5 DE JUNIO (CAB. EN UIMBI)","080555"]
["NAPO","15",null,"09","BALAO","0903",null,"1003","6 DE JULIO DE CUELLAJE (CAB. EN CUELLAJE)","100357"]
["ORELLANA","22",null,"07","BALSAS","0704",null,"1210","7 DE AGOSTO","121002"]
["PASTAZA","16",null,"09","BALZAR","0904",null,"0713","ABAÑIN","071351"]
["PICHINCHA","17",null,"18","BAÑOS DE AGUA SANTA","1802",null,"9007","ABDON CALDERON","900751"]
["SANTA ELENA","24",null,"03","BIBLIAN","0302",null,"0108","ABDON CALDERON (LA UNION)","010851"]
["SANTO DOMINGO DE LOS TSACHILAS","23",null,"04","BOLIVAR","0402",null,"1301","ABDON CALDERON (SAN FRANCISCO)","130151"]
["SUCUMBIOS","21",null,"13","BOLIVAR","1302",null,"2301","ABRAHAM CALAZACÓN","230101"]
["TUNGURAHUA","18",null,"12","BUENA FE","1210",null,"0602","ACHUPALLAS","060251"]
["ZAMORA CHINCHIPE","19",null,"02","CALUMA","0206",null,"2107","AGUAS NEGRAS","210752"]
["ZONA EN ESTUDIO","90",null,"11","CALVAS","1102",null,"1501","AHUANO","150151"]
[null,null,null,"01","CAMILO PONCE ENRIQUEZ","0115",null,"1110","ALAMOR","111050"]
[null,null,null,"03","CAÑAR","0303",null,"1701","ALANGASI","170151"]
[null,null,null,"15","CARLOS JULIO AROSEMENA TOLA","1509",null,"0501","ALAQUES (ALAQUEZ)","050151"]
[null,null,null,"21","CASCALES","2106",null,"0602","ALAUSI","060250"]
[null,null,null,"11","CATAMAYO","1103",null,"2201","ALEJANDRO LABAKA","220153"]
[null,null,null,"17","CAYAMBE","1702",null,"0902","ALFREDO BAQUERIZO MORENO (JUJAN)","090250"]
[null,null,null,"11","CELICA","1104",null,"1301","ALHAJUELA (BAJO GRANDE)","130152"]
[null,null,null,"19","CENTINELA DEL CONDOR","1907",null,"2301","ALLURIQUIN","230151"]
[null,null,null,"18","CEVALLOS","1803",null,"1703","ALOAG","170351"]
[null,null,null,"11","CHAGUARPAMBA","1105",null,"1703","ALOASI","170352"]
[null,null,null,"06","CHAMBO","0604",null,"1401","ALSHI (CAB EN 9 DE OCTUBRE)","140151"]
[null,null,null,"07","CHILLA","0705",null,"0805","ALTO TAMBO (CAB EN GUADUAL)","080551"]
[null,null,null,"02","CHILLANES","0202",null,"1701","AMAGUAÑA","170152"]
[null,null,null,"02","CHIMBO","0203",null,"0113","AMALUZA","011351"]
[null,null,null,"19","CHINCHIPE","1902",null,"1106","AMALUZA","110650"]
[null,null,null,"13","CHONE","1303",null,"1105","AMARILLOS","110554"]
[null,null,null,"01","CHORDELEG","0111",null,"1402","AMAZONAS (ROSARIO DE CUYES)","140251"]
[null,null,null,"06","CHUNCHI","0605",null,"1801","AMBATILLO","180151"]
[null,null,null,"09","COLIMES","0905",null,"1801","AMBATO","180150"]
[null,null,null,"06","COLTA","0603",null,"1001","AMBUQUI","100151"]
[null,null,null,"09","CORONEL MARCELINO MARIDUEÑA","0923",null,"1306","AMERICA","130651"]
[null,null,null,"10","COTACACHI","1003",null,"0802","ANCHAYACU","080251"]
[null,null,null,"01","CUENCA","0101",null,"0805","ANCON (PICHANGAL) (CAB. EN PALMA REAL)","080552"]
[null,null,null,"06","CUMANDA","0610",null,"2403","ANCONCITO","240351"]
[null,null,null,"21","CUYABENO","2107",null,"1002","ANDRADE MARÍN  (LOURDES) ","100201"]
[null,null,null,"09","DAULE","0906",null,"1301","ANDRÉS DE VERA","130106"]
[null,null,null,"03","DELEG","0306",null,"0504","ANGAMARCA","050451"]
[null,null,null,"17","DISTRITO METROPOLITANO DE QUITO","1701",null,"1315","ANGEL PEDRO GILER (LA ESTANCILLA)","131552"]
[null,null,null,"09","DURAN","0907",null,"0201","ÁNGEL POLIBIO CHÁVES","020101"]
[null,null,null,"02","ECHEANDIA","0204",null,"1001","ANGOCHAGUA","100152"]
[null,null,null,"13","EL CARMEN","1304",null,"1309","ANÍBAL SAN ANDRÉS","130901"]
[null,null,null,"15","EL CHACO","1504",null,"0505","ANTONIO JOSE HOLGUIN (SANTA LUCIA)","050551"]
[null,null,null,"09","EL EMPALME","0908",null,"1208","ANTONIO SOTOMAYOR (CAB. EN PLAYAS DE VINCES)","120851"]
[null,null,null,"07","EL GUABO","0706",null,"1003","APUELA","100351"]
[null,null,null,"01","EL PAN","0112",null,"1604","ARAJUNO","160450"]
[null,null,null,"19","EL PANGUI","1906",null,"1404","ARAPICOS","140451"]
[null,null,null,"90","EL PIEDRERO","9004",null,"0713","ARCAPAMBA","071352"]
[null,null,null,"03","EL TAMBO","0305",null,"1503","ARCHIDONA","150350"]
[null,null,null,"09","EL TRIUNFO","0909",null,"0702","ARENILLAS","070250"]
[null,null,null,{"$f":"LEFT(F66,2)","v":"08"},"ELOY ALFARO","0802",null,{"$f":"LEFT(J66,4)","v":"1316"},"ARQUITECTO SIXTO DURAN BALLEN","131653"]
[null,null,null,"08","ESMERALDAS","0801",null,"1702","ASCAZUBI","170251"]
[null,null,null,"04","ESPEJO","0403",null,"0102","ASUNCION","010251"]
[null,null,null,"11","ESPINDOLA","1106",null,"1406","ASUNCION","140651"]
[null,null,null,"13","FLAVIO ALFARO","1305",null,"0203","ASUNCION (ASANCOTO)","020351"]
[null,null,null,"09","GENERAL  ANTONIO ELIZALDE","0927",null,"0806","ATACAMES","080650"]
[null,null,null,"01","GIRON","0102",null,"1317","ATAHUALPA","131753"]
[null,null,null,"21","GONZALO PIZARRO","2102",null,"2401","ATAHUALPA","240151"]
[null,null,null,"11","GONZANAMA","1107",null,"0802","ATAHUALPA (CAB. EN CAMARONES)","080252"]
[null,null,null,"01","GUACHAPALA","0114",null,"1801","ATAHUALPA (CHISALATA)","180152"]
[null,null,null,"01","GUALACEO","0103",null,"1701","ATAHUALPA (HABASPAMBA)","170153"]
[null,null,null,"14","GUALAQUIZA","1402",null,"1801","ATOCHA – FICOA","180101"]
[null,null,null,"06","GUAMOTE","0606",null,"1002","ATUNTAQUI","100250"]
[null,null,null,"06","GUANO","0607",null,"1002","ATUNTAQUI","100202"]
[null,null,null,"02","GUARANDA","0201",null,"1801","AUGUSTO N. MARTINEZ (MUNDUGLEO)","180153"]
[null,null,null,"09","GUAYAQUIL","0901",null,"0301","AURELIO BAYAS MARTÍNEZ","030101"]
[null,null,null,"14","HUAMBOYA","1407",null,"2204","AVILA (CAB. EN HUIRUNO)","220451"]
[null,null,null,"07","HUAQUILLAS","0707",null,"0901","AYACUCHO","090101"]
[null,null,null,"10","IBARRA","1001",null,"1313","AYACUCHO","131351"]
[null,null,null,"20","ISABELA","2002",null,"0703","AYAPAMBA","070351"]
[null,null,null,"09","ISIDRO AYORA","0928",null,"0301","AZOGUES","030150"]
[null,null,null,"13","JAMA","1320",null,"0301","AZOGUES","030102"]
[null,null,null,"13","JARAMIJO","1321",null,"1202","BABA","120250"]
[null,null,null,"13","JIPIJAPA","1306",null,"1201","BABAHOYO","120150"]
[null,null,null,"13","JUNIN","1307",null,"1315","BACHILLERO","131551"]
[null,null,null,"90","JUVAL","9006",null,"1507","BAEZA","150750"]
[null,null,null,"23","LA CONCORDIA","2302",null,"1314","BAHIA DE CARAQUEZ","131450"]
[null,null,null,"22","LA JOYA DE LOS SACHAS","2203",null,"1314","BAHÍA DE CARÁQUEZ","131401"]
[null,null,null,"24","LA LIBERTAD","2402",null,"0903","BALAO","090350"]
[null,null,null,"05","LA MANA","0502",null,"2401","BALLENITA","240101"]
[null,null,null,"03","LA TRONCAL","0304",null,"0712","BALNEARIO JAMBELÍ (SATÉLITE)","071203"]
[null,null,null,"21","LAGO AGRIO","2101",null,"0205","BALSAPAMBA","020551"]
[null,null,null,"90","LAS GOLONDRINAS","9001",null,"0704","BALSAS","070450"]
[null,null,null,"07","LAS LAJAS","0714",null,"0904","BALZAR","090450"]
[null,null,null,"02","LAS NAVES","0207",null,"0906","BANIFE","090603"]
[null,null,null,"05","LATACUNGA","0501",null,"0101","BAÑOS","010151"]
[null,null,null,"14","LIMON INDANZA","1403",null,"1802","BAÑOS DE AGUA SANTA","180250"]
[null,null,null,"14","LOGROÑO","1410",null,"1808","BAQUERIZO MORENO","180851"]
[null,null,null,"11","LOJA","1101",null,"0706","BARBONES (SUCRE)","070651"]
[null,null,null,"09","LOMAS DE SARGENTILLO","0924",null,"1311","BARRAGANETE","131151"]
[null,null,null,"22","LORETO","2204",null,"1201","BARREIRO","120103"]
[null,null,null,"11","MACARA","1108",null,"0801","BARTOLOMÉ RUIZ (CÉSAR FRANCO CARRIÓN) ","080101"]
[null,null,null,"07","MACHALA","0701",null,"1701","BELISARIO QUEVEDO","170101"]
[null,null,null,"90","MANGA DEL CURA","9003",null,"0501","BELISARIO QUEVEDO (GUANAILIN)","050152"]
[null,null,null,"13","MANTA","1308",null,"0704","BELLAMARIA","070451"]
[null,null,null,"07","MARCABELI","0708",null,"0712","BELLAMARIA","071257"]
[null,null,null,"90","MATILDE ESTHER","9008",null,"0101","BELLAVISTA","010101"]
[null,null,null,"17","MEJIA","1703",null,"0712","BELLAVISTA","071251"]
[null,null,null,"16","MERA","1602",null,"1106","BELLAVISTA","110651"]
[null,null,null,"09","MILAGRO","0910",null,"1316","BELLAVISTA","131651"]
[null,null,null,"04","MIRA","0404",null,"1909","BELLAVISTA","190951"]
[null,null,null,"12","MOCACHE","1212",null,"2003","BELLAVISTA","200351"]
[null,null,null,"18","MOCHA","1804",null,"1807","BENITEZ (PACHANLICA)","180751"]
[null,null,null,"12","MONTALVO","1203",null,"1402","BERMEJOS","140252"]
[null,null,null,"13","MONTECRISTI","1309",null,"0302","BIBLIAN","030250"]
[null,null,null,"04","MONTUFAR","0405",null,"0609","BILBAO (CAB. EN QUILLUYACU)","060956"]
[null,null,null,"14","MORONA","1401",null,"0205","BILOVAN","020552"]
[null,null,null,"08","MUISNE","0803",null,"0919","BOCANA","091901"]
[null,null,null,"01","NABON","0104",null,"1113","BOLASPAMBA","111355"]
[null,null,null,"19","NANGARITZA","1903",null,"0402","BOLIVAR","040250"]
[null,null,null,"09","NARANJAL","0911",null,"0803","BOLIVAR","080351"]
[null,null,null,"09","NARANJITO","0912",null,"1807","BOLIVAR","180752"]
[null,null,null,"09","NOBOL","0925",null,"0709","BOLÍVAR","070901"]
[null,null,null,"11","OLMEDO","1116",null,"0901","BOLÍVAR  (SAGRARIO) ","090102"]
[null,null,null,{"$f":"LEFT(F130,2)","v":"13"},"OLMEDO","1318",null,{"$f":"LEFT(J130,4)","v":"1402"},"BOMBOIZA","140253"]
[null,null,null,"01","OÑA","0110",null,"2301","BOMBOLÍ","230102"]
[null,null,null,"22","ORELLANA","2201",null,"0802","BORBON","080253"]
[null,null,null,"10","OTAVALO","1004",null,"0301","BORRERO","030103"]
[null,null,null,"14","PABLO SEXTO","1411",null,"1303","BOYACA","130351"]
[null,null,null,"13","PAJAN","1310",null,"0709","BUENAVISTA","070951"]
[null,null,null,"19","PALANDA","1908",null,"1105","BUENAVISTA","110551"]
[null,null,null,"12","PALENQUE","1209",null,"0105","BULAN (JOSE VICTOR IZQUIERDO)","010552"]
[null,null,null,"09","PALESTINA","0913",null,"0601","CACHA (CAB. EN MACHANGARA)","060151"]
[null,null,null,"06","PALLATANGA","0608",null,"1006","CAHUASQUI","100651"]
[null,null,null,"14","PALORA","1404",null,"0603","CAJABAMBA","060301"]
[null,null,null,"11","PALTAS","1109",null,"1701","CALACALI","170154"]
[null,null,null,"05","PANGUA","0503",null,"1302","CALCETA","130250"]
[null,null,null,"19","PAQUISHA","1909",null,"0805","CALDERON","080553"]
[null,null,null,"07","PASAJE","0709",null,"1701","CALDERON (CARAPUNGO)","170155"]
[null,null,null,"16","PASTAZA","1601",null,"0601","CALPI","060152"]
[null,null,null,"18","PATATE","1805",null,"0206","CALUMA","020650"]
[null,null,null,"01","PAUTE","0105",null,"0801","CAMARONES (CAB. EN SAN VICENTE)","080152"]
[null,null,null,"13","PEDERNALES","1317",null,"0115","CAMILO PONCE ENRIQUEZ","011550"]
[null,null,null,"09","PEDRO CARBO","0914",null,"1310","CAMPOZANO (LA PALMA DE PAJAN)","131051"]
[null,null,null,"17","PEDRO MONCAYO","1704",null,"0506","CANCHAGUA","050651"]
[null,null,null,"17","PEDRO VICENTE MALDONADO","1708",null,"0919","CANDILEJOS","091902"]
[null,null,null,"18","PELILEO","1807",null,"1601","CANELOS","160152"]
[null,null,null,"06","PENIPE","0609",null,"1702","CANGAHUA","170252"]
[null,null,null,"13","PICHINCHA","1311",null,"1109","CANGONAMA","110951"]
[null,null,null,"18","PILLARO","1808",null,"1322","CANOA","132251"]
[null,null,null,"10","PIMAMPIRO","1005",null,"1303","CANUTO","130352"]
[null,null,null,"11","PINDAL","1114",null,"0709","CAÑAQUEMADA","070956"]
[null,null,null,"07","PIÑAS","0710",null,"0303","CAÑAR","030350"]
[null,null,null,"09","PLAYAS","0921",null,"0101","CAÑARIBAMBA","010102"]
[null,null,null,"07","PORTOVELO","0711",null,"0603","CAÑI","060351"]
[null,null,null,"13","PORTOVIEJO","1301",null,"0710","CAPIRO (CAB. EN LA CAPILLA DE CAPIRO)","071051"]
[null,null,null,"01","PUCARA","0106",null,"2202","CAPITAN AUGUSTO RIVADENEYRA","220251"]
[null,null,null,"12","PUEBLOVIEJO","1204",null,"0605","CAPZOL","060551"]
[null,null,null,"13","PUERTO LOPEZ","1319",null,"1201","CARACOL","120152"]
[null,null,null,"17","PUERTO QUITO","1709",null,"1001","CARANQUI","100101"]
[null,null,null,"05","PUJILI","0504",null,"0901","CARBO (CONCEPCIÓN) ","090103"]
[null,null,null,"21","PUTUMAYO","2103",null,"0702","CARCABON","070255"]
[null,null,null,"11","PUYANGO","1110",null,"1701","CARCELÉN","170102"]
[null,null,null,"18","QUERO","1806",null,"1102","CARIAMANGA","110250"]
[null,null,null,"12","QUEVEDO","1205",null,"1102","CARIAMANGA","110201"]
[null,null,null,"15","QUIJOS","1507",null,"1101","CARIGÁN","110105"]
[null,null,null,"11","QUILANGA","1115",null,"2403","CARLOS ESPINOZA LARREA","240301"]
[null,null,null,"08","QUININDE","0804",null,"1509","CARLOS JULIO AROSEMENA TOLA","150950"]
[null,null,null,"12","QUINSALOMA","1213",null,"1001","CAROLINA","100153"]
[null,null,null,"06","RIOBAMBA","0601",null,"0805","CARONDELET","080554"]
[null,null,null,"08","RIOVERDE","0807",null,"0709","CASACAY","070952"]
[null,null,null,"13","ROCAFUERTE","1312",null,"1109","CASANGA","110958"]
[null,null,null,"17","RUMIÑAHUI","1705",null,"1310","CASCOL","131052"]
[null,null,null,"05","SALCEDO","0505",null,"1109","CATACOCHA","110950"]
[null,null,null,"24","SALINAS","2403",null,"1109","CATACOCHA","110901"]
[null,null,null,"09","SAMBORONDON","0916",null,"1103","CATAMAYO","110301"]
[null,null,null,"20","SAN CRISTOBAL","2001",null,"1103","CATAMAYO (LA TOMA)","110350"]
[null,null,null,"01","SAN FERNANDO","0107",null,"1206","CATARAMA","120650"]
[null,null,null,"14","SAN JUAN BOSCO","1408",null,"1702","CAYAMBE","170250"]
[null,null,null,"08","SAN LORENZO","0805",null,"1702","CAYAMBE","170202"]
[null,null,null,"02","SAN MIGUEL","0205",null,"1113","CAZADEROS","111356"]
[null,null,null,"17","SAN MIGUEL DE LOS BANCOS","1707",null,"0606","CEBADAS","060651"]
[null,null,null,"10","SAN MIGUEL DE URCUQUI","1006",null,"1801","CELIANO MONGE","180102"]
[null,null,null,"04","SAN PEDRO DE HUACA","0406",null,"1104","CELICA","110450"]
[null,null,null,"13","SAN VICENTE","1322",null,"0919","CENTRAL","091903"]
[null,null,null,"13","SANTA ANA","1313",null,"1701","CENTRO HISTÓRICO","170103"]
[null,null,null,"16","SANTA CLARA","1603",null,"1803","CEVALLOS","180350"]
[null,null,null,"20","SANTA CRUZ","2003",null,"1207","CHACARITA","120753"]
[null,null,null,{"$f":"LEFT(F194,2)","v":"24"},"SANTA ELENA","2401",null,{"$f":"LEFT(J194,4)","v":"0702"},"CHACRAS","070251"]
[null,null,null,"01","SANTA ISABEL","0108",null,"1105","CHAGUARPAMBA","110550"]
[null,null,null,"09","SANTA LUCIA","0918",null,"0604","CHAMBO","060450"]
[null,null,null,"07","SANTA ROSA","0712",null,"2401","CHANDUY","240153"]
[null,null,null,"90","SANTA ROSA DE AGUA CLARA","9005",null,"1107","CHANGAIMINA (LA LIBERTAD)","110751"]
[null,null,null,"14","SANTIAGO","1405",null,"1101","CHANTACO","110151"]
[null,null,null,"23","SANTO DOMINGO","2301",null,"0506","CHANTILIN","050652"]
[null,null,null,"05","SAQUISILI","0506",null,"1114","CHAQUINAL","111451"]
[null,null,null,"11","SARAGURO","1111",null,"1314","CHARAPOTO","131453"]
[null,null,null,"01","SEVILLA DE ORO","0113",null,"0101","CHAUCHA","010153"]
[null,null,null,"21","SHUSHUFINDI","2104",null,"1701","CHAVEZPAMBA","170158"]
[null,null,null,"05","SIGCHOS","0507",null,"1701","CHECA (CHILPA)","170159"]
[null,null,null,"01","SIGSIG","0109",null,"0101","CHECA (JIDCAY)","010154"]
[null,null,null,"09","SIMON BOLIVAR","0922",null,"1303","CHIBUNGA","130354"]
[null,null,null,"11","SOZORANGA","1112",null,"0105","CHICAN (GUILLERMO ORTEGA)","010553"]
[null,null,null,"13","SUCRE","1314",null,"1905","CHICAÑA","190551"]
[null,null,null,"14","SUCUA","1406",null,"1407","CHIGUAZA","140751"]
[null,null,null,"21","SUCUMBIOS","2105",null,"2301","CHIGUILPE","230103"]
[null,null,null,"03","SUSCAL","0307",null,"1402","CHIGUINDA","140254"]
[null,null,null,"14","TAISHA","1409",null,"1102","CHILE","110202"]
[null,null,null,"15","TENA","1501",null,"1701","CHILIBULO","170107"]
[null,null,null,"18","TISALEO","1809",null,"0705","CHILLA","070550"]
[null,null,null,"14","TIWINTZA","1412",null,"0202","CHILLANES","020250"]
[null,null,null,"13","TOSAGUA","1315",null,"1701","CHILLOGALLO","170108"]
[null,null,null,"04","TULCAN","0401",null,"1701","CHIMBACALLE","170109"]
[null,null,null,"09","URBINA JADO","0919",null,"0801","CHINCA","080154"]
[null,null,null,"12","URDANETA","1206",null,"1807","CHIQUICHA (CAB. EN CHIQUICHA GRANDE)","180754"]
[null,null,null,"12","VALENCIA","1211",null,"0101","CHIQUINTAD","010155"]
[null,null,null,"12","VENTANAS","1207",null,"1301","CHIRIJOS","130157"]
[null,null,null,"12","VINCES","1208",null,"0405","CHITAN DE NAVARRETE","040552"]
[null,null,null,"19","YACUAMBI","1904",null,"1902","CHITO","190251"]
[null,null,null,"09","YAGUACHI","0920",null,"0910","CHOBO","091051"]
[null,null,null,"19","YANTZAZA","1905",null,"1303","CHONE","130350"]
[null,null,null,"19","ZAMORA","1901",null,"1303","CHONE","130301"]
[null,null,null,"11","ZAPOTILLO","1113",null,"0807","CHONTADURO","080751"]
[null,null,null,"07","ZARUMA","0713",null,"0303","CHONTAMARCA","030351"]
[null,null,null,null,null,null,null,"1501","CHONTAPUNTA","150153"]
[null,null,null,null,null,null,null,"0111","CHORDELEG","011150"]
[null,null,null,null,null,null,null,"0303","CHOROCOPTE","030352"]
[null,null,null,null,null,null,null,"1005","CHUGA","100551"]
[null,null,null,null,null,null,null,"0507","CHUGCHILLAN","050751"]
[null,null,null,null,null,null,null,"0107","CHUMBLIN","010751"]
[null,null,null,null,null,null,null,"0807","CHUMUNDE","080752"]
[null,null,null,null,null,null,null,"0605","CHUNCHI","060550"]
[null,null,null,null,null,null,null,"1405","CHUPIANZA","140552"]
[null,null,null,null,null,null,null,"1101","CHUQUIRIBAMBA","110152"]
[null,null,null,null,null,null,null,"0804","CHURA (CHANCAMA) (CAB. EN EL YERBERO)","080452"]
[null,null,null,null,null,null,null,"1110","CIANO","111051"]
[null,null,null,null,null,null,null,"1808","CIUDAD NUEVA","180801"]
[null,null,null,null,null,null,null,"1201","CLEMENTE BAQUERIZO","120101"]
[null,null,null,null,null,null,null,"0506","COCHAPAMBA","050653"]
[null,null,null,null,null,null,null,"1701","COCHAPAMBA","170104"]
[null,null,null,null,null,null,null,"0104","COCHAPATA","010451"]
[null,null,null,null,null,null,null,"1317","COJIMIES","131751"]
[null,null,null,null,null,null,null,"0301","COJITAMBO","030151"]
[null,null,null,null,null,null,null,"1102","COLAISACA","110251"]
[null,null,null,null,null,null,null,"0905","COLIMES","090550"]
[null,null,null,null,null,null,null,"1301","COLÓN","130103"]
[null,null,null,null,null,null,null,"0802","COLON ELOY DEL MARIA","080262"]
[null,null,null,null,null,null,null,"2401","COLONCHE","240152"]
[null,null,null,null,null,null,null,"0603","COLUMBE","060352"]
[null,null,null,null,null,null,null,"1701","COMITÉ DEL PUEBLO","170105"]
[null,null,null,null,null,null,null,"0605","COMPUD","060552"]
[null,null,null,null,null,null,null,"0404","CONCEPCION","040451"]
[null,null,null,null,null,null,null,{"$f":"LEFT(J258,4)","v":"0805"},"CONCEPCION","080556"]
[null,null,null,null,null,null,null,"1701","CONOCOTO","170156"]
[null,null,null,null,null,null,null,"2202","CONONACO","220252"]
[null,null,null,null,null,null,null,"1801","CONSTANTINO FERNANDEZ (CAB. EN CULLITAHUA)","180154"]
[null,null,null,null,null,null,null,"1303","CONVENTO","130353"]
[null,null,null,null,null,null,null,"1405","COPAL","140551"]
[null,null,null,null,null,null,null,"0703","CORDONCILLO","070352"]
[null,null,null,null,null,null,null,"0801","CORONEL CARLOS CONCHA TORRES (CAB. EN HUELE)","080153"]
[null,null,null,null,null,null,null,"0922","CORONEL LORENZO DE GARAICOA (PEDREGAL)","092251"]
[null,null,null,null,null,null,null,"0923","CORONEL MARCELINO MARIDUEÑA (SAN CARLOS)","092350"]
[null,null,null,null,null,null,null,"1507","COSANGA","150751"]
[null,null,null,null,null,null,null,"1003","COTACACHI","100350"]
[null,null,null,null,null,null,null,"1807","COTALO","180753"]
[null,null,null,null,null,null,null,"1701","COTOCOLLAO","170106"]
[null,null,null,null,null,null,null,"1705","COTOGCHOA","170551"]
[null,null,null,null,null,null,null,"1503","COTUNDO","150352"]
[null,null,null,null,null,null,null,"0405","CRISTOBAL COLON","040551"]
[null,null,null,null,null,null,null,"1301","CRUCITA","130153"]
[null,null,null,null,null,null,null,"1104","CRUZPAMBA (CAB EN CARLOS BUSTAMANTE)","110451"]
[null,null,null,null,null,null,null,"0804","CUBE","080451"]
[null,null,null,null,null,null,null,"0601","CUBIJIES","060153"]
[null,null,null,null,null,null,null,"1401","CUCHAENTZA","140162"]
[null,null,null,null,null,null,null,"0109","CUCHIL (CUTCHIL)","010951"]
[null,null,null,null,null,null,null,"0101","CUENCA","010150"]
[null,null,null,null,null,null,null,"0610","CUMANDA","061050"]
[null,null,null,null,null,null,null,"1404","CUMANDA (CAB EN COLONIA AGRICOLA SEVILLA DEL ORO)","140452"]
[null,null,null,null,null,null,null,"1901","CUMBARATZA","190151"]
[null,null,null,null,null,null,null,"1701","CUMBAYA","170157"]
[null,null,null,null,null,null,null,"0101","CUMBE","010152"]
[null,null,null,null,null,null,null,"1801","CUNCHIBAMBA","180167"]
[null,null,null,null,null,null,null,"1604","CURARAY","160451"]
[null,null,null,null,null,null,null,"0711","CURTINCAPA","071151"]
[null,null,null,null,null,null,null,"0505","CUSUBAMBA","050552"]
[null,null,null,null,null,null,null,"1703","CUTUGLAHUA","170353"]
[null,null,null,null,null,null,null,"2107","CUYABENO","210751"]
[null,null,null,null,null,null,null,"1507","CUYUJA","150752"]
[null,null,null,null,null,null,null,"0103","DANIEL CORDOVA TORAL (EL ORIENTE)","010352"]
[null,null,null,null,null,null,null,"0803","DAULE","080352"]
[null,null,null,null,null,null,null,"0906","DAULE","090650"]
[null,null,null,null,null,null,null,"0906","DAULE","090601"]
[null,null,null,null,null,null,null,"2201","DAYUMA","220151"]
[null,null,null,null,null,null,null,"0306","DELEG","030650"]
[null,null,null,null,null,null,null,"1317","DIEZ DE AGOSTO","131752"]
[null,null,null,null,null,null,null,"1601","DIEZ DE AGOSTO","160154"]
[null,null,null,null,null,null,null,"1201","DOCTOR CAMILO PONCE ","120102"]
[null,null,null,null,null,null,null,"1004","DOCTOR MIGUEL EGAS CABEZAS (PEGUCHE)","100451"]
[null,null,null,null,null,null,null,"1306","DOCTOR MIGUEL MORÁN LUCIO ","130601"]
[null,null,null,null,null,null,null,"0303","DUCUR","030363"]
[null,null,null,null,null,null,null,"0105","DUG DUG","010562"]
[null,null,null,null,null,null,null,"2101","DURENO","210152"]
[null,null,null,null,null,null,null,"0204","ECHEANDIA","020450"]
[null,null,null,null,null,null,null,"0707","ECUADOR","070701"]
[null,null,null,null,null,null,null,"1106","EL AIRO","110656"]
[null,null,null,null,null,null,null,"0609","EL ALTAR","060951"]
[null,null,null,null,null,null,null,"1306","EL ANEGADO (CAB. EN ELOY ALFARO)","130652"]
[null,null,null,null,null,null,null,"0403","EL ANGEL","040350"]
[null,null,null,null,null,null,null,"0403","EL ÁNGEL","040301"]
[null,null,null,null,null,null,null,"1110","EL ARENAL","111052"]
[null,null,null,null,null,null,null,"0101","EL BATÁN","010103"]
[null,null,null,null,null,null,null,"0105","EL CABO","010554"]
[null,null,null,null,null,null,null,"0701","EL CAMBIO","070105"]
[null,null,null,null,null,null,null,"0401","EL CARMELO (EL PUN)","040151"]
[null,null,null,null,null,null,null,"0502","EL CARMEN","050201"]
[null,null,null,null,null,null,null,"1304","EL CARMEN","130450"]
[null,null,null,null,null,null,null,{"$f":"LEFT(J322,4)","v":"1304"},"EL CARMEN","130401"]
[null,null,null,null,null,null,null,"0108","EL CARMEN DE PIJILI","010852"]
[null,null,null,null,null,null,null,"0115","EL CARMEN DE PIJILÍ","011551"]
[null,null,null,null,null,null,null,"1504","EL CHACO","150450"]
[null,null,null,null,null,null,null,"1703","EL CHAUPI","170354"]
[null,null,null,null,null,null,null,"0401","EL CHICAL","040159"]
[null,null,null,null,null,null,null,"1902","EL CHORRO","190252"]
[null,null,null,null,null,null,null,"1101","EL CISNE","110153"]
[null,null,null,null,null,null,null,"1309","EL COLORADO","130903"]
[null,null,null,null,null,null,null,"1701","EL CONDADO","170110"]
[null,null,null,null,null,null,null,"0503","EL CORAZON","050350"]
[null,null,null,null,null,null,null,"2201","EL DORADO","220154"]
[null,null,null,null,null,null,null,"2106","EL DORADO DE CASCALES","210650"]
[null,null,null,null,null,null,null,"2201","EL EDEN","220155"]
[null,null,null,null,null,null,null,"2101","EL ENO","210155"]
[null,null,null,null,null,null,null,"2301","EL ESFUERZO","230156"]
[null,null,null,null,null,null,null,"0403","EL GOALTAL","040351"]
[null,null,null,null,null,null,null,"0706","EL GUABO","070650"]
[null,null,null,null,null,null,null,"1906","EL GUISME","190651"]
[null,null,null,null,null,null,null,"1402","EL IDEAL","140258"]
[null,null,null,null,null,null,null,"0708","EL INGENIO","070851"]
[null,null,null,null,null,null,null,"1106","EL INGENIO","110655"]
[null,null,null,null,null,null,null,"1110","EL LIMO (MARIANA DE JESUS)","111053"]
[null,null,null,null,null,null,null,"1901","EL LIMÓN","190101"]
[null,null,null,null,null,null,null,"1102","EL LUCERO","110252"]
[null,null,null,null,null,null,null,"0112","EL PAN","011250"]
[null,null,null,null,null,null,null,"1906","EL PANGUI","190650"]
[null,null,null,null,null,null,null,"0714","EL PARAISO","071452"]
[null,null,null,null,null,null,null,"0707","EL PARAÍSO","070702"]
[null,null,null,null,null,null,null,"1111","EL PARAISO DE CELEN","111151"]
[null,null,null,null,null,null,null,"9004","EL PIEDRERO","900451"]
[null,null,null,null,null,null,null,"2105","EL PLAYON DE SAN FRANCISCO","210551"]
[null,null,null,null,null,null,null,"1908","EL PORVENIR DEL CARMEN","190851"]
[null,null,null,null,null,null,null,"2001","EL PROGRESO","200151"]
[null,null,null,null,null,null,null,"0104","EL PROGRESO (CAB. EN ZHOTA)","010452"]
[null,null,null,null,null,null,null,"1701","EL QUINCHE","170160"]
[null,null,null,null,null,null,null,"0907","EL RECREO","090702"]
[null,null,null,null,null,null,null,"0701","EL RETIRO","070152"]
[null,null,null,null,null,null,null,"2102","EL REVENTADOR","210251"]
[null,null,null,null,null,null,null,"0607","EL ROSARIO","060701"]
[null,null,null,null,null,null,null,"0908","EL ROSARIO","090852"]
[null,null,null,null,null,null,null,"1105","EL ROSARIO","110552"]
[null,null,null,null,null,null,null,"1402","EL ROSARIO","140255"]
[null,null,null,null,null,null,null,"1807","EL ROSARIO (RUMICHACA)","180755"]
[null,null,null,null,null,null,null,"0101","EL SAGRARIO","010104"]
[null,null,null,null,null,null,null,"1101","EL SAGRARIO","110101"]
[null,null,null,null,null,null,null,"0919","EL SALITRE (LAS RAMAS)","091950"]
[null,null,null,null,null,null,null,"1201","EL SALTO","120104"]
[null,null,null,null,null,null,null,"1111","EL TABLON","111152"]
[null,null,null,null,null,null,null,"0305","EL TAMBO","030550"]
[null,null,null,null,null,null,null,"1103","EL TAMBO","110351"]
[null,null,null,null,null,null,null,"0502","EL TRIUNFO","050203"]
[null,null,null,null,null,null,null,"0909","EL TRIUNFO","090950"]
[null,null,null,null,null,null,null,"1601","EL TRIUNFO","160166"]
[null,null,null,null,null,null,null,"1805","EL TRIUNFO","180551"]
[null,null,null,null,null,null,null,"0101","EL VECINO","010105"]
[null,null,null,null,null,null,null,"1303","ELOY ALFARO","130355"]
[null,null,null,null,null,null,null,"1308","ELOY ALFARO","130805"]
[null,null,null,null,null,null,null,"0501","ELOY ALFARO  (SAN FELIPE) ","050101"]
[null,null,null,null,null,null,null,"0907","ELOY ALFARO (DURAN)","090750"]
[null,null,null,null,null,null,null,"0907","ELOY ALFARO (DURÁN)","090701"]
[null,null,null,null,null,null,null,"0906","EMILIANO CAICEDO MARCOS","090604"]
[null,null,null,null,null,null,null,"1808","EMILIO MARIA TERAN (RUMIPAMBA)","180852"]
[null,null,null,null,null,null,null,"2203","ENOKANQUI","220351"]
[null,null,null,null,null,null,null,{"$f":"LEFT(J386,4)","v":"0801"},"ESMERALDAS","080150"]
[null,null,null,null,null,null,null,"0801","ESMERALDAS","080103"]
[null,null,null,null,null,null,null,"1004","EUGENIO ESPEJO (CALPAQUI)","100452"]
[null,null,null,null,null,null,null,"0201","FACUNDO VELA","020151"]
[null,null,null,null,null,null,null,"1601","FATIMA","160155"]
[null,null,null,null,null,null,null,"0901","FEBRES CORDERO","090104"]
[null,null,null,null,null,null,null,"1201","FEBRES CORDERO (LAS JUNTAS)","120153"]
[null,null,null,null,null,null,null,"0405","FERNANDEZ SALVADOR","040553"]
[null,null,null,null,null,null,null,"1305","FLAVIO ALFARO","130550"]
[null,null,null,null,null,null,null,"0601","FLORES","060154"]
[null,null,null,null,null,null,null,"1301","FRANCISCO PACHECO","130107"]
[null,null,null,null,null,null,null,"1115","FUNDOCHAMBA","111551"]
[null,null,null,null,null,null,null,"0201","GABRIEL IGNACIO VEINTIMILLA","020102"]
[null,null,null,null,null,null,null,"0803","GALERA","080353"]
[null,null,null,null,null,null,null,"0402","GARCIA MORENO","040251"]
[null,null,null,null,null,null,null,"2201","GARCIA MORENO","220156"]
[null,null,null,null,null,null,null,"0901","GARCÍA MORENO","090105"]
[null,null,null,null,null,null,null,"1807","GARCIA MORENO (CHUMAQUI)","180756"]
[null,null,null,null,null,null,null,"1003","GARCIA MORENO (LLURIMAGUA)","100352"]
[null,null,null,null,null,null,null,"1113","GARZAREAL","111352"]
[null,null,null,null,null,null,null,"2403","GENERAL ALBERTO ENRÍQUEZ GALLO","240302"]
[null,null,null,null,null,null,null,"0927","GENERAL ANTONIO ELIZALDE (BUCAY)","092750"]
[null,null,null,null,null,null,null,"1309","GENERAL ELOY ALFARO","130904"]
[null,null,null,null,null,null,null,"1108","GENERAL ELOY ALFARO (SAN SEBASTIÁN) ","110801"]
[null,null,null,null,null,null,null,"2101","GENERAL FARFAN","210153"]
[null,null,null,null,null,null,null,"1403","GENERAL LEONIDAS PLAZA GUTIERREZ","140350"]
[null,null,null,null,null,null,null,"0303","GENERAL MORALES (SOCARTE)","030353"]
[null,null,null,null,null,null,null,"0920","GENERAL PEDRO J. MONTERO (BOLICHE)","092053"]
[null,null,null,null,null,null,null,"1401","GENERAL PROAÑO","140153"]
[null,null,null,null,null,null,null,"0919","GENERAL VERNAZA (DOS ESTEROS)","091951"]
[null,null,null,null,null,null,null,"0921","GENERAL VILLAMIL (PLAYAS)","092150"]
[null,null,null,null,null,null,null,"0101","GIL RAMÍREZ DÁVALOS","010106"]
[null,null,null,null,null,null,null,"0109","GIMA","010952"]
[null,null,null,null,null,null,null,"0102","GIRON","010250"]
[null,null,null,null,null,null,null,"1004","GONZALEZ SUAREZ","100453"]
[null,null,null,null,null,null,null,"0401","GONZÁLEZ SUÁREZ","040101"]
[null,null,null,null,null,null,null,"0405","GONZÁLEZ SUÁREZ","040501"]
[null,null,null,null,null,null,null,"1504","GONZALO DIAZ DE PINEDA (EL BOMBON)","150451"]
[null,null,null,null,null,null,null,"2102","GONZALO PIZARRO","210252"]
[null,null,null,null,null,null,null,"1107","GONZANAMA","110750"]
[null,null,null,null,null,null,null,"0605","GONZOL","060553"]
[null,null,null,null,null,null,null,"1109","GUACHANAMA","110952"]
[null,null,null,null,null,null,null,"0114","GUACHAPALA","011450"]
[null,null,null,null,null,null,null,"1901","GUADALUPE","190152"]
[null,null,null,null,null,null,null,"0501","GUAITACAMA (GUAYTACAMA)","050153"]
[null,null,null,null,null,null,null,"0103","GUALACEO","010350"]
[null,null,null,null,null,null,null,"1402","GUALAQUIZA","140250"]
[null,null,null,null,null,null,null,"1402","GUALAQUIZA","140201"]
[null,null,null,null,null,null,null,"1310","GUALE","131053"]
[null,null,null,null,null,null,null,"1701","GUALEA","170161"]
[null,null,null,null,null,null,null,"1101","GUALEL","110154"]
[null,null,null,null,null,null,null,"0303","GUALLETURO","030354"]
[null,null,null,null,null,null,null,"1701","GUAMANÍ","170111"]
[null,null,null,null,null,null,null,"1807","GUAMBALO (HUAMBALO)","180757"]
[null,null,null,null,null,null,null,"0606","GUAMOTE","060650"]
[null,null,null,null,null,null,null,"0607","GUANANDO","060751"]
[null,null,null,null,null,null,null,"0713","GUANAZAN","071353"]
[null,null,null,null,null,null,null,"0504","GUANGAJE","050453"]
[null,null,null,null,null,null,null,"1701","GUANGOPOLO","170162"]
[null,null,null,null,null,null,null,"0607","GUANO","060750"]
[null,null,null,null,null,null,null,"0201","GUANUJO","020103"]
[null,null,null,null,null,null,null,"0301","GUAPAN","030153"]
[null,null,null,null,null,null,null,"0105","GUARAINAG","010556"]
[null,null,null,null,null,null,null,"0201","GUARANDA","020150"]
[null,null,null,null,null,null,null,{"$f":"LEFT(J450,4)","v":"1202"},"GUARE","120251"]
[null,null,null,null,null,null,null,"0502","GUASAGANDA (CAB. EN GUASAGANDA CENTRO)","050251"]
[null,null,null,null,null,null,null,"0602","GUASUNTOS","060253"]
[null,null,null,null,null,null,null,"1205","GUAYACÁN","120504"]
[null,null,null,null,null,null,null,"0901","GUAYAQUIL","090150"]
[null,null,null,null,null,null,null,"1001","GUAYAQUIL DE ALPACHACA","100102"]
[null,null,null,null,null,null,null,"0908","GUAYAS (PUEBLO NUEVO)","090851"]
[null,null,null,null,null,null,null,"1701","GUAYLLABAMBA","170163"]
[null,null,null,null,null,null,null,"1103","GUAYQUICHUMA","110352"]
[null,null,null,null,null,null,null,"1903","GUAYZIMI","190350"]
[null,null,null,null,null,null,null,"0109","GUEL","010953"]
[null,null,null,null,null,null,null,"0713","GUIZHAGUIÑA","071354"]
[null,null,null,null,null,null,null,"1503","HATUN SUMAKU","150356"]
[null,null,null,null,null,null,null,"0101","HERMANO MIGUEL","010115"]
[null,null,null,null,null,null,null,"1313","HONORATO VASQUEZ (CAB EN VASQUEZ)","131352"]
[null,null,null,null,null,null,null,"0303","HONORATO VASQUEZ (TAMBO VIEJO)","030355"]
[null,null,null,null,null,null,null,"0406","HUACA","040650"]
[null,null,null,null,null,null,null,"1801","HUACHI CHICO","180103"]
[null,null,null,null,null,null,null,"1801","HUACHI GRANDE","180155"]
[null,null,null,null,null,null,null,"1801","HUACHI LORETO","180104"]
[null,null,null,null,null,null,null,"0707","HUALTACO","070703"]
[null,null,null,null,null,null,null,"1406","HUAMBI","140652"]
[null,null,null,null,null,null,null,"1407","HUAMBOYA","140750"]
[null,null,null,null,null,null,null,"0707","HUAQUILLAS","070750"]
[null,null,null,null,null,null,null,"1409","HUASAGA (CAB EN WAMPUIK)","140951"]
[null,null,null,null,null,null,null,"0101","HUAYNACÁPAC","010107"]
[null,null,null,null,null,null,null,"0713","HUERTAS","071355"]
[null,null,null,null,null,null,null,"0602","HUIGRA","060254"]
[null,null,null,null,null,null,null,"0501","IGNACIO FLORES (PARQUE FLORES) ","050102"]
[null,null,null,null,null,null,null,"0607","ILAPO","060752"]
[null,null,null,null,null,null,null,"1003","IMANTAG","100353"]
[null,null,null,null,null,null,null,"1901","IMBANA (LA VICTORIA DE IMBANA)","190153"]
[null,null,null,null,null,null,null,"1002","IMBAYA (SAN LUIS DE COBUENDO)","100251"]
[null,null,null,null,null,null,null,"1403","INDANZA","140351"]
[null,null,null,null,null,null,null,"2201","INES ARANGO (CAB. EN WESTERN)","220157"]
[null,null,null,null,null,null,null,"0303","INGAPIRCA","030356"]
[null,null,null,null,null,null,null,"1701","IÑAQUITO","170112"]
[null,null,null,null,null,null,null,"0928","ISIDRO AYORA","092850"]
[null,null,null,null,null,null,null,"0507","ISINLIVI","050752"]
[null,null,null,null,null,null,null,"1202","ISLA DE BEJUCAL","120252"]
[null,null,null,null,null,null,null,"2001","ISLA SANTA MARIA (FLOREANA) (CAB. EN  PTO. VELASCO IBARRA)","200152"]
[null,null,null,null,null,null,null,"1701","ITCHIMBÍA","170113"]
[null,null,null,null,null,null,null,"1801","IZAMBA","180156"]
[null,null,null,null,null,null,null,"0103","JADAN","010353"]
[null,null,null,null,null,null,null,"1320","JAMA","132050"]
[null,null,null,null,null,null,null,"0712","JAMBELI","071252"]
[null,null,null,null,null,null,null,"2101","JAMBELI","210157"]
[null,null,null,null,null,null,null,"1321","JARAMIJO","132150"]
[null,null,null,null,null,null,null,"0301","JAVIER LOYOLA (CHUQUIPATA)","030154"]
[null,null,null,null,null,null,null,"0302","JERUSALEN","030254"]
[null,null,null,null,null,null,null,"0911","JESUS MARIA","091151"]
[null,null,null,null,null,null,null,"0404","JIJON Y CAAMAÑO (CAB. EN RIO BLANCO)","040452"]
[null,null,null,null,null,null,null,"1101","JIMBILLA","110155"]
[null,null,null,null,null,null,null,"1106","JIMBURA","110652"]
[null,null,null,null,null,null,null,"1306","JIPIJAPA","130650"]
[null,null,null,null,null,null,null,"1701","JIPIJAPA","170114"]
[null,null,null,null,null,null,null,"1004","JORDÁN","100401"]
[null,null,null,null,null,null,null,"2403","JOSE LUIS TAMAYO (MUEY)","240352"]
[null,null,null,null,null,null,null,"0501","JOSEGUANGO BAJO","050154"]
[null,null,null,null,null,null,null,"0906","JUAN BAUTISTA AGUIRRE (LOS TINTOS)","090652"]
[null,null,null,null,null,null,null,"1801","JUAN BENIGNO VELA","180157"]
[null,null,null,null,null,null,null,"0603","JUAN DE VELASCO (PANGOR)","060353"]
[null,null,null,null,null,null,null,"0901","JUAN GOMEZ RENDON (PROGRESO)","090152"]
[null,null,null,null,null,null,null,"1702","JUAN MONTALVO","170203"]
[null,null,null,null,null,null,null,{"$f":"LEFT(J514,4)","v":"0404"},"JUAN MONTALVO (SAN IGNACIO DE QUIL)","040453"]
[null,null,null,null,null,null,null,"0501","JUAN MONTALVO (SAN SEBASTIÁN)","050103"]
[null,null,null,null,null,null,null,"1306","JULCUY","130653"]
[null,null,null,null,null,null,null,"0401","JULIO ANDRADE (OREJUELA)","040153"]
[null,null,null,null,null,null,null,"0201","JULIO MORENO (CATANAHUAN GRANDE)","020153"]
[null,null,null,null,null,null,null,"0712","JUMÓN (SATÉLITE)","071204"]
[null,null,null,null,null,null,null,"0303","JUNCAL","030357"]
[null,null,null,null,null,null,null,"1307","JUNIN","130750"]
[null,null,null,null,null,null,null,"0919","JUNQUILLAL","091953"]
[null,null,null,null,null,null,null,"9006","JUVAL","900651"]
[null,null,null,null,null,null,null,"1701","KENNEDY","170115"]
[null,null,null,null,null,null,null,"1701","LA ARGELIA","170116"]
[null,null,null,null,null,null,null,"0906","LA AURORA (SATÉLITE)","090602"]
[null,null,null,null,null,null,null,"0712","LA AVANZADA","071253"]
[null,null,null,null,null,null,null,"2201","LA BELLEZA","220158"]
[null,null,null,null,null,null,null,"0710","LA BOCANA","071052"]
[null,null,null,null,null,null,null,"2105","LA BONITA","210550"]
[null,null,null,null,null,null,null,"0609","LA CANDELARIA","060955"]
[null,null,null,null,null,null,null,"1908","LA CANELA","190854"]
[null,null,null,null,null,null,null,"1902","LA CHONTA","190254"]
[null,null,null,null,null,null,null,"1701","LA CONCEPCIÓN","170117"]
[null,null,null,null,null,null,null,"2302","LA CONCORDIA","230250"]
[null,null,null,null,null,null,null,"1001","LA DOLOROSA DEL PRIORATO","100105"]
[null,null,null,null,null,null,null,"1701","LA ECUATORIANA","170118"]
[null,null,null,null,null,null,null,"1203","LA ESMERALDA","120351"]
[null,null,null,null,null,null,null,"1001","LA ESPERANZA","100154"]
[null,null,null,null,null,null,null,"1205","LA ESPERANZA","120555"]
[null,null,null,null,null,null,null,"1704","LA ESPERANZA","170451"]
[null,null,null,null,null,null,null,"1701","LA FERROVIARIA","170119"]
[null,null,null,null,null,null,null,"0706","LA IBERIA","070652"]
[null,null,null,null,null,null,null,"2203","LA JOYA DE LOS SACHAS","220350"]
[null,null,null,null,null,null,null,"0714","LA LIBERTAD","071451"]
[null,null,null,null,null,null,null,"1701","LA LIBERTAD","170120"]
[null,null,null,null,null,null,null,"2402","LA LIBERTAD","240250"]
[null,null,null,null,null,null,null,"0403","LA LIBERTAD (ALIZO)","040352"]
[null,null,null,null,null,null,null,"1701","LA MAGDALENA","170121"]
[null,null,null,null,null,null,null,"0502","LA MANA","050250"]
[null,null,null,null,null,null,null,"0502","LA MANÁ ","050202"]
[null,null,null,null,null,null,null,"0501","LA MATRIZ","050104"]
[null,null,null,null,null,null,null,"0607","LA MATRIZ","060702"]
[null,null,null,null,null,null,null,"0710","LA MATRIZ","071001"]
[null,null,null,null,null,null,null,"1701","LA MENA","170122"]
[null,null,null,null,null,null,null,"1701","LA MERCED","170164"]
[null,null,null,null,null,null,null,"1801","LA MERCED","180105"]
[null,null,null,null,null,null,null,"1006","LA MERCED DE BUENOS AIRES","100652"]
[null,null,null,null,null,null,null,"0405","LA PAZ","040554"]
[null,null,null,null,null,null,null,"1904","LA PAZ","190451"]
[null,null,null,null,null,null,null,"0709","LA PEAÑA","070953"]
[null,null,null,null,null,null,null,"1801","LA PENÍNSULA","180106"]
[null,null,null,null,null,null,null,"1309","LA PILA","130952"]
[null,null,null,null,null,null,null,"0607","LA PROVIDENCIA","060753"]
[null,null,null,null,null,null,null,"0701","LA PROVIDENCIA","070101"]
[null,null,null,null,null,null,null,"0916","LA PUNTILLA (SATÉLITE)","091602"]
[null,null,null,null,null,null,null,"2105","LA SOFIA","210552"]
[null,null,null,null,null,null,null,"0710","LA SUSAYA","071002"]
[null,null,null,null,null,null,null,"1116","LA TINGUE","111651"]
[null,null,null,null,null,null,null,"0802","LA TOLA","080254"]
[null,null,null,null,null,null,null,"0304","LA TRONCAL","030450"]
[null,null,null,null,null,null,null,"0111","LA UNION","011152"]
[null,null,null,null,null,null,null,"0804","LA UNION","080455"]
[null,null,null,null,null,null,null,"0806","LA UNION","080651"]
[null,null,null,null,null,null,null,"1201","LA UNION","120155"]
[null,null,null,null,null,null,null,"1306","LA UNION","130654"]
[null,null,null,null,null,null,null,"1313","LA UNION","131353"]
[null,null,null,null,null,null,null,{"$f":"LEFT(J578,4)","v":"0504"},"LA VICTORIA","050455"]
[null,null,null,null,null,null,null,"0714","LA VICTORIA","071450"]
[null,null,null,null,null,null,null,"0714","LA VICTORIA","071401"]
[null,null,null,null,null,null,null,"1108","LA VICTORIA","110852"]
[null,null,null,null,null,null,null,"0919","LA VICTORIA (ÑAUZA)","091952"]
[null,null,null,null,null,null,null,"2302","LA VILLEGAS","230252"]
[null,null,null,null,null,null,null,"0807","LAGARTO","080753"]
[null,null,null,null,null,null,null,"2203","LAGO SAN PEDRO","220355"]
[null,null,null,null,null,null,null,"1108","LARAMA","110851"]
[null,null,null,null,null,null,null,"9001","LAS GOLONDRINAS","900151"]
[null,null,null,null,null,null,null,"0207","LAS MERCEDES","020701"]
[null,null,null,null,null,null,null,"0207","LAS NAVES","020750"]
[null,null,null,null,null,null,null,"0207","LAS NAVES","020702"]
[null,null,null,null,null,null,null,"0104","LAS NIEVES (CHAYA)","010453"]
[null,null,null,null,null,null,null,"0507","LAS PAMPAS","050753"]
[null,null,null,null,null,null,null,"1310","LASCANO","131054"]
[null,null,null,null,null,null,null,"0501","LATACUNGA","050150"]
[null,null,null,null,null,null,null,"0906","LAUREL","090653"]
[null,null,null,null,null,null,null,"1109","LAURO GUERRERO","110954"]
[null,null,null,null,null,null,null,"1314","LEONIDAS PLAZA GUTIÉRREZ","131402"]
[null,null,null,null,null,null,null,"1309","LEONIDAS PROAÑO","130905"]
[null,null,null,null,null,null,null,"0901","LETAMENDI","090106"]
[null,null,null,null,null,null,null,"0601","LICAN","060155"]
[null,null,null,null,null,null,null,"0601","LICTO","060156"]
[null,null,null,null,null,null,null,"0906","LIMONAL","090654"]
[null,null,null,null,null,null,null,"2104","LIMONCOCHA","210451"]
[null,null,null,null,null,null,null,"1113","LIMONES","111353"]
[null,null,null,null,null,null,null,"1504","LINARES","150452"]
[null,null,null,null,null,null,null,"1001","LITA","100155"]
[null,null,null,null,null,null,null,"0601","LIZARZABURU","060101"]
[null,null,null,null,null,null,null,"0101","LLACAO","010156"]
[null,null,null,null,null,null,null,"0605","LLAGOS","060554"]
[null,null,null,null,null,null,null,"1701","LLANO CHICO","170165"]
[null,null,null,null,null,null,null,"1802","LLIGUA","180251"]
[null,null,null,null,null,null,null,"1701","LLOA","170166"]
[null,null,null,null,null,null,null,"1111","LLUZHAPA","111153"]
[null,null,null,null,null,null,null,"1313","LODANA","131302"]
[null,null,null,null,null,null,null,"1410","LOGROÑO","141050"]
[null,null,null,null,null,null,null,"1101","LOJA","110150"]
[null,null,null,null,null,null,null,"0709","LOMA DE FRANCO","070902"]
[null,null,null,null,null,null,null,"0924","LOMAS DE SARGENTILLO","092450"]
[null,null,null,null,null,null,null,"2204","LORETO","220450"]
[null,null,null,null,null,null,null,"0402","LOS ANDES","040252"]
[null,null,null,null,null,null,null,"1805","LOS ANDES (CAB. EN POATUG)","180552"]
[null,null,null,null,null,null,null,"1207","LOS ANGELES","120754"]
[null,null,null,null,null,null,null,"1905","LOS ENCUENTROS","190553"]
[null,null,null,null,null,null,null,"1308","LOS ESTEROS","130801"]
[null,null,null,null,null,null,null,"0906","LOS LOJAS (ENRIQUE BAQUERIZO MORENO)","090656"]
[null,null,null,null,null,null,null,"1109","LOURDES","110902"]
[null,null,null,null,null,null,null,"0109","LUDO","010954"]
[null,null,null,null,null,null,null,"0301","LUIS CORDERO","030155"]
[null,null,null,null,null,null,null,"0103","LUIS CORDERO VEGA","010359"]
[null,null,null,null,null,null,null,"0111","LUIS GALARZA ORELLANA (CAB. EN DELEGSOL)","011153"]
[null,null,null,null,null,null,null,"0801","LUIS TELLO  (LAS PALMAS)","080104"]
[null,null,null,null,null,null,null,"0802","LUIS VARGAS TORRES (CAB. EN PLAYA DE ORO)","080255"]
[null,null,null,null,null,null,null,"2102","LUMBAQUI","210250"]
[null,null,null,null,null,null,null,"2301","LUZ DE AMERICA","230153"]
[null,null,null,null,null,null,null,"1108","MACARA","110850"]
[null,null,null,null,null,null,null,"1108","MACARÁ  (MANUEL ENRIQUE RENGEL SUQUILANDA)","110802"]
[null,null,null,null,null,null,null,"1401","MACAS","140150"]
[null,null,null,null,null,null,null,"1703","MACHACHI","170350"]
[null,null,null,null,null,null,null,"0701","MACHALA","070150"]
[null,null,null,null,null,null,null,"0701","MACHALA","070102"]
[null,null,null,null,null,null,null,"1319","MACHALILLA","131951"]
[null,null,null,null,null,null,null,{"$f":"LEFT(J642,4)","v":"0101"},"MACHÁNGARA","010108"]
[null,null,null,null,null,null,null,"1409","MACUMA","140952"]
[null,null,null,null,null,null,null,"1602","MADRE TIERRA","160251"]
[null,null,null,null,null,null,null,"0203","MAGDALENA (CHAPACOTO)","020353"]
[null,null,null,null,null,null,null,"0906","MAGRO","090605"]
[null,null,null,null,null,null,null,"0801","MAJUA","080159"]
[null,null,null,null,null,null,null,"1101","MALACATOS (VALLADOLID)","110156"]
[null,null,null,null,null,null,null,"1704","MALCHINGUI","170452"]
[null,null,null,null,null,null,null,"0401","MALDONADO","040154"]
[null,null,null,null,null,null,null,"0601","MALDONADO","060102"]
[null,null,null,null,null,null,null,"0802","MALDONADO","080256"]
[null,null,null,null,null,null,null,"0804","MALIMPIA","080453"]
[null,null,null,null,null,null,null,"0713","MALVAS","071356"]
[null,null,null,null,null,null,null,"9003","MANGA DEL CURA","900351"]
[null,null,null,null,null,null,null,"1113","MANGAHURCO","111351"]
[null,null,null,null,null,null,null,"2401","MANGLARALTO","240154"]
[null,null,null,null,null,null,null,"1308","MANTA","130850"]
[null,null,null,null,null,null,null,"1308","MANTA","130802"]
[null,null,null,null,null,null,null,"1111","MANU","111154"]
[null,null,null,null,null,null,null,"1703","MANUEL CORNEJO ASTORGA (TANDAPI)","170355"]
[null,null,null,null,null,null,null,"1306","MANUEL INOCENCIO PARRALES Y GUALE","130602"]
[null,null,null,null,null,null,null,"0304","MANUEL J. CALLE","030451"]
[null,null,null,null,null,null,null,"0708","MARCABELI","070850"]
[null,null,null,null,null,null,null,"1808","MARCOS ESPINEL (CHACATA)","180853"]
[null,null,null,null,null,null,null,"1005","MARIANO ACOSTA","100552"]
[null,null,null,null,null,null,null,"0103","MARIANO MORENO","010354"]
[null,null,null,null,null,null,null,"0406","MARISCAL SUCRE","040651"]
[null,null,null,null,null,null,null,"1701","MARISCAL SUCRE","170123"]
[null,null,null,null,null,null,null,"0910","MARISCAL SUCRE (HUAQUES)","091053"]
[null,null,null,null,null,null,null,"0805","MATAJE (CAB. EN SANTANDER)","080557"]
[null,null,null,null,null,null,null,"9008","MATILDE ESTHER","900851"]
[null,null,null,null,null,null,null,"1801","MATRIZ","180107"]
[null,null,null,null,null,null,null,"0609","MATUS","060952"]
[null,null,null,null,null,null,null,"1306","MEMBRILLAL","130656"]
[null,null,null,null,null,null,null,"1302","MEMBRILLO","130251"]
[null,null,null,null,null,null,null,"1602","MERA","160250"]
[null,null,null,null,null,null,null,"1110","MERCADILLO","111054"]
[null,null,null,null,null,null,null,"1402","MERCEDES MOLINA","140202"]
[null,null,null,null,null,null,null,"0703","MILAGRO","070353"]
[null,null,null,null,null,null,null,"0910","MILAGRO","091050"]
[null,null,null,null,null,null,null,"1114","MILAGROS","111453"]
[null,null,null,null,null,null,null,"0707","MILTON REYES","070704"]
[null,null,null,null,null,null,null,"1707","MINDO","170751"]
[null,null,null,null,null,null,null,"0404","MIRA (CHONTAHUASI)","040450"]
[null,null,null,null,null,null,null,"1212","MOCACHE","121250"]
[null,null,null,null,null,null,null,"1804","MOCHA","180450"]
[null,null,null,null,null,null,null,"0101","MOLLETURO","010157"]
[null,null,null,null,null,null,null,"0101","MONAY","010109"]
[null,null,null,null,null,null,null,"1203","MONTALVO","120350"]
[null,null,null,null,null,null,null,"1801","MONTALVO","180158"]
[null,null,null,null,null,null,null,"1601","MONTALVO (ANDOAS)","160156"]
[null,null,null,null,null,null,null,"0807","MONTALVO (CAB EN HORQUETA)","080754"]
[null,null,null,null,null,null,null,"0402","MONTE OLIVO","040253"]
[null,null,null,null,null,null,null,"1309","MONTECRISTI","130950"]
[null,null,null,null,null,null,null,"1309","MONTECRISTI","130902"]
[null,null,null,null,null,null,null,"2302","MONTERREY","230251"]
[null,null,null,null,null,null,null,"0711","MORALES","071152"]
[null,null,null,null,null,null,null,"0503","MORASPUNGO","050351"]
[null,null,null,null,null,null,null,"0710","MOROMORO (CAB. EN EL VADO)","071053"]
[null,null,null,null,null,null,null,"0901","MORRO","090153"]
[null,null,null,null,null,null,null,"0803","MUISNE","080350"]
[null,null,null,null,null,null,null,"0505","MULALILLO","050553"]
[null,null,null,null,null,null,null,"0501","MULALO","050156"]
[null,null,null,null,null,null,null,"0505","MULLIQUINDIL (SANTA ANA)","050554"]
[null,null,null,null,null,null,null,{"$f":"LEFT(J706,4)","v":"0602"},"MULTITUD","060255"]
[null,null,null,null,null,null,null,"0713","MULUNCAY GRANDE","071357"]
[null,null,null,null,null,null,null,"0104","NABON","010450"]
[null,null,null,null,null,null,null,"1107","NAMBACOLA","110753"]
[null,null,null,null,null,null,null,"1701","NANEGAL","170168"]
[null,null,null,null,null,null,null,"1701","NANEGALITO","170169"]
[null,null,null,null,null,null,null,"0911","NARANJAL","091150"]
[null,null,null,null,null,null,null,"0912","NARANJITO","091250"]
[null,null,null,null,null,null,null,"0925","NARCISA DE JESUS","092550"]
[null,null,null,null,null,null,null,"1701","NAYON","170170"]
[null,null,null,null,null,null,null,"0302","NAZON (CAB. EN PAMPA DE DOMINGUEZ)","030251"]
[null,null,null,null,null,null,null,"1205","NICOLÁS INFANTE DÍAZ","120505"]
[null,null,null,null,null,null,null,"1316","NOBOA","131652"]
[null,null,null,null,null,null,null,"1701","NONO","170171"]
[null,null,null,null,null,null,null,"1112","NUEVA FATIMA","111251"]
[null,null,null,null,null,null,null,"2101","NUEVA LOJA","210150"]
[null,null,null,null,null,null,null,"1402","NUEVA TARQUI","140256"]
[null,null,null,null,null,null,null,"0701","NUEVE DE MAYO","070104"]
[null,null,null,null,null,null,null,"0901","NUEVE DE OCTUBRE","090107"]
[null,null,null,null,null,null,null,"1903","NUEVO PARAISO","190352"]
[null,null,null,null,null,null,null,"2201","NUEVO PARAISO (CAB. EN UNION )","220159"]
[null,null,null,null,null,null,null,"1909","NUEVO QUITO","190952"]
[null,null,null,null,null,null,null,"2202","NUEVO ROCAFUERTE","220250"]
[null,null,null,null,null,null,null,"0712","NUEVO SANTA ROSA","071205"]
[null,null,null,null,null,null,null,"0101","NULTI","010158"]
[null,null,null,null,null,null,null,"0709","OCHOA LEÓN (MATRIZ)","070903"]
[null,null,null,null,null,null,null,"0101","OCTAVIO CORDERO PALACIOS (STA. ROSA)","010159"]
[null,null,null,null,null,null,null,"1116","OLMEDO","111650"]
[null,null,null,null,null,null,null,"1318","OLMEDO","131850"]
[null,null,null,null,null,null,null,"0901","OLMEDO  (SAN ALEJO) ","090108"]
[null,null,null,null,null,null,null,"1702","OLMEDO (PESILLO)","170253"]
[null,null,null,null,null,null,null,"1109","ORIANGA","110956"]
[null,null,null,null,null,null,null,"1004","OTAVALO","100450"]
[null,null,null,null,null,null,null,"1702","OTON","170254"]
[null,null,null,null,null,null,null,"1504","OYACACHI","150453"]
[null,null,null,null,null,null,null,"1006","PABLO ARENAS","100653"]
[null,null,null,null,null,null,null,"1411","PABLO SEXTO","141150"]
[null,null,null,null,null,null,null,"2101","PACAYACU","210156"]
[null,null,null,null,null,null,null,"0101","PACCHA","010160"]
[null,null,null,null,null,null,null,"0703","PACCHA","070350"]
[null,null,null,null,null,null,null,"1906","PACHICUTZA","190652"]
[null,null,null,null,null,null,null,"1701","PACTO","170172"]
[null,null,null,null,null,null,null,"0906","PADRE JUAN BAUTISTA AGUIRRE","090606"]
[null,null,null,null,null,null,null,"1310","PAJAN","131050"]
[null,null,null,null,null,null,null,"1908","PALANDA","190850"]
[null,null,null,null,null,null,null,"1209","PALENQUE","120950"]
[null,null,null,null,null,null,null,"0913","PALESTINA","091350"]
[null,null,null,null,null,null,null,"1113","PALETILLAS","111354"]
[null,null,null,null,null,null,null,"0608","PALLATANGA","060850"]
[null,null,null,null,null,null,null,"2103","PALMA ROJA","210351"]
[null,null,null,null,null,null,null,"0702","PALMALES","070254"]
[null,null,null,null,null,null,null,"0113","PALMAS","011352"]
[null,null,null,null,null,null,null,"0606","PALMIRA","060652"]
[null,null,null,null,null,null,null,"0507","PALO QUEMADO","050754"]
[null,null,null,null,null,null,null,"1404","PALORA (METZERA)","140450"]
[null,null,null,null,null,null,null,"0802","PAMPANAL DE BOLIVAR","080257"]
[null,null,null,null,null,null,null,"1408","PAN DE AZUCAR","140851"]
[null,null,null,null,null,null,null,"0304","PANCHO NEGRO","030452"]
[null,null,null,null,null,null,null,"1907","PANGUINTZA","190753"]
[null,null,null,null,null,null,null,"1501","PANO","150154"]
[null,null,null,null,null,null,null,"0505","PANSALEO","050555"]
[null,null,null,null,null,null,null,"2104","PAÑACOCHA","210452"]
[null,null,null,null,null,null,null,"1507","PAPALLACTA","150753"]
[null,null,null,null,null,null,null,"1909","PAQUISHA","190950"]
[null,null,null,null,null,null,null,{"$f":"LEFT(J770,4)","v":"0919"},"PARAÍSO","091904"]
[null,null,null,null,null,null,null,"1801","PASA","180159"]
[null,null,null,null,null,null,null,"0709","PASAJE","070950"]
[null,null,null,null,null,null,null,"0901","PASCUALES","090115"]
[null,null,null,null,null,null,null,"1004","PATAQUI","100454"]
[null,null,null,null,null,null,null,"1805","PATATE","180550"]
[null,null,null,null,null,null,null,"1210","PATRICIA PILAR","121051"]
[null,null,null,null,null,null,null,"1405","PATUCA","140553"]
[null,null,null,null,null,null,null,"0105","PAUTE","010550"]
[null,null,null,null,null,null,null,"1317","PEDERNALES","131750"]
[null,null,null,null,null,null,null,"0914","PEDRO CARBO","091450"]
[null,null,null,null,null,null,null,"1306","PEDRO PABLO GOMEZ","130657"]
[null,null,null,null,null,null,null,"1708","PEDRO VICENTE MALDONADO","170850"]
[null,null,null,null,null,null,null,"1807","PELILEO","180750"]
[null,null,null,null,null,null,null,"1807","PELILEO","180701"]
[null,null,null,null,null,null,null,"1807","PELILEO GRANDE","180702"]
[null,null,null,null,null,null,null,"0609","PENIPE","060950"]
[null,null,null,null,null,null,null,"1003","PEÑAHERRERA","100354"]
[null,null,null,null,null,null,null,"1701","PERUCHO","170174"]
[null,null,null,null,null,null,null,"0405","PIARTAL","040555"]
[null,null,null,null,null,null,null,"1801","PICAIGUA","180160"]
[null,null,null,null,null,null,null,"1311","PICHINCHA","131150"]
[null,null,null,null,null,null,null,"1301","PICOAZÁ","130104"]
[null,null,null,null,null,null,null,"0710","PIEDRAS","071054"]
[null,null,null,null,null,null,null,"1701","PIFO","170175"]
[null,null,null,null,null,null,null,"1801","PILAGUIN (PILAHUIN)","180161"]
[null,null,null,null,null,null,null,"0504","PILALO","050456"]
[null,null,null,null,null,null,null,"1808","PILLARO","180850"]
[null,null,null,null,null,null,null,"1808","PÍLLARO","180802"]
[null,null,null,null,null,null,null,"1005","PIMAMPIRO","100550"]
[null,null,null,null,null,null,null,"1201","PIMOCHA","120154"]
[null,null,null,null,null,null,null,"1114","PINDAL","111450"]
[null,null,null,null,null,null,null,"0301","PINDILIG","030156"]
[null,null,null,null,null,null,null,"1804","PINGUILI","180451"]
[null,null,null,null,null,null,null,"0503","PINLLOPATA","050352"]
[null,null,null,null,null,null,null,"1701","PINTAG","170176"]
[null,null,null,null,null,null,null,"0710","PIÑAS","071050"]
[null,null,null,null,null,null,null,"0710","PIÑAS GRANDE","071003"]
[null,null,null,null,null,null,null,"0401","PIOTER","040155"]
[null,null,null,null,null,null,null,"1801","PISHILATA","180108"]
[null,null,null,null,null,null,null,"0602","PISTISHI (NARIZ DEL DIABLO)","060256"]
[null,null,null,null,null,null,null,"2302","PLAN PILOTO","230253"]
[null,null,null,null,null,null,null,"0714","PLATANILLOS","071402"]
[null,null,null,null,null,null,null,"1003","PLAZA GUTIERREZ (CALVARIO)","100355"]
[null,null,null,null,null,null,null,"0501","POALO","050158"]
[null,null,null,null,null,null,null,"1701","POMASQUI","170177"]
[null,null,null,null,null,null,null,"1601","POMONA","160157"]
[null,null,null,null,null,null,null,"2203","POMPEYA","220352"]
[null,null,null,null,null,null,null,"1701","PONCEANO","170124"]
[null,null,null,null,null,null,null,"0711","PORTOVELO","071150"]
[null,null,null,null,null,null,null,"1301","PORTOVIEJO","130150"]
[null,null,null,null,null,null,null,"1301","PORTOVIEJO","130101"]
[null,null,null,null,null,null,null,"0901","POSORJA","090156"]
[null,null,null,null,null,null,null,"1104","POZUL (SAN JUAN DE POZUL)","110455"]
[null,null,null,null,null,null,null,"1808","PRESIDENTE URBINA (CHAGRAPAMBA -PATZUCUL)","180854"]
[null,null,null,null,null,null,null,"0111","PRINCIPAL","011151"]
[null,null,null,null,null,null,null,"0709","PROGRESO","070954"]
[null,null,null,null,null,null,null,"1902","PUCAPAMBA","190256"]
[null,null,null,null,null,null,null,"0106","PUCARA","010650"]
[null,null,null,null,null,null,null,"0502","PUCAYACU","050252"]
[null,null,null,null,null,null,null,"1301","PUEBLO NUEVO","130154"]
[null,null,null,null,null,null,null,"1204","PUEBLOVIEJO","120450"]
[null,null,null,null,null,null,null,"0609","PUELA","060953"]
[null,null,null,null,null,null,null,"1701","PUELLARO","170178"]
[null,null,null,null,null,null,null,{"$f":"LEFT(J834,4)","v":"1701"},"PUEMBO","170179"]
[null,null,null,null,null,null,null,"1701","PUENGASÍ","170125"]
[null,null,null,null,null,null,null,"2003","PUERTO AYORA","200350"]
[null,null,null,null,null,null,null,"2001","PUERTO BAQUERIZO MORENO","200150"]
[null,null,null,null,null,null,null,"0701","PUERTO BOLÍVAR","070103"]
[null,null,null,null,null,null,null,"2103","PUERTO BOLIVAR (PUERTO MONTUFAR)","210352"]
[null,null,null,null,null,null,null,"1306","PUERTO DE CAYO","130658"]
[null,null,null,null,null,null,null,"2103","PUERTO EL CARMEN DEL PUTUMAYO","210350"]
[null,null,null,null,null,null,null,"2201","PUERTO FRANCISCO DE ORELLANA (EL COCA)","220150"]
[null,null,null,null,null,null,null,"0712","PUERTO JELÍ","071202"]
[null,null,null,null,null,null,null,"2102","PUERTO LIBRE","210254"]
[null,null,null,null,null,null,null,"2301","PUERTO LIMON","230152"]
[null,null,null,null,null,null,null,"1319","PUERTO LOPEZ","131950"]
[null,null,null,null,null,null,null,"1501","PUERTO MISAHUALLI","150155"]
[null,null,null,null,null,null,null,"2204","PUERTO MURIALDO","220452"]
[null,null,null,null,null,null,null,"1501","PUERTO NAPO","150156"]
[null,null,null,null,null,null,null,"1204","PUERTO PECHICHE","120451"]
[null,null,null,null,null,null,null,"1709","PUERTO QUITO","170950"]
[null,null,null,null,null,null,null,"2103","PUERTO RODRIGUEZ","210353"]
[null,null,null,null,null,null,null,"2002","PUERTO VILLAMIL","200250"]
[null,null,null,null,null,null,null,"0504","PUJILI","050450"]
[null,null,null,null,null,null,null,"0602","PUMALLACTA","060257"]
[null,null,null,null,null,null,null,"1409","PUMPUENTSA","140954"]
[null,null,null,null,null,null,null,"0901","PUNA","090157"]
[null,null,null,null,null,null,null,"0601","PUNGALA","060157"]
[null,null,null,null,null,null,null,"0601","PUNIN","060158"]
[null,null,null,null,null,null,null,"1101","PUNZARA","110106"]
[null,null,null,null,null,null,null,"1107","PURUNUMA (EGUIGUREN)","110754"]
[null,null,null,null,null,null,null,"1601","PUYO","160150"]
[null,null,null,null,null,null,null,"1806","QUERO","180650"]
[null,null,null,null,null,null,null,"1205","QUEVEDO","120550"]
[null,null,null,null,null,null,null,"1205","QUEVEDO","120501"]
[null,null,null,null,null,null,null,"1115","QUILANGA","111550"]
[null,null,null,null,null,null,null,"0601","QUIMIAG","060159"]
[null,null,null,null,null,null,null,"1101","QUINARA","110163"]
[null,null,null,null,null,null,null,"1809","QUINCHICOTO","180951"]
[null,null,null,null,null,null,null,"0101","QUINGEO","010161"]
[null,null,null,null,null,null,null,"0803","QUINGUE (OLMEDO PERDOMO FRANCO)","080354"]
[null,null,null,null,null,null,null,"1213","QUINSALOMA","121350"]
[null,null,null,null,null,null,null,"1003","QUIROGA","100356"]
[null,null,null,null,null,null,null,"1302","QUIROGA","130252"]
[null,null,null,null,null,null,null,"1801","QUISAPINCHA (QUIZAPINCHA)","180162"]
[null,null,null,null,null,null,null,"1701","QUITO","170150"]
[null,null,null,null,null,null,null,"1701","QUITUMBE","170126"]
[null,null,null,null,null,null,null,"0503","RAMON CAMPAÑA","050353"]
[null,null,null,null,null,null,null,"0205","REGULO DE MORA","020553"]
[null,null,null,null,null,null,null,"0103","REMIGIO CRESPO TORAL (GULAG)","010356"]
[null,null,null,null,null,null,null,"0101","RICAURTE","010162"]
[null,null,null,null,null,null,null,"1206","RICAURTE","120651"]
[null,null,null,null,null,null,null,"1303","RICAURTE","130356"]
[null,null,null,null,null,null,null,"1401","RIO BLANCO","140164"]
[null,null,null,null,null,null,null,"0706","RIO BONITO","070654"]
[null,null,null,null,null,null,null,"1601","RIO CORRIENTES","160158"]
[null,null,null,null,null,null,null,"1802","RIO NEGRO","180252"]
[null,null,null,null,null,null,null,"1601","RIO TIGRE","160159"]
[null,null,null,null,null,null,null,"2301","RÍO TOACHI","230104"]
[null,null,null,null,null,null,null,"1802","RIO VERDE","180253"]
[null,null,null,null,null,null,null,"2301","RÍO VERDE","230105"]
[null,null,null,null,null,null,null,"0601","RIOBAMBA","060150"]
[null,null,null,null,null,null,null,"1301","RIOCHICO (RIO CHICO)","130155"]
[null,null,null,null,null,null,null,"0807","RIOVERDE","080750"]
[null,null,null,null,null,null,null,"0301","RIVERA","030157"]
[null,null,null,null,null,null,null,"0910","ROBERTO ASTUDILLO (CAB. EN CRUCE DE VENECIA)","091054"]
[null,null,null,null,null,null,null,"0901","ROCA","090109"]
[null,null,null,null,null,null,null,{"$f":"LEFT(J898,4)","v":"0807"},"ROCAFUERTE","080755"]
[null,null,null,null,null,null,null,"0901","ROCAFUERTE","090110"]
[null,null,null,null,null,null,null,"1312","ROCAFUERTE","131250"]
[null,null,null,null,null,null,null,"2105","ROSA FLORIDA","210553"]
[null,null,null,null,null,null,null,"0804","ROSA ZARATE (QUININDE)","080450"]
[null,null,null,null,null,null,null,"1701","RUMIPAMBA","170127"]
[null,null,null,null,null,null,null,"1705","RUMIPAMBA","170552"]
[null,null,null,null,null,null,null,"1806","RUMIPAMBA","180651"]
[null,null,null,null,null,null,null,"2203","RUMIPAMBA","220356"]
[null,null,null,null,null,null,null,"0914","SABANILLA","091452"]
[null,null,null,null,null,null,null,"1104","SABANILLA","110456"]
[null,null,null,null,null,null,null,"1901","SABANILLA","190155"]
[null,null,null,null,null,null,null,"1108","SABIANGO (LA CAPILLA)","110853"]
[null,null,null,null,null,null,null,"1107","SACAPALCA","110756"]
[null,null,null,null,null,null,null,"1001","SAGRARIO","100103"]
[null,null,null,null,null,null,null,"1003","SAGRARIO","100301"]
[null,null,null,null,null,null,null,"1319","SALANGO","131952"]
[null,null,null,null,null,null,null,"1807","SALASACA","180758"]
[null,null,null,null,null,null,null,"0711","SALATI","071153"]
[null,null,null,null,null,null,null,"0803","SALIMA","080355"]
[null,null,null,null,null,null,null,"0201","SALINAS","020155"]
[null,null,null,null,null,null,null,"1001","SALINAS","100156"]
[null,null,null,null,null,null,null,"2403","SALINAS","240350"]
[null,null,null,null,null,null,null,"0713","SALVIAS","071359"]
[null,null,null,null,null,null,null,"0916","SAMBORONDON","091650"]
[null,null,null,null,null,null,null,"0916","SAMBORONDÓN","091601"]
[null,null,null,null,null,null,null,"0607","SAN ANDRES","060754"]
[null,null,null,null,null,null,null,"1808","SAN ANDRES","180855"]
[null,null,null,null,null,null,null,"1902","SAN ANDRES","190259"]
[null,null,null,null,null,null,null,"0303","SAN ANTONIO","030358"]
[null,null,null,null,null,null,null,"0712","SAN ANTONIO","071254"]
[null,null,null,null,null,null,null,"1001","SAN ANTONIO","100157"]
[null,null,null,null,null,null,null,"1109","SAN ANTONIO","110957"]
[null,null,null,null,null,null,null,"1303","SAN ANTONIO","130357"]
[null,null,null,null,null,null,null,"1701","SAN ANTONIO","170180"]
[null,null,null,null,null,null,null,"1403","SAN ANTONIO (CAB EN SAN ANTONIO CENTRO)","140353"]
[null,null,null,null,null,null,null,"0609","SAN ANTONIO DE BAYUSHIG","060954"]
[null,null,null,null,null,null,null,"1115","SAN ANTONIO DE LAS ARADAS (CAB. EN LAS ARADAS)","111552"]
[null,null,null,null,null,null,null,"1111","SAN ANTONIO DE QUMBE (CUMBE)","111155"]
[null,null,null,null,null,null,null,"1701","SAN BARTOLO","170128"]
[null,null,null,null,null,null,null,"0109","SAN BARTOLOME","010955"]
[null,null,null,null,null,null,null,"1801","SAN BARTOLOME DE PINLLO","180163"]
[null,null,null,null,null,null,null,"0101","SAN BLAS","010110"]
[null,null,null,null,null,null,null,"1006","SAN BLAS","100654"]
[null,null,null,null,null,null,null,"0501","SAN BUENAVENTURA","050105"]
[null,null,null,null,null,null,null,"1205","SAN CAMILO","120502"]
[null,null,null,null,null,null,null,"0911","SAN CARLOS","091152"]
[null,null,null,null,null,null,null,"1205","SAN CARLOS","120553"]
[null,null,null,null,null,null,null,"2203","SAN CARLOS","220353"]
[null,null,null,null,null,null,null,"1901","SAN CARLOS DE LAS MINAS","190158"]
[null,null,null,null,null,null,null,"1408","SAN CARLOS DE LIMON","140852"]
[null,null,null,null,null,null,null,"1205","SAN CRISTÓBAL","120506"]
[null,null,null,null,null,null,null,"0105","SAN CRISTOBAL (CARLOS ORDOÑEZ LAZO)","010559"]
[null,null,null,null,null,null,null,"0110","SAN FELIPE DE OÑA","011050"]
[null,null,null,null,null,null,null,"0107","SAN FERNANDO","010750"]
[null,null,null,null,null,null,null,"1801","SAN FERNANDO (PASA SAN FERNANDO)","180164"]
[null,null,null,null,null,null,null,"0301","SAN FRANCISCO","030104"]
[null,null,null,null,null,null,null,"0803","SAN FRANCISCO","080356"]
[null,null,null,null,null,null,null,"1001","SAN FRANCISCO","100104"]
[null,null,null,null,null,null,null,"1003","SAN FRANCISCO","100302"]
[null,null,null,null,null,null,null,"1801","SAN FRANCISCO","180109"]
[null,null,null,null,null,null,null,"1507","SAN FRANCISCO DE BORJA (VIRGILIO DAVILA)","150754"]
[null,null,null,null,null,null,null,"1405","SAN FRANCISCO DE CHINIMBIMI","140557"]
[null,null,null,null,null,null,null,"1002","SAN FRANCISCO DE NATABUELA","100252"]
[null,null,null,null,null,null,null,{"$f":"LEFT(J962,4)","v":"1305"},"SAN FRANCISCO DE NOVILLO (CAB. EN NOVILLO)","130551"]
[null,null,null,null,null,null,null,"0802","SAN FRANCISCO DE ONZOLE","080258"]
[null,null,null,null,null,null,null,"0302","SAN FRANCISCO DE SAGEO","030252"]
[null,null,null,null,null,null,null,"1005","SAN FRANCISCO DE SIGSIPAMBA","100553"]
[null,null,null,null,null,null,null,"1908","SAN FRANCISCO DEL VERGEL","190852"]
[null,null,null,null,null,null,null,"0405","SAN GABRIEL","040550"]
[null,null,null,null,null,null,null,"0102","SAN GERARDO","010252"]
[null,null,null,null,null,null,null,"0607","SAN GERARDO DE PACAICAGUAN","060755"]
[null,null,null,null,null,null,null,"0803","SAN GREGORIO","080357"]
[null,null,null,null,null,null,null,"0403","SAN ISIDRO","040353"]
[null,null,null,null,null,null,null,"0714","SAN ISIDRO","071453"]
[null,null,null,null,null,null,null,"1314","SAN ISIDRO","131457"]
[null,null,null,null,null,null,null,"1401","SAN ISIDRO","140156"]
[null,null,null,null,null,null,null,"0607","SAN ISIDRO DE PATULU","060756"]
[null,null,null,null,null,null,null,"1701","SAN ISIDRO DEL INCA","170129"]
[null,null,null,null,null,null,null,"0905","SAN JACINTO","090551"]
[null,null,null,null,null,null,null,"1210","SAN JACINTO DE BUENA FE","121050"]
[null,null,null,null,null,null,null,"1210","SAN JACINTO DE BUENA FÉ","121001"]
[null,null,null,null,null,null,null,"1408","SAN JACINTO DE WAKAMBEIS","140853"]
[null,null,null,null,null,null,null,"0920","SAN JACINTO DE YAGUACHI","092050"]
[null,null,null,null,null,null,null,"2301","SAN JACINTO DEL BUA","230154"]
[null,null,null,null,null,null,null,"0805","SAN JAVIER DE CACHAVI (CAB. EN SAN JAVIER)","080558"]
[null,null,null,null,null,null,null,"0101","SAN JOAQUIN","010163"]
[null,null,null,null,null,null,null,"0703","SAN JOSE","070354"]
[null,null,null,null,null,null,null,"1603","SAN JOSE","160351"]
[null,null,null,null,null,null,null,"0405","SAN JOSÉ","040502"]
[null,null,null,null,null,null,null,"1103","SAN JOSÉ","110302"]
[null,null,null,null,null,null,null,"2401","SAN JOSE DE ANCON","240156"]
[null,null,null,null,null,null,null,"1702","SAN JOSE DE AYORA","170256"]
[null,null,null,null,null,null,null,"0802","SAN JOSE DE CAYAPAS","080263"]
[null,null,null,null,null,null,null,"1002","SAN JOSE DE CHALTURA","100253"]
[null,null,null,null,null,null,null,"0803","SAN JOSE DE CHAMANGA","080358"]
[null,null,null,null,null,null,null,"0203","SAN JOSE DE CHIMBO","020350"]
[null,null,null,null,null,null,null,"2204","SAN JOSE DE DAHUANO","220454"]
[null,null,null,null,null,null,null,"2201","SAN JOSE DE GUAYUSA","220160"]
[null,null,null,null,null,null,null,"1701","SAN JOSE DE MINAS","170181"]
[null,null,null,null,null,null,null,"1412","SAN JOSE DE MORONA","141251"]
[null,null,null,null,null,null,null,"2204","SAN JOSE DE PAYAMINO","220453"]
[null,null,null,null,null,null,null,"1808","SAN JOSE DE POALO","180856"]
[null,null,null,null,null,null,null,"1004","SAN JOSE DE QUICHINCHE","100455"]
[null,null,null,null,null,null,null,"0109","SAN JOSE DE RARANGA","010956"]
[null,null,null,null,null,null,null,"0607","SAN JOSE DEL CHAZO","060757"]
[null,null,null,null,null,null,null,"0202","SAN JOSE DEL TAMBO (TAMBOPAMBA)","020251"]
[null,null,null,null,null,null,null,"0103","SAN JUAN","010357"]
[null,null,null,null,null,null,null,"0601","SAN JUAN","060160"]
[null,null,null,null,null,null,null,"1204","SAN JUAN","120452"]
[null,null,null,null,null,null,null,"1701","SAN JUAN","170130"]
[null,null,null,null,null,null,null,"1408","SAN JUAN BOSCO","140850"]
[null,null,null,null,null,null,null,"0703","SAN JUAN DE CERRO AZUL","070355"]
[null,null,null,null,null,null,null,"1004","SAN JUAN DE ILUMAN","100456"]
[null,null,null,null,null,null,null,"1501","SAN JUAN DE MUYUNA","150158"]
[null,null,null,null,null,null,null,"0501","SAN JUAN DE PASTOCALLE","050159"]
[null,null,null,null,null,null,null,"0201","SAN LORENZO","020156"]
[null,null,null,null,null,null,null,"0805","SAN LORENZO","080550"]
[null,null,null,null,null,null,null,"1308","SAN LORENZO","130851"]
[null,null,null,null,null,null,null,"1306","SAN LORENZO DE JIPIJAPA","130603"]
[null,null,null,null,null,null,null,"1101","SAN LUCAS","110157"]
[null,null,null,null,null,null,null,"0601","SAN LUIS","060161"]
[null,null,null,null,null,null,null,"1004","SAN LUIS","100402"]
[null,null,null,null,null,null,null,"2201","SAN LUIS DE ARMENIA","220161"]
[null,null,null,null,null,null,null,"1405","SAN LUIS DE EL ACHO (CAB EN EL ACHO)","140554"]
[null,null,null,null,null,null,null,"0201","SAN LUIS DE PAMBIL","020160"]
[null,null,null,null,null,null,null,"0111","SAN MARTIN DE PUZHIO","011154"]
[null,null,null,null,null,null,null,"0801","SAN MATEO","080163"]
[null,null,null,null,null,null,null,{"$f":"LEFT(J1026,4)","v":"0919"},"SAN MATEO","091905"]
[null,null,null,null,null,null,null,"1308","SAN MATEO","130803"]
[null,null,null,null,null,null,null,"0205","SAN MIGUEL","020550"]
[null,null,null,null,null,null,null,"0301","SAN MIGUEL","030158"]
[null,null,null,null,null,null,null,"0505","SAN MIGUEL","050550"]
[null,null,null,null,null,null,null,"1403","SAN MIGUEL DE CONCHAY","140356"]
[null,null,null,null,null,null,null,"1402","SAN MIGUEL DE CUYES","140257"]
[null,null,null,null,null,null,null,"1001","SAN MIGUEL DE IBARRA","100150"]
[null,null,null,null,null,null,null,"1707","SAN MIGUEL DE LOS BANCOS","170750"]
[null,null,null,null,null,null,null,"1808","SAN MIGUELITO","180857"]
[null,null,null,null,null,null,null,"1004","SAN PABLO","100457"]
[null,null,null,null,null,null,null,"1301","SAN PABLO","130105"]
[null,null,null,null,null,null,null,"1313","SAN PABLO (CAB EN PUEBLO NUEVO)","131355"]
[null,null,null,null,null,null,null,"0205","SAN PABLO (SAN PABLO DE ATENAS)","020554"]
[null,null,null,null,null,null,null,"1111","SAN PABLO DE TENTA","111156"]
[null,null,null,null,null,null,null,"1503","SAN PABLO DE USHPAYACU","150354"]
[null,null,null,null,null,null,null,"1103","SAN PEDRO DE LA BENDITA","110353"]
[null,null,null,null,null,null,null,"2104","SAN PEDRO DE LOS COFANES","210454"]
[null,null,null,null,null,null,null,"1304","SAN PEDRO DE SUMA","130452"]
[null,null,null,null,null,null,null,"1705","SAN PEDRO DE TABOADA","170502"]
[null,null,null,null,null,null,null,"1101","SAN PEDRO DE VILCABAMBA","110158"]
[null,null,null,null,null,null,null,"1301","SAN PLACIDO","130156"]
[null,null,null,null,null,null,null,"0402","SAN RAFAEL","040255"]
[null,null,null,null,null,null,null,"1004","SAN RAFAEL","100458"]
[null,null,null,null,null,null,null,"1705","SAN RAFAEL","170503"]
[null,null,null,null,null,null,null,"0106","SAN RAFAEL DE SHARUG","010652"]
[null,null,null,null,null,null,null,"1002","SAN ROQUE","100254"]
[null,null,null,null,null,null,null,"0710","SAN ROQUE (AMBROSIO MALDONADO)","071055"]
[null,null,null,null,null,null,null,"2104","SAN ROQUE (CAB. EN SAN VICENTE)","210453"]
[null,null,null,null,null,null,null,"0108","SAN SALVADOR DE CAÑARIBAMBA","010854"]
[null,null,null,null,null,null,null,"0203","SAN SEBASTIAN","020354"]
[null,null,null,null,null,null,null,"1311","SAN SEBASTIAN","131152"]
[null,null,null,null,null,null,null,"0101","SAN SEBASTIÁN","010111"]
[null,null,null,null,null,null,null,"1101","SAN SEBASTIÁN","110102"]
[null,null,null,null,null,null,null,"1111","SAN SEBASTIAN DE YULUC","111157"]
[null,null,null,null,null,null,null,"2203","SAN SEBASTIAN DEL COCA","220354"]
[null,null,null,null,null,null,null,"0201","SAN SIMON (YACOTO)","020157"]
[null,null,null,null,null,null,null,"0112","SAN VICENTE","011253"]
[null,null,null,null,null,null,null,"0205","SAN VICENTE","020556"]
[null,null,null,null,null,null,null,"1102","SAN VICENTE","110203"]
[null,null,null,null,null,null,null,"1322","SAN VICENTE","132250"]
[null,null,null,null,null,null,null,"2204","SAN VICENTE DE HUATICOCHA","220455"]
[null,null,null,null,null,null,null,"0402","SAN VICENTE DE PUSIR","040254"]
[null,null,null,null,null,null,null,"1404","SANGAY (CAB EN NAYAMANACA)","140454"]
[null,null,null,null,null,null,null,"1705","SANGOLQUI","170550"]
[null,null,null,null,null,null,null,"1705","SANGOLQUÍ","170501"]
[null,null,null,null,null,null,null,"1102","SANGUILLIN","110254"]
[null,null,null,null,null,null,null,"0101","SANTA ANA","010164"]
[null,null,null,null,null,null,null,"1313","SANTA ANA","131301"]
[null,null,null,null,null,null,null,"1313","SANTA ANA DE VUELTA LARGA","131350"]
[null,null,null,null,null,null,null,"2105","SANTA BARBARA","210554"]
[null,null,null,null,null,null,null,"2101","SANTA CECILIA","210158"]
[null,null,null,null,null,null,null,"0906","SANTA CLARA","090607"]
[null,null,null,null,null,null,null,"1603","SANTA CLARA","160350"]
[null,null,null,null,null,null,null,"2103","SANTA ELENA","210354"]
[null,null,null,null,null,null,null,"2401","SANTA ELENA","240150"]
[null,null,null,null,null,null,null,"2401","SANTA ELENA","240102"]
[null,null,null,null,null,null,null,"0201","SANTA FE (SANTA FE)","020158"]
[null,null,null,null,null,null,null,"0607","SANTA FE DE GALAN","060758"]
[null,null,null,null,null,null,null,"0108","SANTA ISABEL (CHAGUARURCO)","010850"]
[null,null,null,null,null,null,null,"0918","SANTA LUCIA","091850"]
[null,null,null,null,null,null,null,"0802","SANTA LUCIA DE LAS PEÑAS","080265"]
[null,null,null,null,null,null,null,"2202","SANTA MARIA DE HUIRIRIMA","220253"]
[null,null,null,null,null,null,null,"2301","SANTA MARIA DEL TOACHI","230157"]
[null,null,null,null,null,null,null,{"$f":"LEFT(J1090,4)","v":"1308"},"SANTA MARIANITA (BOCA DE PACOCHE)","130852"]
[null,null,null,null,null,null,null,"1406","SANTA MARIANITA DE JESUS","140655"]
[null,null,null,null,null,null,null,"0401","SANTA MARTHA DE CUBA","040161"]
[null,null,null,null,null,null,null,"0805","SANTA RITA","080559"]
[null,null,null,null,null,null,null,"1303","SANTA RITA","130302"]
[null,null,null,null,null,null,null,"0712","SANTA ROSA","071250"]
[null,null,null,null,null,null,null,"0712","SANTA ROSA","071201"]
[null,null,null,null,null,null,null,"1504","SANTA ROSA","150454"]
[null,null,null,null,null,null,null,"1801","SANTA ROSA","180165"]
[null,null,null,null,null,null,null,"2003","SANTA ROSA","200352"]
[null,null,null,null,null,null,null,"2403","SANTA ROSA","240304"]
[null,null,null,null,null,null,null,"9005","SANTA ROSA DE AGUA CLARA","900551"]
[null,null,null,null,null,null,null,"1702","SANTA ROSA DE CUZUBAMBA","170255"]
[null,null,null,null,null,null,null,"0911","SANTA ROSA DE FLANDES","091153"]
[null,null,null,null,null,null,null,"2106","SANTA ROSA DE SUCUMBIOS","210651"]
[null,null,null,null,null,null,null,"1105","SANTA RUFINA","110553"]
[null,null,null,null,null,null,null,"1106","SANTA TERESITA","110653"]
[null,null,null,null,null,null,null,"0205","SANTIAGO","020555"]
[null,null,null,null,null,null,null,"1101","SANTIAGO","110159"]
[null,null,null,null,null,null,null,"1412","SANTIAGO","141250"]
[null,null,null,null,null,null,null,"1405","SANTIAGO DE MENDEZ","140550"]
[null,null,null,null,null,null,null,"1408","SANTIAGO DE PANANZA","140854"]
[null,null,null,null,null,null,null,"0603","SANTIAGO DE QUITO (CAB. EN SAN ANTONIO DE QUITO)","060354"]
[null,null,null,null,null,null,null,"2301","SANTO DOMINGO DE LOS COLORADOS","230150"]
[null,null,null,null,null,null,null,"2301","SANTO DOMINGO DE LOS COLORADOS","230106"]
[null,null,null,null,null,null,null,"0802","SANTO DOMINGO DE ONZOLE","080259"]
[null,null,null,null,null,null,null,"0506","SAQUISILI","050650"]
[null,null,null,null,null,null,null,"0710","SARACAY","071056"]
[null,null,null,null,null,null,null,"1111","SARAGURO","111150"]
[null,null,null,null,null,null,null,"1601","SARAYACU","160161"]
[null,null,null,null,null,null,null,"1504","SARDINAS","150455"]
[null,null,null,null,null,null,null,"0101","SAYAUSI","010165"]
[null,null,null,null,null,null,null,"0802","SELVA ALEGRE","080260"]
[null,null,null,null,null,null,null,"1111","SELVA ALEGRE","111158"]
[null,null,null,null,null,null,null,"1004","SELVA ALEGRE (CAB. EN SAN MIGUEL DE PAMPLONA)","100459"]
[null,null,null,null,null,null,null,"0602","SEVILLA","060258"]
[null,null,null,null,null,null,null,"2106","SEVILLA","210652"]
[null,null,null,null,null,null,null,"0113","SEVILLA DE ORO","011350"]
[null,null,null,null,null,null,null,"1401","SEVILLA DON BOSCO","140157"]
[null,null,null,null,null,null,null,"1602","SHELL","160252"]
[null,null,null,null,null,null,null,"1410","SHIMPIS","141052"]
[null,null,null,null,null,null,null,"2104","SHUSHUFINDI","210450"]
[null,null,null,null,null,null,null,"0602","SIBAMBE","060259"]
[null,null,null,null,null,null,null,"0603","SICALPA","060302"]
[null,null,null,null,null,null,null,"0101","SIDCAY","010166"]
[null,null,null,null,null,null,null,"2104","SIETE DE JULIO","210455"]
[null,null,null,null,null,null,null,"1205","SIETE DE OCTUBRE","120507"]
[null,null,null,null,null,null,null,"0507","SIGCHOS","050750"]
[null,null,null,null,null,null,null,"0109","SIGSIG","010950"]
[null,null,null,null,null,null,null,"0201","SIMIATUG","020159"]
[null,null,null,null,null,null,null,"0922","SIMON BOLIVAR","092250"]
[null,null,null,null,null,null,null,"1301","SIMÓN BOLÍVAR","130109"]
[null,null,null,null,null,null,null,"0103","SIMON BOLIVAR (CAB. EN GAÑANZOL)","010360"]
[null,null,null,null,null,null,null,"1601","SIMON BOLIVAR (CAB. EN MUSHULLACTA)","160162"]
[null,null,null,null,null,null,null,"2401","SIMON BOLIVAR (JULIO MORENO)","240155"]
[null,null,null,null,null,null,null,"0801","SIMÓN PLATA TORRES","080105"]
[null,null,null,null,null,null,null,"1401","SINAI","140158"]
[null,null,null,null,null,null,null,"0101","SININCAY","010167"]
[null,null,null,null,null,null,null,"0713","SINSAO","071358"]
[null,null,null,null,null,null,null,"1701","SOLANDA","170131"]
[null,null,null,null,null,null,null,"0306","SOLANO","030651"]
[null,null,null,null,null,null,null,"1112","SOZORANGA","111250"]
[null,null,null,null,null,null,null,"1403","STA SUSANA DE CHIVIAZA (CAB EN CHIVIAZA)","140357"]
[null,null,null,null,null,null,null,"0806","SUA (CAB. EN LA BOCANA)","080652"]
[null,null,null,null,null,null,null,{"$f":"LEFT(J1154,4)","v":"0101"},"SUCRE","010112"]
[null,null,null,null,null,null,null,"0901","SUCRE","090111"]
[null,null,null,null,null,null,null,"1101","SUCRE","110103"]
[null,null,null,null,null,null,null,"1316","SUCRE","131650"]
[null,null,null,null,null,null,null,"1805","SUCRE (CAB. EN SUCRE-PATATE URCU)","180553"]
[null,null,null,null,null,null,null,"1406","SUCUA","140650"]
[null,null,null,null,null,null,null,"1507","SUMACO","150756"]
[null,null,null,null,null,null,null,"1111","SUMAYPAMBA","111160"]
[null,null,null,null,null,null,null,"0307","SUSCAL","030750"]
[null,null,null,null,null,null,null,"0110","SUSUDEL","011051"]
[null,null,null,null,null,null,null,"1701","TABABELA","170183"]
[null,null,null,null,null,null,null,"1704","TABACUNDO","170450"]
[null,null,null,null,null,null,null,"0801","TABIAZO","080165"]
[null,null,null,null,null,null,null,"1112","TACAMOROS","111252"]
[null,null,null,null,null,null,null,"0801","TACHINA","080166"]
[null,null,null,null,null,null,null,"0301","TADAY","030160"]
[null,null,null,null,null,null,null,"1409","TAISHA","140950"]
[null,null,null,null,null,null,null,"1501","TALAG","150157"]
[null,null,null,null,null,null,null,"0805","TAMBILLO","080560"]
[null,null,null,null,null,null,null,"1703","TAMBILLO","170356"]
[null,null,null,null,null,null,null,"0501","TANICUCHI","050161"]
[null,null,null,null,null,null,null,"1101","TAQUIL (MIGUEL RIOFRIO)","110160"]
[null,null,null,null,null,null,null,"2201","TARACOA (NUEVA ESPERANZA: YUCA)","220152"]
[null,null,null,null,null,null,null,"2107","TARAPOA","210750"]
[null,null,null,null,null,null,null,"0916","TARIFA","091651"]
[null,null,null,null,null,null,null,"0101","TARQUI","010168"]
[null,null,null,null,null,null,null,"0901","TARQUI","090112"]
[null,null,null,null,null,null,null,"1308","TARQUI","130804"]
[null,null,null,null,null,null,null,"1601","TARQUI","160163"]
[null,null,null,null,null,null,null,"0911","TAURA","091154"]
[null,null,null,null,null,null,null,"1405","TAYUZA","140556"]
[null,null,null,null,null,null,null,"0802","TELEMBI","080261"]
[null,null,null,null,null,null,null,"0203","TELIMBELA","020355"]
[null,null,null,null,null,null,null,"1501","TENA","150150"]
[null,null,null,null,null,null,null,"0706","TENDALES (CAB. EN PUERTO TENDALES)","070653"]
[null,null,null,null,null,null,null,"0901","TENGUEL","090158"]
[null,null,null,null,null,null,null,"1601","TENIENTE HUGO ORTIZ","160164"]
[null,null,null,null,null,null,null,"1104","TENIENTE MAXIMILIANO RODRIGUEZ LOAIZA","110457"]
[null,null,null,null,null,null,null,"1901","TIMBARA","190156"]
[null,null,null,null,null,null,null,"0802","TIMBIRE","080264"]
[null,null,null,null,null,null,null,"0504","TINGO","050457"]
[null,null,null,null,null,null,null,"2202","TIPUTINI","220254"]
[null,null,null,null,null,null,null,"1809","TISALEO","180950"]
[null,null,null,null,null,null,null,"0602","TIXAN","060260"]
[null,null,null,null,null,null,null,"0501","TOACASO","050162"]
[null,null,null,null,null,null,null,"0401","TOBAR DONOSO (LA BOCANA DE CAMUMBI)","040156"]
[null,null,null,null,null,null,null,"1704","TOCACHI","170453"]
[null,null,null,null,null,null,null,"2002","TOMAS DE BERLANGA (SANTO TOMAS)","200251"]
[null,null,null,null,null,null,null,"0105","TOMEBAMBA","010561"]
[null,null,null,null,null,null,null,"0806","TONCHIGUE","080653"]
[null,null,null,null,null,null,null,"0806","TONSUPA","080654"]
[null,null,null,null,null,null,null,"0712","TORATA","071255"]
[null,null,null,null,null,null,null,"1315","TOSAGUA","131550"]
[null,null,null,null,null,null,null,"0101","TOTORACOCHA ","010113"]
[null,null,null,null,null,null,null,"1801","TOTORAS","180166"]
[null,null,null,null,null,null,null,"0709","TRES CERRITOS","070904"]
[null,null,null,null,null,null,null,"2203","TRES DE NOVIEMBRE","220357"]
[null,null,null,null,null,null,null,"1907","TRIUNFO-DORADO","190752"]
[null,null,null,null,null,null,null,"0401","TUFIÑO","040157"]
[null,null,null,null,null,null,null,"0401","TULCAN","040150"]
[null,null,null,null,null,null,null,"0401","TULCÁN","040102"]
[null,null,null,null,null,null,null,"0805","TULULBI (CAB. EN RICAURTE)","080561"]
[null,null,null,null,null,null,null,"1006","TUMBABIRO","100655"]
[null,null,null,null,null,null,null,"1701","TUMBACO","170184"]
[null,null,null,null,null,null,null,{"$f":"LEFT(J1218,4)","v":"1906"},"TUNDAYME","190653"]
[null,null,null,null,null,null,null,"1704","TUPIGACHI","170454"]
[null,null,null,null,null,null,null,"0101","TURI","010169"]
[null,null,null,null,null,null,null,"1701","TURUBAMBA","170132"]
[null,null,null,null,null,null,null,"0302","TURUPAMBA","030253"]
[null,null,null,null,null,null,null,"1904","TUTUPALI","190452"]
[null,null,null,null,null,null,null,"1409","TUUTINENTZA","140953"]
[null,null,null,null,null,null,null,"1802","ULBA","180254"]
[null,null,null,null,null,null,null,"1801","UNAMUNCHO","180168"]
[null,null,null,null,null,null,null,"0707","UNIÓN LOJANA","070705"]
[null,null,null,null,null,null,null,"2203","UNION MILAGREÑA","220358"]
[null,null,null,null,null,null,null,"0805","URBINA","080562"]
[null,null,null,null,null,null,null,"0401","URBINA (TAYA)","040158"]
[null,null,null,null,null,null,null,"1006","URCUQUI","100650"]
[null,null,null,null,null,null,null,"0901","URDANETA","090113"]
[null,null,null,null,null,null,null,"1111","URDANETA (PAQUISHAPA)","111159"]
[null,null,null,null,null,null,null,"1102","UTUANA","110253"]
[null,null,null,null,null,null,null,"1703","UYUMBICHO","170357"]
[null,null,null,null,null,null,null,"0709","UZHCURRUMI","070955"]
[null,null,null,null,null,null,null,"1003","VACAS GALINDO (EL CHURO) (CAB. EN SAN MIGUEL ALTO)","100358"]
[null,null,null,null,null,null,null,"0802","VALDEZ (LIMONES)","080250"]
[null,null,null,null,null,null,null,"1211","VALENCIA","121150"]
[null,null,null,null,null,null,null,"1908","VALLADOLID","190853"]
[null,null,null,null,null,null,null,"0101","VALLE","010170"]
[null,null,null,null,null,null,null,"1101","VALLE","110104"]
[null,null,null,null,null,null,null,"0914","VALLE DE LA VIRGEN","091451"]
[null,null,null,null,null,null,null,"0714","VALLE HERMOSO","071403"]
[null,null,null,null,null,null,null,"2301","VALLE HERMOSO","230155"]
[null,null,null,null,null,null,null,"0607","VALPARAISO","060759"]
[null,null,null,null,null,null,null,"0601","VELASCO","060103"]
[null,null,null,null,null,null,null,"0908","VELASCO IBARRA (CAB. EL EMPALME)","090850"]
[null,null,null,null,null,null,null,"0601","VELOZ","060104"]
[null,null,null,null,null,null,null,"1207","VENTANAS","120750"]
[null,null,null,null,null,null,null,"0303","VENTURA","030362"]
[null,null,null,null,null,null,null,"1205","VENUS DEL RÍO QUEVEDO","120509"]
[null,null,null,null,null,null,null,"1601","VERACRUZ (INDILLAMA) (CAB. EN INDILLAMA)","160165"]
[null,null,null,null,null,null,null,"2403","VICENTE  ROCAFUERTE","240303"]
[null,null,null,null,null,null,null,"0906","VICENTE PIEDRAHITA","090608"]
[null,null,null,null,null,null,null,"1110","VICENTINO","111055"]
[null,null,null,null,null,null,null,"0804","VICHE","080454"]
[null,null,null,null,null,null,null,"0712","VICTORIA","071256"]
[null,null,null,null,null,null,null,"0101","VICTORIA DEL PORTETE (IRQUIS)","010171"]
[null,null,null,null,null,null,null,"1101","VILCABAMBA (VICTORIA)","110161"]
[null,null,null,null,null,null,null,"0603","VILLA LA UNION (CAJABAMBA)","060350"]
[null,null,null,null,null,null,null,"1208","VINCES","120850"]
[null,null,null,null,null,null,null,"0920","VIRGEN DE FATIMA","092056"]
[null,null,null,null,null,null,null,"1205","VIVA ALFARO","120510"]
[null,null,null,null,null,null,null,"0801","VUELTA LARGA","080168"]
[null,null,null,null,null,null,null,"1304","WILFRIDO LOOR MOREIRA (MAICITO)","130451"]
[null,null,null,null,null,null,null,"0901","XIMENA","090114"]
[null,null,null,null,null,null,null,"0920","YAGUACHI VIEJO (CONE)","092055"]
[null,null,null,null,null,null,null,"1109","YAMANA","110959"]
[null,null,null,null,null,null,null,"1806","YANAYACU- MOCHAPATA (CAB. EN YANAYACU)","180652"]
[null,null,null,null,null,null,null,"1101","YANGANA (ARSENIO CASTILLO)","110162"]
[null,null,null,null,null,null,null,"1905","YANTZAZA (YANZATZA)","190550"]
[null,null,null,null,null,null,null,"0101","YANUNCAY","010114"]
[null,null,null,null,null,null,null,"1701","YARUQUI","170185"]
[null,null,null,null,null,null,null,"0601","YARUQUÍES","060105"]
[null,null,null,null,null,null,null,"2202","YASUNI","220255"]
[null,null,null,null,null,null,null,"1410","YAUPI","141051"]
[null,null,null,null,null,null,null,"1403","YUNGANZA (CAB EN EL ROSARIO)","140358"]
[null,null,null,null,null,null,null,"1103","ZAMBI","110354"]
[null,null,null,null,null,null,null,"1701","ZAMBIZA","170186"]
[null,null,null,null,null,null,null,"1901","ZAMORA","190150"]
[null,null,null,null,null,null,null,{"$f":"LEFT(J1282,4)","v":"1901"},"ZAMORA","190102"]
[null,null,null,null,null,null,null,"1305","ZAPALLO","130552"]
[null,null,null,null,null,null,null,"1207","ZAPOTAL","120752"]
[null,null,null,null,null,null,null,"1113","ZAPOTILLO","111350"]
[null,null,null,null,null,null,null,"2301","ZARACAY","230107"]
[null,null,null,null,null,null,null,"0713","ZARUMA","071350"]
[null,null,null,null,null,null,null,"0108","ZHAGLLI (SHAGLLI )","010853"]
[null,null,null,null,null,null,null,"0103","ZHIDMAD","010358"]
[null,null,null,null,null,null,null,"0303","ZHUD","030361"]
[null,null,null,null,null,null,null,"1902","ZUMBA","190250"]
[null,null,null,null,null,null,null,"0504","ZUMBAHUA","050458"]
[null,null,null,null,null,null,null,"1907","ZUMBI","190750"]
[null,null,null,null,null,null,null,"1401","ZUÑA (ZUÑAC)","140160"]
[null,null,null,null,null,null,null,"1903","ZURMI","190351"]

{"sheet":"CATASTRO","index":3,"n_rows":1026,"n_cols":2,"rows_kept":1026,"cut":false,"hidden":true,"merged":[]}
["RUC","Razón social"]
["0190021513001","COOPERATIVA DE AHORRO Y CREDITO EDUCADORES DEL AZUAY"]
["0190021769001","COOPERATIVA DE AHORRO Y CREDITO LA MERCED LTDA.- CUENCA"]
["0190024733001","COOPERATIVA DE AHORRO Y CREDITO ERCO LTDA."]
["0190075958001","COOPERATIVA DE AHORRO Y CREDITO ARTESANAL DEL AZUAY"]
["0190087603001","COOPERATIVA DE AHORRO Y CREDITO ALFONSO JARAMILLO LEON CAMARA DE COMERCIO DE CUENCA"]
["0190093581001","COOPERATIVA DE AHORRO Y CREDITO COOPAC AUSTRO LTDA."]
["0190096076001","COOPERATIVA DE AHORRO Y CREDITO SIDETAMC"]
["0190115798001","COOPERATIVA DE AHORRO Y CREDITO JUVENTUD ECUATORIANA PROGRESISTA LTDA."]
["0190131424001","COOPERATIVA DE AHORRO Y CREDITO ELECTRO PAUTE"]
["0190147665001","COOPERATIVA DE AHORRO Y CREDITO SERVIDORES MUNICIPALES DE CUENCA"]
["0190150739001","COOPERATIVA DE AHORRO Y CREDITO ETAPA"]
["0190155722001","COOPERATIVA DE AHORRO Y CREDITO JARDIN AZUAYO LTDA."]
["0190156478001","COOPERATIVA DE AHORRO Y CREDITO DE LA PEQUEÑA EMPRESA CACPE UROCAL EN LIQUIDACION"]
["0190158977001","COOPERATIVA DE AHORRO Y CREDITO CREA LTDA."]
["0190160262001","COOPERATIVA DE AHORRO Y CREDITO FEDERACION OBRERA"]
["0190160378001","COOPERATIVA DE AHORRO Y CREDITO SANTA ISABEL LTDA"]
["0190160459001","COOPERATIVA DE AHORRO Y CREDITO MULTIEMPRESARIAL"]
["0190308987001","COOPERATIVA DE AHORRO Y CREDITO GUACHAPALA"]
["0190311031001","COOPERATIVA DE AHORRO Y CREDITO SOL DE LOS ANDES - AZUAY"]
["0190316319001","COOPERATIVA DE AHORRO Y CREDITO FASAYÑAN LTDA."]
["0190316327001","COOPERATIVA DE AHORRO Y CREDITO GUEL LTDA."]
["0190317196001","COOPERATIVA DE AHORRO Y CREDITO SOLIDARIOS EN LA SALUD"]
["0190317625001","COOPERATIVA DE AHORRO Y CREDITO SEÑOR DE GIRON"]
["0190319296001","COOPERATIVA DE AHORRO Y CREDITO GAÑANSOL LTDA."]
["0190319520001","UNION DE COOPERATIVAS DE AHORRO Y CREDITO DEL SUR UCACSUR"]
["0190322637001","COOPERATIVA DE AHORRO Y CREDITO COOPERA LTDA EN LIQUIDACION"]
["0190322661001","COOPERATIVA DE AHORRO Y CREDITO COLEGIO DE ARQUITECTOS DEL AZUAY"]
["0190322939001","COOPERATIVA DE AHORRO Y CREDITO FRENTE DE REIVINDICACION MAGISTERIO DEL AUSTRO"]
["0190325180001","COOPERATIVA DE AHORRO Y CREDITO SAN JOSE S.J."]
["0190325644001","COOPERATIVA DE AHORRO Y CREDITO PROFUTURO LTDA"]
["0190325970001","COOPERATIVA DE AHORRO Y CREDITO INTEGRAL"]
["0190327930001","COOPERATIVA DE AHORRO Y CREDITO BAÑOS LTDA"]
["0190327949001","COOPERATIVA DE AHORRO Y CREDITO PROMOCION DE VIDA ASOCIADA LTDA. \"PROVIDA\""]
["0190332314001","COOPERATIVA DE AHORRO Y CREDITO PRIMERO DE ENERO DEL AUSTRO \"EN LIQUIDACION\""]
["0190332705001","COOPERATIVA DE AHORRO Y CREDITO DEL PERSONAL DOCENTE, ADMINISTRATIVO Y DE SERVICIOS DE LA UNIDAD EDUCATIVA DE LA SALLE"]
["0190333515001","COOPERATIVA DE AHORRO Y CREDITO COLEGIO DE INGENIEROS CIVILES DEL AZUAY C.I.C.A."]
["0190333612001","COOPERATIVA DE AHORRO Y CREDITO AHORRISTA SOLIDARIO"]
["0190336859001","COOPERATIVA DE AHORRO Y CREDITO UNION Y PROGRESO"]
["0190338509001","COOPERATIVA DE AHORRO Y CREDITO JADAN LTDA"]
["0190341097001","COOPERATIVA DE AHORRO Y CREDITO CUMBEÑITA LTDA."]
["0190343480001","COOPERATIVA DE AHORRO Y CREDITO HUINARA LTDA."]
["0190343847001","COOPERATIVA DE AHORRO Y CREDITO COOPTSUR TESORO DEL SUR LTDA \"EN LIQUIDACION\""]
["0190344169001","COOPERATIVA DE AHORRO Y CREDITO DEL AZUAY"]
["0190346501001","COOPERATIVA DE AHORRO Y CREDITO CARMEN DE TARQUI"]
["0190348075001","COOPERATIVA DE AHORRO Y CREDITO SANTA ANA"]
["0190350061001","COOPERATIVA DE AHORRO Y CREDITO LA FLORIDA"]
["0190360008001","COOPERATIVA DE AHORRO Y CREDITO COTOPAXI PROGRESISTA \"EN LIQUIDACION\""]
["0190362078001","COOPERATIVA DE AHORRO Y CREDITO DE LOS INGENIEROS COMERCIALES DEL AZUAY EN LIQUIDACION"]
["0190363163001","COOPERATIVA DE AHORRO Y CREDITO LA VOLUNTAD DE DIOS"]
["0190363236001","COOPERATIVA DE AHORRO Y CREDITO LOS ALISOS LTDA."]
["0190365980001","COOPERATIVA DE AHORRO Y CREDITO DEL SINDICATO DE CHOFERES PROFESIONALES DEL AZUAY LTDA."]
["0190368424001","COOPERATIVA DE AHORRO Y CREDITO MANOS CONSTRUYENDO DESARROLLO MACODES"]
["0190370550001","COOPERATIVA DE AHORRO Y CREDITO URBADIEZ"]
["0190371204001","COOPERATIVA DE AHORRO Y CREDITO CUENCA LTDA"]
["0190373789001","COOPERATIVA DE AHORRO Y CREDITO COMERCIANTES MINORISTAS DEL AZUAY LTDA."]
["0190375811001","COOPERATIVA DE AHORRO Y CREDITO CORPORACIONES UNIDAS CORPUCOOP LTDA."]
["0190377156001","COOPERATIVA DE AHORRO Y CREDITO CHOLA CUENCANA LTDA."]
["0190377733001","COOPERATIVA DE AHORRO Y CREDITO  ÑUKANCHIK LLUGZHINA LTDA"]
["0190380149001","COOPERATIVA DE AHORRO Y CREDITO FUTURO PROGRESISTA LTDA."]
["0190419401001","COOPERATIVA DE AHORRO Y CREDITO MAS AHORRO SOLIDARIO \"MASCOOP\""]
["0290001269001","COOPERATIVA DE AHORRO Y CREDITO GUARANDA LTDA."]
["0290001684001","COOPERATIVA DE AHORRO Y CREDITO EDUCADORES DE BOLIVAR"]
["0290003180001","COOPERATIVA DE AHORRO Y CREDITO SAN MIGUEL LTDA."]
["0290003288001","COOPERATIVA DE AHORRO Y CREDITO SAN JOSE LTDA"]
["0290004454001","COOPERATIVA DE AHORRO Y CREDITO JUAN PIO DE MORA LTDA."]
["0290030099001","COOPERATIVA DE AHORRO Y CREDITO SAN PEDRO LTDA."]
["0290034337001","COOPERATIVA DE AHORRO Y CREDITO SALINAS LIMITADA"]
["0290035260001","COOPERATIVA DE AHORRO Y CREDITO LAS NAVES LTDA."]
["0291500064001","COOPERATIVA DE AHORRO Y CREDITO LUZ Y PROGRESO LTDA \"EN LIQUIDACION\""]
["0291500358001","COOPERATIVA DE AHORRO Y CREDITO SAN MIGUEL DE MONOLOMA LTDA"]
["0291500994001","COOPERATIVA DE AHORRO Y CREDITO SIMIATUG LIMITADA"]
["0291502474001","COOPERATIVA DE AHORRO Y CREDITO DEL ARTESANO DE LA ASOCIACION DE ARTESANOS DE CALUMA"]
["0291505279001","COOPERATIVA DE AHORRO Y CREDITO KULLKY MINKANA WASI LTDA"]
["0291505783001","COOPERATIVA DE AHORRO Y CREDITO INTIÑAN LTDA"]
["0291506445001","COOPERATIVA DE AHORRO Y CREDITO CURI WASI LTDA"]
["0291506933001","COOPERATIVA DE AHORRO Y CREDITO CAMINO DE LUZ LTDA"]
["0291509347001","COOPERATIVA DE AHORRO Y CREDITO MUSHUK KURI ÑAN LTDA."]
["0291509630001","COOPERATIVA DE AHORRO Y CREDITO LOS CHASQUIS LTDA"]
["0291510302001","COOPERATIVA DE AHORRO Y CREDITO UNIVERSIDAD DE BOLIVAR LTDA"]
["0291510973001","COOPERATIVA DE AHORRO Y CREDITO WIÑARIK KAWSAY"]
["0291510981001","COOPERATIVA DE AHORRO Y CREDITO MONSEÑOR CANDIDO RADA LTDA EN LIQUIDACION"]
["0291511066001","COOPERATIVA DE AHORRO Y CREDITO SURUPUKYU LTDA"]
["0291511082001","COOPERATIVA DE AHORRO Y CREDITO BOLIVAR PRODUCTIVA \"EN LIQUIDACION\""]
["0291511112001","COOPERATIVA DE AHORRO Y CREDITO JOYOCOTO LTDA"]
["0291511279001","COOPERATIVA DE AHORRO Y CREDITO CASIPAMBA LTDA."]
["0291511880001","COOPERATIVA DE AHORRO Y CREDITO UNIDAD Y TRABAJO TANTALLA LLANKASHUN"]
["0390000804001","COOPERATIVA DE AHORRO Y CREDITO CAÑAR LTDA."]
["0390027923001","COOPERATIVA DE AHORRO Y CREDITO DE LA PEQUEÑA EMPRESA BIBLIAN LTDA."]
["0390029241001","COOPERATIVA DE AHORRO Y CREDITO FAMILIA AUSTRAL LTDA."]
["0391000115001","COOPERATIVA DE AHORRO Y CREDITO DE LOS EMPLEADOS Y TRABAJADORES DE LA ILUSTRE MUNICIPALIDAD DE AZOGUES CACMA LTDA"]
["0391001545001","COOPERATIVA DE AHORRO Y CREDITO GUAPAN LTDA."]
["0391001588001","COOPERATIVA DE AHORRO Y CREDITO CACIQUE GURITAVE"]
["0391001596001","COOPERATIVA DE AHORRO Y CREDITO SOLIDARIDAD Y PROGRESO ORIENTAL"]
["0391001715001","COOPERATIVA DE AHORRO Y CREDITO SAN JUAN DE PINDIL \"EN LIQUIDACION\""]
["0391002126001","COOPERATIVA DE AHORRO Y CREDITO EMPLEADOS DE SALUD DEL CAÑAR LTDA EN LIQUIDACION"]
["0391005664001","COOPERATIVA DE AHORRO Y CREDITO MUSHUK-YUYAY"]
["0391008019001","COOPERATIVA DE AHORRO Y CREDITO WIÑARIY INTERCULTURAL PARA EL FOMENTO"]
["0391008299001","COOPERATIVA DE AHORRO Y CREDITO MADRE DEL ROCIO"]
["0391008558001","COOPERATIVA DE AHORRO Y CREDITO SAN MARCOS"]
["0391010110001","COOPERATIVA DE AHORRO Y CREDITO ALLI PUSHAK"]
["0391011370001","COOPERATIVA DE AHORRO Y CREDITO EL MIGRANTE SOLIDARIO"]
["0391012431001","COOPERATIVA DE AHORRO Y CREDITO LOS KAÑARIS"]
["0391012849001","COOPERATIVA DE AHORRO Y CREDITO SISAY KAÑARI"]
["0391012911001","COOPERATIVA DE AHORRO Y CREDITO ACHIK INTI LTDA."]
["0391013152001","COOPERATIVA DE AHORRO Y CREDITO ECUACHASKI"]
["0391013217001","COOPERATIVA DE AHORRO Y CREDITO FUERZA DE LOS ANDES"]
["0391013241001","COOPERATIVA DE AHORRO Y CREDITO DEL MIGRANTE LTDA."]
["0391013306001","COOPERATIVA DE AHORRO Y CREDITO EFKA \"EN LIQUIDACION\""]
["0391013756001","COOPERATIVA DE AHORRO Y CREDITO SINCHI CODEFIS"]
["0391014558001","COOPERATIVA DE AHORRO Y CREDITO FINANCIERA AMERICA COOPAMERICA LTDA. \"EN LIQUIDACION\""]
["0391015678001","COOPERATIVA DE AHORRO Y CREDITO ATLANTIDA"]
["0490001883001","COOPERATIVA DE AHORRO Y CREDITO PABLO MUÑOZ VEGA LTDA."]
["0490002669001","COOPERATIVA DE AHORRO Y CREDITO TULCAN LTDA."]
["0490007458001","COOPERATIVA DE AHORRO Y CREDITO EDUCADORES TULCAN LTDA."]
["0490009078001","COOPERATIVA DE AHORRO Y CREDITO LA PAZ LTDA."]
["0490009124001","COOPERATIVA DE AHORRO Y CREDITO SAN GABRIEL LTDA."]
["0491507012001","COOPERATIVA DE AHORRO Y CREDITO 5 DE MAYO DE SANTA MARTHA DE CUBA"]
["0491508094001","COOPERATIVA DE AHORRO Y CREDITO 10 DE SEPTIEMBRE"]
["0491508973001","COOPERATIVA DE AHORRO Y CREDITO PADRE VICENTE PONCE RUBIO"]
["0590024937001","COOPERATIVA DE AHORRO Y CREDITO EDUCADORES PRIMARIOS DEL COTOPAXI"]
["0590041920001","COOPERATIVA DE AHORRO Y CREDITO 9 DE OCTUBRE LTDA."]
["0590052000001","COOPERATIVA DE AHORRO Y CREDITO DE LA PEQUEÑA EMPRESA DE COTOPAXI LTDA."]
["0590060437001","COOPERATIVA DE AHORRO Y CREDITO SAN MIGUEL DE SIGCHOS"]
["0590060461001","COOPERATIVA DE AHORRO Y CREDITO UNION MERCEDARIA LTDA."]
["0590061123001","COOPERATIVA DE AHORRO Y CREDITO FUTURO LAMANENSE"]
["0590061379001","COOPERATIVA DE AHORRO Y CREDITO MONSEÑOR LEONIDAS PROAÑO"]
["0591700014001","COOPERATIVA DE AHORRO Y CREDITO EMPLEADOS MUNICIPALES DE LATACUNGA"]
["0591700030001","COOPERATIVA DE AHORRO Y CREDITO CAMARA DE COMERCIO LATACUNGA LTDA."]
["0591700340001","COOPERATIVA DE AHORRO Y CREDITO CAMARA DE COMERCIO DE LA MANA"]
["0591700545001","COOPERATIVA DE AHORRO Y CREDITO HOSPITAL GENERAL DE LATACUNGA EN LIQUIDACION"]
["0591700847001","COOPERATIVA DE AHORRO Y CREDITO IESS COTOPAXI LTDA."]
["0591702262001","COOPERATIVA DE AHORRO Y CREDITO SAN ANTONIO DE LASSO"]
["0591703897001","COOPERATIVA DE AHORRO Y CREDITO FRAY MANUEL SALCEDO LTDA."]
["0591705628001","COOPERATIVA DE AHORRO Y CREDITO NUEVA ESPERANZA LTDA. - LATACUNGA"]
["0591709070001","COOPERATIVA DE AHORRO Y CREDITO DIRECCION PROVINCIAL DE SALUD DE COTOPAXI"]
["0591709917001","COOPERATIVA DE AHORRO Y CREDITO EXITO LTDA."]
["0591710389001","COOPERATIVA DE AHORRO Y CREDITO COTOPAXI LTDA \"EN LIQUIDACION\""]
["0591711164001","COOPERATIVA DE AHORRO Y CREDITO VIRGEN DEL CISNE"]
["0591711563001","COOPERATIVA DE AHORRO Y CREDITO SUMAK KAWSAY LTDA"]
["0591712160001","COOPERATIVA DE AHORRO Y CREDITO INTI LTDA EN LIQUIDACION"]
["0591712349001","COOPERATIVA DE AHORRO Y CREDITO AYLLO KUNAPAK LLANKAY LTDA"]
["0591712403001","COOPERATIVA DE AHORRO Y CREDITO EBENEZER LTDA."]
["0591712470001","COOPERATIVA DE AHORRO Y CREDITO PILAHUIN"]
["0591712942001","COOPERATIVA DE AHORRO Y CREDITO RUNA SHUNGO"]
["0591713094001","COOPERATIVA DE AHORRO Y CREDITO ANDINA LTDA."]
["0591713124001","COOPERATIVA DE AHORRO Y CREDITO 15 DE AGOSTO DE PILACOTO"]
["0591713582001","COOPERATIVA DE AHORRO Y CREDITO TAWANTINSUYU LTDA."]
["0591713760001","COOPERATIVA DE AHORRO Y CREDITO PUJILI LTDA."]
["0591713965001","COOPERATIVA DE AHORRO Y CREDITO NUEVA GENERACION LTDA EN LIQUIDACION"]
["0591713981001","COOPERATIVA DE AHORRO Y CREDITO LOS CHASQUIS PASTOCALLE LTDA."]
["0591714015001","COOPERATIVA DE AHORRO Y CREDITO MULALILLO LTDA."]
["0591714031001","COOPERATIVA DE AHORRO Y CREDITO ILINIZA LTDA."]
["0591714090001","COOPERATIVA DE AHORRO Y CREDITO INNOVACION ANDINA LTDA."]
["0591714163001","COOPERATIVA DE AHORRO Y CREDITO EL MIRADOR"]
["0591714236001","COOPERATIVA DE AHORRO Y CREDITO UNIBLOCK Y SERVICIOS LTDA."]
["0591714244001","COOPERATIVA DE AHORRO Y CREDITO KULLKI WIÑARI LTDA."]
["0591714333001","COOPERATIVA DE AHORRO Y CREDITO COORCOTOPAXI LTDA."]
["0591714821001","COOPERATIVA DE AHORRO Y CREDITO PUCARA LTDA."]
["0591714910001","COOPERATIVA DE AHORRO Y CREDITO JATUN MACA LTDA."]
["0591715011001","COOPERATIVA DE AHORRO Y CREDITO SINCHI RUNA LTDA."]
["0591715186001","COOPERATIVA DE AHORRO Y CREDITO MUSHUK PAKARI COICC LTDA."]
["0591715232001","COOPERATIVA DE AHORRO Y CREDITO MUSHUK MUYU LTDA"]
["0591715356001","COOPERATIVA DE AHORRO Y CREDITO SANTA ROSA DE PATUTAN LTDA."]
["0591715585001","COOPERATIVA DE AHORRO Y CREDITO NUEVO AMANECER LTDA. - COTOPAXI"]
["0591715607001","COOPERATIVA DE AHORRO Y CREDITO COOPINDIGENA LTDA."]
["0591715879001","COOPERATIVA DE AHORRO Y CREDITO LOS ANDES DEL COTOPAXI LTDA."]
["0591716379001","COOPERATIVA DE AHORRO Y CREDITO ALIANZA FINANCIERA DE COTOPAXI LTDA."]
["0591717510001","COOPERATIVA DE AHORRO Y CREDITO COOPTOPAXI LTDA."]
["0591717731001","COOPERATIVA DE AHORRO Y CREDITO PRODUCCION Y DESARROLLO AGRICOLA COOPRODESA LTDA"]
["0591718282001","COOPERATIVA DE AHORRO Y CREDITO DE LA SALUD DE COTOPAXI"]
["0591718703001","COOPERATIVA DE AHORRO Y CREDITO SAN FERNANDO LIMITADA"]
["0591718878001","COOPERATIVA DE AHORRO Y CREDITO INTEGRACION SOLIDARIA LTDA"]
["0591719009001","COOPERATIVA DE AHORRO Y CREDITO SIERRA CENTRO LTDA."]
["0591719092001","COOPERATIVA DE AHORRO Y CREDITO AEROTECNICOS FAE AEROCOOP LTDA"]
["0591719718001","COOPERATIVA DE AHORRO Y CREDITO VISION DE LOS ANDES VISANDES"]
["0591720066001","COOPERATIVA DE AHORRO Y CREDITO SIMON BOLIVAR"]
["0591720783001","COOPERATIVA DE AHORRO Y CREDITO SEÑOR DEL ARBOL"]
["0591720953001","COOPERATIVA DE AHORRO Y CREDITO VIRGEN DEL CARMEN"]
["0591721321001","COOPERATIVA DE AHORRO Y CREDITO PANAMERICANA LTDA"]
["0591721372001","COOPERATIVA DE AHORRO Y CREDITO ACHIK ÑAN CUMBIJIN LTDA."]
["0591721879001","COOPERATIVA DE AHORRO Y CREDITO SAN PABLO DE PUCAYACU LTDA."]
["0591722190001","COOPERATIVA DE AHORRO Y CREDITO ACCION SOLIDARIA"]
["0591722328001","COOPERATIVA DE AHORRO Y CREDITO SOLIDARIA LTDA. - COTOPAXI"]
["0591722344001","COOPERATIVA DE AHORRO Y CREDITO FUTURO SALCEDENSE"]
["0591722565001","COOPERATIVA DE AHORRO Y CREDITO KAWSAYPAK ÑAN-CAMINO A LA VIDA"]
["0591722697001","COOPERATIVA DE AHORRO Y CREDITO SAN ANTONIO DE TOACASO"]
["0591723286001","COOPERATIVA DE AHORRO Y CREDITO LIDERES DEL PROGRESO"]
["0591723308001","COOPERATIVA DE AHORRO Y CREDITO SEMILLAS DE PANGUA"]
["0591723413001","COOPERATIVA DE AHORRO Y CREDITO QUILOTOA"]
["0591723669001","COOPERATIVA DE AHORRO Y CREDITO MUSHUK SOLIDARIA"]
["0591723693001","COOPERATIVA DE AHORRO Y CREDITO SANTA BARBARA"]
["0591724142001","COOPERATIVA DE AHORRO Y CREDITO COFIPACS"]
["0591724207001","COOPERATIVA DE AHORRO Y CREDITO SIERRA ANDINA"]
["0591724444001","COOPERATIVA DE AHORRO Y CREDITO OCCIDENTAL"]
["0591725386001","COOPERATIVA DE AHORRO Y CREDITO KALLARY WIÑAYPAK LTDA"]
["0690001934001","COOPERATIVA DE AHORRO Y CREDITO CEMENTO CHIMBORAZO LTDA."]
["0690002744001","COOPERATIVA DE AHORRO Y CREDITO EDUCADORES DE CHIMBORAZO"]
["0690042495001","COOPERATIVA DE AHORRO Y CREDITO SUMAC LLACTA LTDA."]
["0690045389001","COOPERATIVA DE AHORRO Y CREDITO RIOBAMBA LTDA."]
["0690045885001","COOPERATIVA DE AHORRO Y CREDITO UNION FERROVIARIA ECUATORIANA. LTDA"]
["0690061465001","COOPERATIVA DE AHORRO Y CREDITO POLITECNICA DE CHIMBORAZO LTDA"]
["0690069334001","COOPERATIVA DE AHORRO Y CREDITO SAN JORGE LTDA"]
["0690074397001","COOPERATIVA DE AHORRO Y CREDITO SAN MIGUEL DE PALLATANGA"]
["0690074672001","COOPERATIVA DE AHORRO Y CREDITO 29 DE SEPTIEMBRE"]
["0690074761001","COOPERATIVA DE AHORRO Y CREDITO MINGA LTDA"]
["0690075113001","COOPERATIVA DE AHORRO Y CREDITO LUCHA CAMPESINA"]
["0690075563001","COOPERATIVA DE AHORRO Y CREDITO CARLOS CISNEROS"]
["0690075598001","COOPERATIVA DE AHORRO Y CREDITO CAMARA DE COMERCIO DE RIOBAMBA LTDA"]
["0690075636001","COOPERATIVA DE AHORRO Y CREDITO 27 DE NOVIEMBRE"]
["0690075881001","COOPERATIVA DE AHORRO Y CREDITO LLACTA PURA"]
["0690076314001","COOPERATIVA DE AHORRO Y CREDITO LAIME CAPULISPUNGO"]
["0690076519001","COOPERATIVA DE AHORRO Y CREDITO EDUCADORES SECUNDARIOS DE CHIMBORAZO"]
["0691700283001","COOPERATIVA DE AHORRO Y CREDITO KHIPU CASTUG ALTO LTDA"]
["0691700402001","COOPERATIVA DE AHORRO Y CREDITO MANUELA LEON - COACMAN"]
["0691702324001","COOPERATIVA DE AHORRO Y CREDITO 4 DE OCTUBRE"]
["0691702405001","COOPERATIVA DE AHORRO Y CREDITO ACCION RURAL LTDA \"EN LIQUIDACION\""]
["0691702561001","COOPERATIVA DE AHORRO Y CRÉDITO PURUHA LTDA."]
["0691702693001","COOPERATIVA DE AHORRO Y CREDITO EMPRESA ELECTRICA RIOBAMBA"]
["0691703959001","COOPERATIVA DE AHORRO Y CREDITO RUNAPAC YUYAY"]
["0691704092001","COOPERATIVA DE AHORRO Y CREDITO ACCION Y DESARROLLO LTDA"]
["0691704904001","COOPERATIVA DE AHORRO Y CREDITO LUPAXI CENTRAL LTDA"]
["0691705897001","COOPERATIVA DE AHORRO Y CREDITO GUAMOTE LTDA"]
["0691706583001","COOPERATIVA DE AHORRO Y CREDITO CAMARA DE COMERCIO INDIGENA DE GUAMOTE LTDA"]
["0691706710001","COOPERATIVA DE AHORRO Y CREDITO FERNANDO DAQUILEMA"]
["0691707555001","COOPERATIVA DE AHORRO Y CREDITO PATRIA LIMITADA"]
["0691708292001","COOPERATIVA DE AHORRO Y CREDITO BASHALAN LTDA"]
["0691708322001","COOPERATIVA DE AHORRO Y CREDITO SHOBOL LLIN LLIN LTDA"]
["0691708489001","COOPERATIVA DE AHORRO Y CREDITO RUNA SAPI"]
["0691710157001","COOPERATIVA DE AHORRO Y CREDITO 26 DE SEPTIEMBRE LAZARO CONDO"]
["0691711498001","COOPERATIVA DE AHORRO Y CREDITO 7 DE OCTUBRE"]
["0691712850001","COOPERATIVA DE AHORRO Y CREDITO NUEVA ESPERANZA DE LOS PULLES"]
["0691713814001","COOPERATIVA DE AHORRO Y CREDITO CACHA DUCHICELA"]
["0691715051001","COOPERATIVA DE AHORRO Y CREDITO DESARROLLO ANDINO"]
["0691715205001","COOPERATIVA DE AHORRO Y CREDITO DE LA MICROEMPRESA DE CHIMBORAZO LTDA"]
["0691716015001","COOPERATIVA DE AHORRO Y CREDITO HOSPITAL PEDIATRICO ALFONSO VILLAGOMEZ"]
["0691716023001","COOPERATIVA DE AHORRO Y CREDITO NUEVA VIDA"]
["0691716074001","COOPERATIVA DE AHORRO Y CREDITO DIVINO NIÑO"]
["0691716694001","COOPERATIVA DE AHORRO Y CREDITO EL BUEN SEMBRADOR LTDA"]
["0691717348001","COOPERATIVA DE AHORRO Y CREDITO HOSPITAL POLICLINICO DE RIOBAMBA \"EN LIQUIDACION\""]
["0691718301001","COOPERATIVA DE AHORRO Y CREDITO 4 DE OCTUBRE SAN FRANCISCO DE CHAMBO"]
["0691718417001","COOPERATIVA DE AHORRO Y CREDITO ÑAUPA KAUSAY"]
["0691720500001","UNION DE COOPERATIVAS DE AHORRO Y CREDITO DEL CENTRO"]
["0691720721001","COOPERATIVA DE AHORRO Y CREDITO NUEVA ESPERANZA LTDA. - RIOBAMBA"]
["0691720764001","COOPERATIVA DE AHORRO Y CREDITO 29 DE JUNIO LTDA."]
["0691721965001","COOPERATIVA DE AHORRO Y CREDITO SEMBRANDO FUTURO"]
["0691722139001","COOPERATIVA DE AHORRO Y CREDITO CHIMBORAZO LTDA \"EN LIQUIDACION\""]
["0691722252001","COOPERATIVA DE AHORRO Y CREDITO SAN ALFONSO LTDA. - CHIMBORAZO"]
["0691722309001","COOPERATIVA DE AHORRO Y CREDITO JASPE LTDA"]
["0691722449001","COOPERATIVA DE AHORRO Y CREDITO MUSHUK YUYAY - CHIMBORAZO LTDA."]
["0691722554001","COOPERATIVA DE AHORRO Y CREDITO BANCO PROINDIO AMERICANO LTDA."]
["0691723356001","COOPERATIVA DE AHORRO Y CREDITO SANTIAGO DE QUITO LTDA EN LIQUIDACION"]
["0691726517001","COOPERATIVA DE AHORRO Y CREDITO NACION PURUHA LTDA \"EN LIQUIDACION\""]
["0691726649001","COOPERATIVA DE AHORRO Y CREDITO INDIGENAS DE CEBADAS COICE LTDA."]
["0691726878001","COOPERATIVA DE AHORRO Y CREDITO ÑUKA LLAKTA"]
["0691726959001","COOPERATIVA DE AHORRO Y CREDITO PEDRO VICENTE MALDONADO"]
["0691727157001","COOPERATIVA DE AHORRO Y CREDITO CACHA LIMITADA"]
["0691727483001","COOPERATIVA DE AHORRO Y CREDITO WUIÑAY MARKA LTDA."]
["0691728382001","COOPERATIVA DE AHORRO Y CREDITO ALLI TARPUC"]
["0691728404001","COOPERATIVA DE AHORRO Y CREDITO MARIA INMACULADA LTDA."]
["0691728668001","COOPERATIVA DE AHORRO Y CREDITO NUEVA ALIANZA DE CHIMBORAZO LTDA"]
["0691729281001","COOPERATIVA DE AHORRO Y CREDITO CHUNCHI LTDA."]
["0691729524001","COOPERATIVA DE AHORRO Y CREDITO SAGRADA FAMILIA DE SOLIDARIDAD DE LA PASTORAL INDIGENA DE CACHA LTDA"]
["0691730573001","COOPERATIVA DE AHORRO Y CREDITO NIZAG LTDA"]
["0691730670001","COOPERATIVA DE AHORRO Y CREDITO PACIFICO"]
["0691730875001","COOPERATIVA DE AHORRO Y CREDITO MERCEDES CADENA"]
["0691730972001","COOPERATIVA DE AHORRO Y CREDITO MAKITA KUNCHIK"]
["0691731111001","COOPERATIVA DE AHORRO Y CREDITO PROYECCION LTDA"]
["0691731529001","COOPERATIVA DE AHORRO Y CREDITO LUIS FELIPE DUCHICELA XXVII"]
["0691731995001","COOPERATIVA DE AHORRO Y CREDITO CONSTRUCTOR DEL DESARROLLO SOLIDARIO CODESO LTDA"]
["0691732231001","COOPERATIVA DE AHORRO Y CREDITO JESUS DE NAZARETH LTDA"]
["0691732398001","COOPERATIVA DE AHORRO Y CREDITO LUZ DE AMERICA LTDA."]
["0691732584001","COOPERATIVA DE AHORRO Y CREDITO SOL DE LOS ANDES LTDA. - CHIMBORAZO"]
["0691732886001","COOPERATIVA DE AHORRO Y CREDITO ACCION CHIMBORAZO LTDA EN LIQUIDACION"]
["0691733300001","COOPERATIVA DE AHORRO Y CREDITO COLTEÑITA AYLLUCUNAPAC LTDA"]
["0691733378001","COOPERATIVA DE AHORRO Y CREDITO ALTAS CUMBRES LTDA"]
["0691733610001","COOPERATIVA DE AHORRO Y CREDITO INTI LTDA. \"EN LIQUIDACION\""]
["0691734072001","COOPERATIVA DE AHORRO Y CREDITO SUDAMERICA LTDA"]
["0691734196001","COOPERATIVA DE AHORRO Y CREDITO EL ALTAR LTDA"]
["0691734765001","COOPERATIVA DE AHORRO Y CREDITO FRANDESC LTDA"]
["0691734811001","COOPERATIVA DE AHORRO Y CREDITO RUNA KUNA LTDA"]
["0691735583001","COOPERATIVA DE AHORRO Y CREDITO AVANZA ECUADOR"]
["0691736288001","COOPERATIVA DE AHORRO Y CREDITO CORPORACION MUSHUK PAKARI - RIOBAMBA LTDA."]
["0691736350001","COOPERATIVA DE AHORRO Y CREDITO UNIANDES LTDA"]
["0691736636001","COOPERATIVA DE AHORRO Y CREDITO ICHUBAMBA LTDA"]
["0691737020001","COOPERATIVA DE AHORRO Y CREDITO ACHIK PAKARI LTDA"]
["0691738094001","CORPORACION DE DESARROLLO SOCIAL Y FINANCIERA GUACONAS COFIDEG"]
["0691738671001","COOPERATIVA DE AHORRO Y CREDITO  ALTERNATIVA PURUWA"]
["0691739295001","COOPERATIVA DE AHORRO Y CREDITO ACHUPALLAS LTDA."]
["0691748774001","UNIÓN PROVINCIAL DE COOPERATIVAS DE AHORRO Y CREDITO DE CHIMBORAZO “UPROCACH”"]
["0790015002001","COOPERATIVA DE AHORRO Y CREDITO ONCE DE JUNIO LTDA."]
["0790024656001","COOPERATIVA DE AHORRO Y CREDITO SANTA ROSA LTDA"]
["0790030745001","COOPERATIVA DE AHORRO Y CREDITO EDUCADORES DE EL ORO LTDA"]
["0790057813001","COOPERATIVA DE AHORRO Y CREDITO EMPLEADOS BANCARIOS DE EL ORO LTDA. \"EN LIQUIDACION\""]
["0790081366001","COOPERATIVA DE AHORRO Y CREDITO LUZ DE EL ORO LTDA"]
["0790088611001","COOPERATIVA DE AHORRO Y CREDITO 16 DE JUNIO"]
["0790097696001","COOPERATIVA DE AHORRO Y CREDITO DE EMPLEADOS Y TRABAJADORES MUNICIPALES DE MACHALA"]
["0790103955001","COOPERATIVA DE AHORRO Y CREDITO OBRAS PUBLICAS FISCALES DE EL ORO EN LIQUIDACION"]
["0791704499001","COOPERATIVA DE AHORRO Y CREDITO MARCABELI LTDA"]
["0791709407001","COOPERATIVA DE AHORRO Y CREDITO DEL SINDICATO DE CHOFERES PROFESIONALES DEL CANTON SANTA ROSA VIRGEN DEL CISNE"]
["0791720702001","COOPERATIVA DE AHORRO Y CREDITO BALSAS LTDA"]
["0791721040001","COOPERATIVA DE AHORRO Y CREDITO SERVIDORES DE LA UNIVERSIDAD TECNICA DE MACHALA"]
["0791724732001","COOPERATIVA DE AHORRO Y CREDITO NUEVOS HORIZONTES EL ORO LTDA"]
["0791730619001","COOPERATIVA DE AHORRO Y CREDITO FAMILIA SOLIDARIA"]
["0791743133001","COOPERATIVA DE AHORRO Y CREDITO FUENTE DE VIDA"]
["0791743915001","COOPERATIVA DE AHORRO Y CREDITO HUAQUILLAS LTDA"]
["0791744660001","COOPERATIVA DE AHORRO Y CREDITO POPULAR Y SOLIDARIA"]
["0791746566001","COOPERATIVA DE AHORRO Y CREDITO SOCIO AMIGO COOPSA"]
["0791753082001","COOPERATIVA DE AHORRO Y CREDITO PUKRO LTDA \"EN LIQUIDACION\""]
["0890011802001","COOPERATIVA DE AHORRO Y CREDITO ANTORCHA LTDA."]
["0890041388001","COOPERATIVA DE AHORRO Y CREDITO AFRO ECUATORIANA DE LA PEQUEÑA EMPRESA LTDA CACAEPE"]
["0891700288001","COOPERATIVA DE AHORRO Y CREDITO DE LOS EMPLEADOS JUDICIALES DE ESMERALDAS 30 DE JUNIO"]
["0891704305001","COOPERATIVA DE AHORRO Y CREDITO NUESTROS ABUELOS LTDA"]
["0891704607001","COOPERATIVA DE AHORRO Y CREDITO 10 DE AGOSTO"]
["0891708122001","COOPERATIVA DE AHORRO Y CREDITO SUINBA"]
["0891713045001","COOPERATIVA DE AHORRO Y CREDITO ESMERALDAS SOLIDARIA LTDA."]
["0891719566001","COOPERATIVA DE AHORRO Y CREDITO 11 DE AGOSTO DE DOCENTES Y ADMINISTRATIVOS DEL COLEGIO ROBERTO LUIS CERVANTES MONTAÑO EN LIQUIDACION"]
["0891721595001","COOPERATIVA DE AHORRO Y CREDITO DE LOS TRABAJADORES DE LA ILUSTRE MUNICIPALIDAD DEL CANTON ESMERALDAS"]
["0891736088001","COOPERATIVA DE AHORRO Y CREDITO 21 DE SEPTIEMBRE EN LIQUIDACION"]
["0990101914001","COOPERATIVA DE AHORRO Y CREDITO GRUPO NUMERO TRES LIMITADA"]
["0990138850001","COOPERATIVA DE AHORRO Y CREDITO LA DOLOROSA LTDA."]
["0990162158001","COOPERATIVA DE AHORRO Y CREDITO GRAN COLOMBIA"]
["0990214247001","COOPERATIVA DE AHORRO Y CREDITO ATAHUALPA LTDA."]
["0990217440001","COOPERATIVA DE AHORRO Y CREDITO MECANOS LTDA"]
["0990247536001","COOPERATIVA DE AHORRO Y CREDITO DESARROLLO DE LOS PUEBLOS LTDA."]
["0990258953001","COOPERATIVA DE AHORRO Y CREDITO ARMADA NACIONAL"]
["0990320160001","COOPERATIVA DE AHORRO Y CREDITO DR. CORNELIO SAENZ VERA LTDA."]
["0990484783001","COOPERATIVA DE AHORRO Y CREDITO UNIVERSIDAD DE GUAYAQUIL"]
["0990593418001","COOPERATIVA DE AHORRO Y CREDITO INSTITUTO NACIONAL DE HIGIENE LEOPOLDO IZQUIETA PEREZ"]
["0990622019001","COOPERATIVA DE AHORRO Y CREDITO  E.T.G.\" LTDA.\""]
["0990672342001","COOPERATIVA DE AHORRO Y CREDITO SAN CARLOS LTDA."]
["0990846685001","COOPERATIVA DE AHORRO Y CREDITO NUESTRA SEÑORA DE LAS MERCEDES LTDA."]
["0990858527001","COOPERATIVA DE AHORRO Y CREDITO “SALITRE LTDA.\""]
["0990872562001","COOPERATIVA DE AHORRO Y CREDITO METROPOLITANA"]
["0990904839001","COOPERATIVA DE AHORRO Y CREDITO \"26 DE JULIO\" LTDA."]
["0991112847001","COOPERATIVA DE AHORRO Y CREDITO JOSE JOAQUIN PINO YCAZA"]
["0991306951001","COOPERATIVA DE AHORRO Y CREDITO FAMILIA INGASEOSAS LTDA."]
["0991311890001","COOPERATIVA DE AHORRO Y CREDITO TRABAJADORES Y EX TRABAJADORES DEL MINISTERIO DE SALUD PUBLICA - COACMIN"]
["0991313656001","COOPERATIVA DE AHORRO Y CREDITO 19 DE SEPTIEMBRE"]
["0991318941001","COOPERATIVA DE AHORRO Y CRÉDITO DE EMPLEADOS DEL BANCO DEL PACIFICO"]
["0991358285001","COOPERATIVA DE AHORRO Y CREDITO JUJAN LTDA EN LIQUIDACION"]
["0991376992001","COOPERATIVA DE AHORRO Y CREDITO BANCO DE GUAYAQUIL"]
["0991385312001","COOPERATIVA DE AHORRO Y CREDITO ATI II PILLAHUASO"]
["0991392866001","COOPERATIVA DE AHORRO Y CREDITO NABISCO ROYAL LTDA."]
["0991393994001","COOPERATIVA DE AHORRO Y CREDITO DE LOS EMPLEADOS DE STANDARD FRUIT COMPANY"]
["0991394273001","COOPERATIVA DE AHORRO Y CREDITO DE LOS TRABAJADORES DE LAS INDUSTRIAS ENVASES DEL LITORAL Y PLASTICOS DEL LITORAL"]
["0991501258001","COOPERATIVA DE AHORRO Y CREDITO BASE DE TAURA"]
["0991502297001","COOPERATIVA DE AHORRO Y CREDITO DEL PERSONAL DE LA C.T.G."]
["0991505067001","COOPERATIVA DE AHORRO Y CREDITO INIAP - BOLICHE"]
["0991505083001","COOPERATIVA DE AHORRO Y CREDITO 3 DE JUNIO DEL COLEGIO FISCAL JOSE MARIA VELASCO IBARRA"]
["0992114592001","COOPERATIVA DE AHORRO Y CREDITO SAISA EN LIQUIDACION"]
["0992130954001","COOPERATIVA DE AHORRO Y CREDITO PETROECUADOR PENINSULA Y SUS FILIALES LTDA"]
["0992133295001","COOPERATIVA DE AHORRO Y CREDITO 3 DE SEPTIEMBRE"]
["0992162937001","COOPERATIVA DE AHORRO Y CREDITO  LA SALLE\""]
["0992164727001","COOPERATIVA DE AHORRO Y CREDITO EDUCADORES DEL GUAYAS LTDA."]
["0992170476001","COOPERATIVA DE AHORRO Y CREDITO DE EMPLEADOS JUDICIALES DEL GUAYAS"]
["0992178809001","COOPERATIVA DE AHORRO Y CREDITO SAN FRANCISCO DE MILAGRO"]
["0992182938001","COOPERATIVA DE AHORRO Y CREDITO DEL COLEGIO FISCAL EXPERIMENTAL VICENTE ROCAFUERTE"]
["0992198990001","COOPERATIVA DE AHORRO Y CREDITO GRUPO DIFARE"]
["0992206144001","COOPERATIVA DE AHORRO Y CREDITO ANGLO"]
["0992214740001","COOPERATIVA DE AHORRO Y CREDITO 23 DE JUNIO LTDA. EN LIQUIDACION"]
["0992224819001","COOPERATIVA DE AHORRO Y CREDITO 27 DE AGOSTO"]
["0992247622001","COOPERATIVA DE AHORRO Y CREDITO AMARILIS FUENTES ALCIVAR"]
["0992280700001","COOPERATIVA DE AHORRO Y CREDITO NUEVA HUANCAVILCA"]
["0992284048001","COOPERATIVA DE AHORRO Y CREDITO DE LOS EMPLEADOS DE SERVIENTREGA S.A.; TERCERIZADORAS, CONTRATISTAS Y PROVEEDORES"]
["0992377488001","COOPERATIVA DE AHORRO Y CREDITO CONECEL"]
["0992381760001","COOPERATIVA DE AHORRO Y CREDITO LOS ANDES LATINOS LTDA."]
["0992395044001","COOPERATIVA DE AHORRO Y CREDITO 28 DE MAYO EN LIQUIDACION"]
["0992415894001","COOPERATIVA DE AHORRO Y CREDITO MAKITA KUK"]
["0992419601001","COOPERATIVA DE AHORRO Y CREDITO BALZAR\" LTDA.\""]
["0992463619001","COOPERATIVA DE AHORRO Y CREDITO DEL EMIGRANTE ECUATORIANO Y SU FAMILIA LTDA."]
["0992470550001","COOPERATIVA DE AHORRO Y CREDITO METROPOLIS LTDA."]
["0992484667001","COOPERATIVA DE AHORRO Y CREDITO ESPERANZA DE VALLE DE LA VIRGEN LTDA."]
["0992505087001","COOPERATIVA DE AHORRO Y CREDITO MIFEX\"\""]
["0992523239001","COOPERATIVA DE AHORRO Y CREDITO CREDIUNION\"LTDA.\""]
["0992527420001","COOPERATIVA DE AHORRO Y CREDITO SOLIDARIDAD EN PRESTAMO"]
["0992532114001","COOPERATIVA DE AHORRO Y CREDITO 21 DE JUNIO LTDA."]
["0992533005001","COOPERATIVA DE AHORRO Y CREDITO DE LOS CONTROLADORES DE TRANSITO AEREO DEL ECUADOR COOPERATIVA  ATC"]
["0992544481001","COOPERATIVA DE AHORRO Y CREDITO TRES DE JUNIO"]
["0992579765001","COOPERATIVA DE AHORRO Y CREDITO GUARUMAL DEL CENTRO LTDA. EN LIQUIDACION"]
["0992596805001","COOPERATIVA DE AHORRO Y CREDITO AGUILAS DE CRISTO"]
["0992631872001","COOPERATIVA DE AHORRO Y CREDITO ESPERANZA Y DESARROLLO"]
["0992635762001","COOPERATIVA DE AHORRO Y CREDITO LA BUENA ESPERANZA LTDA"]
["0992641134001","COOPERATIVA DE AHORRO Y CREDITO 12 DE DICIEMBRE DEL COLEGIO FISCAL JOSE JOAQUIN PINO YCAZA"]
["0992650079001","COOPERATIVA DE AHORRO Y CREDITO DE LOS EMPLEADOS DE LA H. JUNTA DE BENEFICENCIA DE GUAYAQUIL"]
["0992658282001","COOPERATIVA DE AHORRO Y CREDITO MUNICIPAL AGROCOMERCIAL LTDA"]
["0992660368001","COOPERATIVA DE AHORRO Y CREDITO DE LOS EMPLEADOS DE CERVECERIA NACIONAL S.A. Y DINADEC S.A. CRECER"]
["0992682574001","COOPERATIVA DE AHORRO Y CREDITO DE PROFESIONALES DE LA EDUCACION DE LA PROVINCIA DEL GUAYAS"]
["0992690585001","COOPERATIVA DE AHORRO Y CREDITO ZONA DE CAPITAL CORCIMOL"]
["0992693517001","COOPERATIVA DE AHORRO Y CREDITO  DE TRABAJADORES AGRIFONDOS"]
["0992696125001","COOPERATIVA DE AHORRO Y CREDITO DE LOS EMPLEADOS DE HIVIMAR"]
["0992696974001","COOPERATIVA DE AHORRO Y CREDITO DE LA CAMARA DE AGRICULTURA II ZONA C. C. A. LTDA."]
["0992703369001","COOPERATIVA DE AHORRO Y CREDITO LUZ ESPERANZA DE AGRICULTORES DE"]
["0992708565001","COOPERATIVA DE AHORRO Y CREDITO CAJA DE ACERO DE LOS TRABAJADORES DE LA CIA. TALME S.A."]
["0992715634001","COOPERATIVA DE AHORRO Y CREDITO CREDIPACIFICO LTDA. - GUAYAS"]
["0992720743001","COOPERATIVA DE AHORRO Y CREDITO F.S. CRYSTAL LTDA."]
["0992720964001","COOPERATIVA DE AHORRO Y CREDITO LOS EMPRENDEDORES"]
["0992721308001","COOPERATIVA DE AHORRO Y CREDITO 8 DE OCTUBRE"]
["0992740779001","COOPERATIVA DE AHORRO Y CREDITO LTDA. APOYO FAMILIAR"]
["0992742607001","COOPERATIVA DE AHORRO Y CREDITO 22 DE OCTUBRE"]
["0992746122001","COOPERATIVA DE AHORRO Y CREDITO CUNA DE LA NACIONALIDAD LTDA."]
["0992762071001","COOPERATIVA DE AHORRO Y CREDITO CORASOGAN -G"]
["0992769815001","COOPERATIVA DE AHORRO Y CREDITO CREDIAHORRO - GUAYAS"]
["0992772360001","COOPERATIVA DE AHORRO Y CREDITO JOSE DAGER MENDOZA"]
["0992778652001","COOPERATIVA DE AHORRO Y CREDITO DEL SECTOR PESQUERO ARTESANAL CREDIPESCA LTDA."]
["0992787686001","COOPERATIVA DE AHORRO Y CREDITO PLASTIGAMA"]
["1090007641001","COOPERATIVA DE AHORRO Y CREDITO MAESTROS ASOCIADOS DE IMBABURA LTDA"]
["1090033456001","COOPERATIVA DE AHORRO Y CREDITO ATUNTAQUI LTDA"]
["1090046892001","COOPERATIVA DE AHORRO Y CREDITO SAN ANTONIO LTDA. - IMBABURA"]
["1090058521001","COOPERATIVA DE AHORRO Y CREDITO UNION EL EJIDO"]
["1090078263001","COOPERATIVA DE AHORRO Y CREDITO DE INDIGENAS CHUCHUQUI LTDA."]
["1090104655001","COOPERATIVA DE AHORRO Y CREDITO DE IMBABURA AMAZONAS"]
["1090105783001","COOPERATIVA DE AHORRO Y CREDITO HUAYCO PUNGO"]
["1090107174001","COOPERATIVA DE AHORRO Y CREDITO ARTESANOS LTDA."]
["1091701851001","COOPERATIVA DE AHORRO Y CREDITO UNION COCHAPAMBA"]
["1091707019001","COOPERATIVA DE AHORRO Y CREDITO FORTALEZA"]
["1091708139001","COOPERATIVA DE AHORRO Y CREDITO SANTA ANITA LTDA."]
["1091708856001","COOPERATIVA DE AHORRO Y CREDITO EMPLEADOS MUNICIPALES DE OTAVALO LTDA."]
["1091712284001","COOPERATIVA DE AHORRO Y CREDITO MUJERES UNIDAS TANTANAKUSHKA WARMIKUNAPAK - CACMU"]
["1091714791001","COOPERATIVA DE AHORRO Y CREDITO BOLA AMARILLA"]
["1091715143001","COOPERATIVA DE AHORRO Y CREDITO SALINERITA"]
["1091715399001","UNION DE COOPERATIVAS DE AHORRO Y CREDITO DEL NORT"]
["1091715747001","COOPERATIVA DE AHORRO Y CREDITO CHAUPILOMA"]
["1091715941001","COOPERATIVA DE AHORRO Y CREDITO 14 DE MAYO"]
["1091716697001","COOPERATIVA DE AHORRO Y CREDITO IMBABURA IMBACOOP LTDA."]
["1091719653001","COOPERATIVA DE AHORRO Y CREDITO MARIA AUXILIADORA DE QUIROGA LTDA."]
["1091720511001","COOPERATIVA DE AHORRO Y CREDITO CHIRIHUASI LTDA. EN LIQUIDACION"]
["1091720902001","COOPERATIVA DE AHORRO Y CREDITO PILAHUIN TIO LTDA"]
["1091721569001","COOPERATIVA DE AHORRO Y CREDITO IMBABURA LTDA."]
["1091722425001","COOPERATIVA DE AHORRO Y CREDITO ESCENCIA INDIGENA LTDA"]
["1091723391001","COOPERATIVA DE AHORRO Y CREDITO LA MAGDALENA LTDA"]
["1091724053001","COOPERATIVA DE AHORRO Y CREDITO CHACHIMBIRO"]
["1091724487001","COOPERATIVA DE AHORRO Y CREDITO PIJAL"]
["1091728148001","COOPERATIVA DE AHORRO Y CREDITO UNIOTAVALO LTDA"]
["1091732161001","COOPERATIVA DE AHORRO Y CREDITO MUSHUK PAKARI LTDA"]
["1091732935001","COOPERATIVA DE AHORRO Y CREDITO ACCION IMBABURAPAK LTDA"]
["1091733559001","COOPERATIVA DE AHORRO Y CREDITO ECUACREDITOS LTDA"]
["1091735497001","COOPERATIVA DE AHORRO Y CREDITO GENESIS LTDA"]
["1190015110001","COOPERATIVA DE AHORRO Y CREDITO PADRE JULIAN LORENTE LTDA."]
["1190015544001","COOPERATIVA DE AHORRO Y CREDITO OBRAS PUBLICAS FISCALES DE LOJA Y ZAMORA"]
["1190035545001","COOPERATIVA DE AHORRO Y CREDITO CAMARA DE COMERCIO DE LOJA LTDA"]
["1190035863001","COOPERATIVA DE AHORRO Y CREDITO CATAMAYO"]
["1190036967001","COOPERATIVA DE AHORRO Y CREDITO EDUCADORES DE LOJA"]
["1190068389001","COOPERATIVA DE AHORRO Y CREDITO VICENTINA MANUEL ESTEBAN GODOY ORTEGA LTDA."]
["1190075539001","COOPERATIVA DE AHORRO Y CREDITO DE LA PEQUEÑA EMPRESA CACPE LOJA LTDA."]
["1190078937001","COOPERATIVA DE AHORRO Y CREDITO CACPE CELICA"]
["1190079569001","COOPERATIVA DE AHORRO Y CREDITO DE LA PEQUEÑA EMPRESA CACPE MACARA"]
["1190080966001","COOPERATIVA DE AHORRO Y CREDITO NUEVOS HORIZONTES LOJA LTDA. EN LIQUIDACION"]
["1190082462001","COOPERATIVA DE AHORRO Y CREDITO CRISTO REY"]
["1190083213001","COOPERATIVA DE AHORRO Y CREDITO TRES DE DICIEMBRE"]
["1190083272001","COOPERATIVA DE AHORRO Y CREDITO MERCADO CENTRO COMERCIAL LOJA"]
["1191700895001","COOPERATIVA DE AHORRO Y CREDITO HOSPITAL MILITAR"]
["1191704750001","COOPERATIVA DE AHORRO Y CREDITO 29 DE ENERO CHAGUARPAMBA"]
["1191704823001","COOPERATIVA DE AHORRO Y CREDITO LAS LAGUNAS"]
["1191707660001","COOPERATIVA DE AHORRO Y CREDITO DEL INSTITUTO DANIEL ALVAREZ BURNEO"]
["1191707776001","COOPERATIVA DE AHORRO Y CREDITO 27 DE ABRIL"]
["1191708152001","COOPERATIVA DE AHORRO Y CREDITO DEL SINDICATO DE CHOFERES PROFESIONALES DEL CANTON YANTZAZA"]
["1191708632001","COOPERATIVA DE AHORRO Y CREDITO SERVIDORES MUNICIPALES DE LOJA LTDA."]
["1191712249001","COOPERATIVA DE AHORRO Y CREDITO DE LA MICROEMPRESA FORTUNA"]
["1191713865001","COOPERATIVA DE AHORRO Y CREDITO PARA EL DESARROLLO DE LA REGION SUR CACDESUR"]
["1191715671001","COOPERATIVA DE AHORRO Y CREDITO DE PROFESIONALES DE LOJA"]
["1191717445001","COOPERATIVA DE AHORRO Y CREDITO DE LA CAMARA DE COMERCIO DE MACARA CADECOM"]
["1191718905001","COOPERATIVA DE AHORRO Y CREDITO SEMILLA DEL PROGRESO LTDA."]
["1191720470001","COOPERATIVA DE AHORRO Y CREDITO DE LA CAMARA DE COMERCIO DE CATAMAYO CADECAT LTDA"]
["1191720624001","COOPERATIVA DE AHORRO Y CREDITO DE LA CAMARA DE COMERCIO DE GONZANAMA"]
["1191720713001","COOPERATIVA DE AHORRO Y CREDITO MUSHUK MUYO LTDA"]
["1191721078001","COOPERATIVA DE AHORRO Y CREDITO CAMARA DE COMERCIO DE CELICA C.A.D.E.C.O.C. LTDA."]
["1191723062001","COOPERATIVA DE AHORRO Y CREDITO GONZANAMA"]
["1191723089001","COOPERATIVA DE AHORRO Y CREDITO QUILANGA LTDA."]
["1191723097001","COOPERATIVA DE AHORRO Y CREDITO SAN JOSE - AIRO"]
["1191723720001","COOPERATIVA DE AHORRO Y CREDITO 22 DE JUNIO"]
["1191724034001","COOPERATIVA DE AHORRO Y CREDITO 23 DE ENERO"]
["1191724530001","COOPERATIVA DE AHORRO Y CREDITO CAMARA DE COMERCIO DE PALANDA LTDA."]
["1191725669001","COOPERATIVA DE AHORRO Y CREDITO CREDIAMIGO LTDA."]
["1191725863001","COOPERATIVA DE AHORRO Y CREDITO SAN SEBASTIAN - LOJA"]
["1191726460001","COOPERATIVA DE AHORRO Y CREDITO CARIAMANGA LTDA."]
["1191726711001","COOPERATIVA DE AHORRO Y CREDITO DEL PRODUCTOR Y COMERCIANTE DE SAN LUCAS CADECPROC-SL"]
["1191733092001","COOPERATIVA DE AHORRO Y CREDITO 27 DE DICIEMBRE"]
["1191733246001","COOPERATIVA DE AHORRO Y CREDITO EL EMPRENDEDOR"]
["1191733645001","COOPERATIVA DE AHORRO Y CREDITO CASA FACIL LTDA. EN LIQUIDACION"]
["1191734102001","COOPERATIVA DE AHORRO Y CREDITO SANTIAGO LTDA"]
["1191734234001","COOPERATIVA DE AHORRO Y CREDITO DE LA PEQUEÑA Y MEDIANA EMPRESA COOPYMEC-MACARA"]
["1191734420001","COOPERATIVA DE AHORRO Y CREDITO DE LOS PROFESIONALES DEL VOLANTE UNION LTDA"]
["1191734978001","COOPERATIVA DE AHORRO Y CREDITO PROSPERAR LTDA. EN LIQUIDACION"]
["1191735702001","COOPERATIVA DE AHORRO Y CREDITO PROBIENESTAR LTDA"]
["1191736296001","COOPERATIVA DE AHORRO Y CREDITO DEL SINDICATO DE CHOFERES PROFESIONALES DE LOJA LTDA"]
["1191736423001","COOPERATIVA DE AHORRO Y CREDITO SARAGUROS"]
["1191736938001","COOPERATIVA DE AHORRO Y CREDITO SOLIDARIA LTDA"]
["1191736954001","COOPERATIVA DE AHORRO Y CREDITO VILCABAMBA CACVIL"]
["1191736989001","COOPERATIVA DE AHORRO Y CREDITO EL COMERCIANTE LTDA."]
["1191736997001","COOPERATIVA DE AHORRO Y CREDITO PARA EL DESARROLO DEL SUR LTDA."]
["1191738213001","COOPERATIVA DE AHORRO Y CREDITO DE CRECIMIENTO ECONOMICO RENTABLE CRECER LTDA"]
["1191738248001","COOPERATIVA DE AHORRO Y CREDITO MUSHUKWASI"]
["1191738329001","COOPERATIVA DE AHORRO Y CREDITO MIGRANTES & EMPRENDEDORES LTDA"]
["1191738868001","COOPERATIVA DE AHORRO Y CREDITO URDANETA LTDA"]
["1191739023001","COOPERATIVA DE AHORRO Y CREDITO INTI WASI LTDA INTICOOP"]
["1191739368001","COOPERATIVA DE AHORRO Y CREDITO UNION Y PROGRESO UNIPRO LTDA"]
["1191739392001","COOPERATIVA DE AHORRO Y CREDITO LOJA INTERNACIONAL LTDA"]
["1191740056001","COOPERATIVA DE AHORRO Y CREDITO JUVENTUD EMPRENDEDORA DE LOJA LTDA EN LIQUIDACION"]
["1191740617001","COOPERATIVA DE AHORRO Y CREDITO REINA DEL CISNE LTDA"]
["1191741400001","UNION DE COOPERATIVAS DE AHORRO Y CREDITO DE LA PROVINCIA DE LOJA UNICOOP"]
["1191741559001","COOPERATIVA DE AHORRO Y CREDITO ECONOMIA DEL SUR ECOSUR"]
["1191743187001","COOPERATIVA DE AHORRO Y CREDITO GLOBALCOOP"]
["1290025202001","COOPERATIVA DE AHORRO Y CREDITO QUEVEDO LTDA."]
["1290026055001","COOPERATIVA DE AHORRO Y CREDITO VINCES LTDA."]
["1290029224001","COOPERATIVA DE AHORRO Y CREDITO 13 DE ABRIL"]
["1290042204001","COOPERATIVA DE AHORRO Y CREDITO EDUCADORES DE QUEVEDO"]
["1290055926001","COOPERATIVA DE AHORRO Y CREDITO LA SOLUCION \"CACSOLU\""]
["1290067851001","COOPERATIVA DE AHORRO Y CREDITO UNIVERSIDAD TECNICA DE BABAHOYO"]
["1290068068001","COOPERATIVA DE AHORRO Y CREDITO SAN ANTONIO LTDA. - LOS RIOS"]
["1291700728001","COOPERATIVA DE AHORRO Y CREDITO PUEBLOVIEJO LTDA. \"EN LIQUIDACION\""]
["1291706866001","COOPERATIVA DE AHORRO Y CREDITO 6 DE OCTUBRE LTDA."]
["1291709636001","COOPERATIVA DE AHORRO Y CRÉDITO 25 DE SEPTIEMBRE"]
["1291713013001","COOPERATIVA DE AHORRO Y CREDITO LOS RIOS"]
["1291713501001","COOPERATIVA DE AHORRO Y CREDITO CREDI AHORRO LTDA. EN LIQUIDACION - LOS RIOS"]
["1291718317001","COOPERATIVA DE AHORRO Y CREDITO DE TRABAJADORES AGROPECUARIOS Y DE SERVICIOS EL PORVENIR"]
["1291721954001","COOPERATIVA DE AHORRO Y CREDITO EL PARAISO MANGA DEL CURA"]
["1291722039001","COOPERATIVA DE AHORRO Y CREDITO EL CAFETAL"]
["1291722837001","COOPERATIVA DE AHORRO Y CREDITO MOCACHE LTDA."]
["1291725429001","COOPERATIVA DE AHORRO Y CREDITO PUEBLO SOLIDARIO"]
["1291726352001","COOPERATIVA DE AHORRO Y CREDITO MOCACHE"]
["1291727049001","COOPERATIVA DE AHORRO Y CREDITO EDUCADORES 25 DE ABRIL"]
["1291730236001","COOPERATIVA DE AHORRO Y CREDITO FUNDAR"]
["1291730910001","COOPERATIVA DE AHORRO Y CREDITO 22 DE MARZO LTDA. \"EN LIQUIDACION\""]
["1291731518001","COOPERATIVA DE AHORRO Y CREDITO LA NUESTRA LTDA"]
["1291734622001","COOPERATIVA DE AHORRO Y CREDITO BUENA FE LTDA. EN LIQUIDACION"]
["1291735041001","COOPERATIVA DE AHORRO Y CREDITO INTERNA DOCENTE DE LA UNIVERSIDAD TECNICA ESTATAL DE QUEVEDO UTEQ LTDA."]
["1291737591001","COOPERATIVA DE AHORRO Y CREDITO EL DISCAPACITADO EN LIQUIDACION"]
["1291738067001","COOPERATIVA DE AHORRO Y CREDITO SANTA ROSA DE SAN CARLOS LTDA"]
["1291738997001","COOPERATIVA DE AHORRO Y CREDITO TRABAJADORES BANANEROS Y AGRICOLA \"EN LIQUIDACION\""]
["1390001920001","COOPERATIVA DE AHORRO Y CREDITO CALCETA LTDA."]
["1390007791001","COOPERATIVA DE AHORRO Y CREDITO CHONE LTDA."]
["1390013678001","COOPERATIVA DE AHORRO Y CREDITO 15 DE ABRIL LTDA."]
["1390016588001","COOPERATIVA DE AHORRO Y CREDITO CACPE MANABI"]
["1390017177001","COOPERATIVA DE AHORRO Y CREDITO MAGISTERIO MANABITA LIMITADA"]
["1390022189001","COOPERATIVA DE AHORRO Y CREDITO DE LOS PROFESORES, EMPLEADOS Y TRABAJADORES DE LA UNIVERSIDAD TECNICA DE MANABI"]
["1390089410001","COOPERATIVA DE AHORRO Y CREDITO COMERCIO LTDA."]
["1390091474001","COOPERATIVA DE AHORRO Y CREDITO SANTA ANA LTDA"]
["1390100120001","COOPERATIVA DE AHORRO Y CREDITO ARCO IRIS LTDA. EN LIQUIDACION"]
["1390135838001","COOPERATIVA DE AHORRO Y CRÉDITO CAMARA DE COMERCIO DE CHONE LTDA."]
["1390140238001","COOPERATIVA DE AHORRO Y CREDITO TRABAJADORES DE IETEL MANABI LTDA"]
["1390141463001","COOPERATIVA DE AHORRO Y CREDITO ABDON CALDERON LTDA."]
["1390143156001","COOPERATIVA DE AHORRO Y CREDITO LA BENEFICA LTDA."]
["1390147550001","COOPERATIVA DE AHORRO Y CREDITO DE LOS EMPLEADOS BANCO DEL PICHINCHA DE MANABI"]
["1390149022001","COOPERATIVA DE AHORRO Y CREDITO CHOFERES PROFESIONALES MANABI"]
["1391700059001","COOPERATIVA DE AHORRO Y CREDITO SAN MIGUEL DE CHIRIJO LIMITADA"]
["1391700261001","COOPERATIVA DE AHORRO Y CREDITO OLMEDO LTDA EN LIQUIDACION"]
["1391707363001","COOPERATIVA DE AHORRO Y CREDITO MICROEMPRESARIAL SUCRE"]
["1391708637001","COOPERATIVA DE AHORRO Y CREDITO DE EMPLEADOS DE MODERNA ALIMENTOS"]
["1391710623001","COOPERATIVA DE AHORRO Y CREDITO POR EL PAN Y EL AGUA"]
["1391714246001","COOPERATIVA DE AHORRO Y CREDITO AGRICOLA JUNIN"]
["1391720599001","COOPERATIVA DE AHORRO Y CREDITO SAN GREGORIO LTDA."]
["1391723113001","COOPERATIVA DE AHORRO Y CREDITO FLAVIO ALFARO LTDA."]
["1391725752001","COOPERATIVA DE AHORRO Y CREDITO DE LA CONSTRUCCION"]
["1391726597001","COOPERATIVA DE AHORRO Y CREDITO CAMARA DE COMERCIO DEL CANTON BOLIVAR LTDA."]
["1391734301001","COOPERATIVA DE AHORRO Y CREDITO PUERTO LOPEZ LTDA."]
["1391737335001","COOPERATIVA DE AHORRO Y CREDITO CAMARA DE COMERCIO TOSAGUA LTDA."]
["1391738153001","COOPERATIVA DE AHORRO Y CREDITO UMIÑA LTDA."]
["1391740751001","COOPERATIVA DE AHORRO Y CREDITO CAMPO DE UNION Y PROGRESO SAN ISIDRO CUPSI LIMITADA"]
["1391742509001","COOPERATIVA DE AHORRO Y CREDITO FOCAZSUM"]
["1391742525001","COOPERATIVA DE AHORRO Y CREDITO SAN ISIDRO LTDA."]
["1391747942001","COOPERATIVA DE AHORRO Y CREDITO CHARAPOTO LTDA. EN LIQUIDACION"]
["1391748523001","COOPERATIVA DE AHORRO Y CREDITO AGRO PRODUCTIVA MANABI LTDA."]
["1391753756001","COOPERATIVA DE AHORRO Y CREDITO VISION LTDA"]
["1391754418001","COOPERATIVA DE AHORRO Y CREDITO MUNICIPAL 31 DE AGOSTO LTDA. EN LIQUIDACION"]
["1391754566001","COOPERATIVA DE AHORRO Y CREDITO SANTA MARIA LTDA EN LIQUIDACION"]
["1391765843001","COOPERATIVA DE AHORRO Y CREDITO ACCION Y PROGRESO LTDA"]
["1391767870001","COOPERATIVA DE AHORRO Y CREDITO LA UNION LTDA"]
["1391769504001","COOPERATIVA DE AHORRO Y CREDITO CAMARA DE COMERCIO DEL CANTON EL CARMEN LTDA."]
["1391769601001","COOPERATIVA DE AHORRO Y CREDITO DE EMPLEADOS MUNICIPALES COOPEMUCH LTDA."]
["1391773021001","COOPERATIVA DE AHORRO Y CREDITO CRUCITA LTDA EN LIQUIDACION"]
["1391775016001","COOPERATIVA DE AHORRO Y CREDITO DE LA ESCUELA SUPERIOR POLITECNICA AGROPECUARIA DE MANABI MANUEL FELIX LOPEZ"]
["1391775466001","COOPERATIVA DE AHORRO Y CREDITO LA INMACULADA DE SAN PLACIDO LTDA."]
["1391775660001","COOPERATIVA DE AHORRO Y CREDITO SAN PLACIDO"]
["1391775695001","COOPERATIVA DE AHORRO Y CREDITO TIENDA DE DINERO LTDA."]
["1391779356001","COOPERATIVA DE AHORRO Y CREDITO KOLPING LTDA"]
["1391779577001","COOPERATIVA DE AHORRO Y CREDITO RIOCHICO LTDA"]
["1391782810001","COOPERATIVA DE AHORRO Y CREDITO CAMARA DE COMERCIO ROCAFUERTE LTDA."]
["1391784414001","COOPERATIVA DE AHORRO Y CREDITO CRISTO REY LTDA. - NUEVO CORREAGUA"]
["1391793790001","COOPERATIVA DE AHORRO Y CREDITO INTERCULTURAL BOLIVARIANA LTDA."]
["1490005710001","COOPERATIVA DE AHORRO Y CREDITO DE LA PEQUEÑA EMPRESA GUALAQUIZA"]
["1490005737001","COOPERATIVA DE AHORRO Y CREDITO DE LA PEQUEÑA EMPRESA DE PALORA"]
["1490801045001","COOPERATIVA DE AHORRO Y CREDITO MORONA LTDA."]
["1590001585001","COOPERATIVA DE AHORRO Y CREDITO TENA LTDA."]
["1590016787001","COOPERATIVA DE AHORRO Y CREDITO 16 DE ENERO LTDA."]
["1590017007001","COOPERATIVA DE AHORRO Y CREDITO UNION AMAZONICA"]
["1590017589001","COOPERATIVA DE AHORRO Y CREDITO COCA LTDA"]
["1590019328001","COOPERATIVA DE AHORRO Y CREDITO EDUCADORES DEL NAPO"]
["1591708887001","COOPERATIVA DE AHORRO Y CREDITO MUSHUK YUYAY - NAPO"]
["1690000632001","COOPERATIVA DE AHORRO Y CREDITO EDUCADORES DE PASTAZA LTDA"]
["1690012606001","COOPERATIVA DE AHORRO Y CREDITO DE LA PEQUEÑA EMPRESA DE PASTAZA LTDA."]
["1691703106001","COOPERATIVA DE AHORRO Y CREDITO SANTA CLARA LIMITADA PASTAZA"]
["1691704536001","COOPERATIVA DE AHORRO Y CREDITO AMAZONAS LTDA.\"EN LIQUIDACION\""]
["1691705753001","COOPERATIVA DE AHORRO Y CREDITO MUSHUK YUYAI - PASTAZA LTDA."]
["1691711966001","COOPERATIVA DE AHORRO Y CREDITO LATINO AMERICANA"]
["1691712059001","COOPERATIVA DE AHORRO Y CREDITO SOL DE ORIENTE LTDA EN LIQUIDACION"]
["1691712474001","COOPERATIVA DE AHORRO Y CREDITO JUVENTUD ANDINA"]
["1691713144001","COOPERATIVA DE AHORRO Y CREDITO ORIENTE"]
["1768168480001","CORPORACION NACIONAL DE FINANZAS POPULARES Y SOLIDARIAS"]
["1790023508001","COOPERATIVA DE AHORRO Y CREDITO COTOCOLLAO LTDA."]
["1790045668001","COOPERATIVA DE AHORRO Y CREDITO SAN FRANCISCO DE ASIS LTDA."]
["1790049582001","FEDERACION NACIONAL DE COOPERATIVAS DE AHORRO Y CREDITO DEL ECUADOR"]
["1790093204001","COOPERATIVA DE AHORRO Y CREDITO 23 DE JULIO LTDA"]
["1790100294001","COOPERATIVA DE AHORRO Y CREDITO SAN CRISTOBAL LTDA."]
["1790100545001","COOPERATIVA DE AHORRO Y CREDITO ATAHUALPA"]
["1790127303001","COOPERATIVA DE AHORRO Y CREDITO HELENA CORTES DE GUTIERREZ DEL COLEGIO DE SEÑORITAS SIMON BOLIVAR LTDA"]
["1790144720001","COOPERATIVA DE AHORRO Y CREDITO ELOY ALFARO"]
["1790153568001","COOPERATIVA DE AHORRO Y CREDITO MERCADO CENTRAL"]
["1790157490001","COOPERATIVA DE AHORRO Y CREDITO VONNELAN"]
["1790170047001","COOPERATIVA DE AHORRO Y CREDITO CIUDAD DE QUITO"]
["1790325083001","COOPERATIVA DE AHORRO Y CREDITO ANDALUCIA LTDA."]
["1790394077001","COOPERATIVA DE AHORRO Y CREDITO SANTA CLARA DE SAN MILLAN LTDA."]
["1790451801001","COOPERATIVA DE AHORRO Y CREDITO COOPROGRESO LTDA."]
["1790495507001","COOPERATIVA DE AHORRO Y CREDITO DEL MAGISTERIO DE PICHINCHA"]
["1790499871001","COOPERATIVA DE AHORRO Y CREDITO 16 DE JULIO LTDA"]
["1790501469001","COOPERATIVA DE AHORRO Y CREDITO ALIANZA DEL VALLE LTDA."]
["1790525503001","COOPERATIVA DE AHORRO Y CREDITO EJERCITO NACIONAL EN LIQUIDACION"]
["1790567699001","COOPERATIVA DE AHORRO Y CREDITO 29 DE OCTUBRE LTDA."]
["1790571386001","COOPERATIVA DE AHORRO Y CREDITO DE EMPLEADOS, TRABAJADORES, JUBILADOS Y EX-EMPLEADOS DE PETROECUADOR LTDA."]
["1790586863001","COOPERATIVA DE AHORRO Y CREDITO ALIANZA MINAS LTDA."]
["1790641392001","COOPERATIVA DE AHORRO Y CREDITO POLITECNICA LTDA."]
["1790678229001","COOPERATIVA DE AHORRO Y CREDITO CONTADORES DE PICHINCHA LTDA."]
["1790702847001","COOPERATIVA DE AHORRO Y CREDITO EMPLEADOS DE LA SUPERINTENDENCIA DE COMPAÑIAS"]
["1790773434001","COOPERATIVA DE AHORRO Y CREDITO COFEM LTDA."]
["1790820661001","COOPERATIVA DE AHORRO Y CREDITO SAN PEDRO DE TABOADA LTDA. EN LIQUIDACION"]
["1790866084001","COOPERATIVA DE AHORRO Y CREDITO POLICIA NACIONAL LTDA."]
["1790890864001","COOPERATIVA DE AHORRO Y CREDITO PUELLARO LTDA."]
["1790892670001","COOPERATIVA DE AHORRO Y CREDITO PEDRO MONCAYO LTDA"]
["1790894053001","COOPERATIVA DE AHORRO Y CREDITO SAN JUAN DE COTOGCHOA"]
["1790896811001","COOPERATIVA DE AHORRO Y CREDITO SANTA ANA DE NAYON"]
["1790900193001","COOPERATIVA DE AHORRO Y CREDITO CONSTRUCCION COMERCIO Y PRODUCCION LTDA."]
["1790921344001","COOPERATIVA DE AHORRO Y CREDITO DE LOS EMPLEADOS DE IBM DEL ECUADOR \"EN LIQUIDACION\""]
["1790925595001","COOPERATIVA DE AHORRO Y CREDITO GENERAL ANGEL FLORES LTDA"]
["1790948102001","COOPERATIVA DE AHORRO Y CREDITO TEXTILANA"]
["1790976262001","COOPERATIVA DE AHORRO Y CREDITO JUAN DE SALINAS"]
["1790979016001","COOPERATIVA DE AHORRO Y CREDITO DE LOS SERVIDORES PUBLICOS DEL MINISTERIO DE EDUCACION Y CULTURA"]
["1791008308001","COOPERATIVA DE AHORRO Y CREDITO PROFESORES Y EMPLEADOS DEL COLEGIO ALEMAN DE QUITO"]
["1791021029001","COOPERATIVA DE AHORRO Y CREDITO CACPE SANTO DOMINGO"]
["1791032675001","COOPERATIVA DE AHORRO Y CREDITO DEL SECTOR ELECTRICO LTDA."]
["1791074955001","COOPERATIVA DE AHORRO Y CREDITO 29 DE AGOSTO"]
["1791096274001","COOPERATIVA DE AHORRO Y CREDITO SAN JOSE OBRERO EN LIQUIDACION"]
["1791237242001","COOPERATIVA DE AHORRO Y CREDITO VISION MUNDIAL"]
["1791248023001","COOPERATIVA DE AHORRO Y CREDITO AUCA"]
["1791249453001","COOPERATIVA DE AHORRO Y CREDITO CASAG"]
["1791268628001","COOPERATIVA DE AHORRO Y CREDITO TEXTIL 14 DE MARZO"]
["1791274717001","COOPERATIVA DE AHORRO Y CREDITO UNION Y DESARROLLO"]
["1791280156001","COOPERATIVA DE AHORRO Y CREDITO PREVISION AHORRO Y DESARROLLO COOPAD LTDA."]
["1791283384001","COOPERATIVA DE AHORRO Y CREDITO COLEGIO HIPATIA CARDENAS DE BUSTAMANTE \"EN LIQUIDACION\""]
["1791285344001","COOPERATIVA DE AHORRO Y CREDITO QUITO LUZ DE AMERICA"]
["1791285700001","COOPERATIVA DE AHORRO Y CREDITO 18 DE NOVIEMBRE"]
["1791289609001","COOPERATIVA DE AHORRO Y CREDITO DEL DISTRITO METROPOLITANO DE QUITO AMAZONAS"]
["1791289846001","COOPERATIVA DE AHORRO Y CREDITO 23 DE MAYO LTDA."]
["1791292820001","COOPERATIVA DE AHORRO Y CREDITO FUTURO ESFUERZO Y DISCIPLINA"]
["1791304551001","COOPERATIVA DE AHORRO Y CREDITO TEXTIL EQUINOCCIAL"]
["1791306589001","COOPERATIVA DE AHORRO Y CREDITO CORPORACION CENTRO LTDA."]
["1791307623001","COOPERATIVA DE AHORRO Y CREDITO NACIONAL LLANO GRANDE LTDA."]
["1791309405001","COOPERATIVA DE AHORRO Y CREDITO MALCHINGUI LTDA."]
["1791316398001","COOPERATIVA DE AHORRO Y CREDITO FINANCIACION FAMILIAR"]
["1791325540001","COOPERATIVA DE AHORRO Y CREDITO COLEGIO NACIONAL FEMENINO ESPEJO"]
["1791325613001","COOPERATIVA DE AHORRO Y CREDITO PROCLAMA DE AMERICA \"EN LIQUIDACION\""]
["1791345010001","COOPERATIVA DE AHORRO Y CREDITO ILALO LTDA EN LIQUIDACION"]
["1791348648001","COOPERATIVA DE AHORRO Y CREDITO \"EP-PETROECUADOR\" COACPETRO"]
["1791367359001","COOPERATIVA DE AHORRO Y CREDITO SAN MIGUEL DE LOS BANCOS LTDA."]
["1791371593001","COOPERATIVA DE AHORRO Y CREDITO AGA DEL ECUADOR"]
["1791375505001","COOPERATIVA DE AHORRO Y CREDITO LA CAROLINA"]
["1791375874001","COOPERATIVA DE AHORRO Y CREDITO DE LOS EMPLEADOS, JUBILADOS Y EX-EMPLEADOS DEL BANCO CENTRAL DEL ECUADOR"]
["1791378652001","COOPERATIVA DE AHORRO Y CREDITO DE LOS SERVIDORES Y JUBILADOS DEL BANCO DEL ESTADO"]
["1791379470001","COOPERATIVA DE AHORRO Y CREDITO MAQUITA CUSHUNCHIC LTDA."]
["1791379896001","COOPERATIVA DE AHORRO Y CREDITO PRIMERO DE FEBRERO"]
["1791380452001","COOPERATIVA DE AHORRO Y CREDITO COOPCREDITO LTDA"]
["1791381424001","COOPERATIVA DE AHORRO Y CREDITO DOCENTES UNIVERSITARIOS"]
["1791381459001","COOPERATIVA DE AHORRO Y CREDITO ECUADOR AGROPECUARIO"]
["1791382986001","COOPERATIVA DE AHORRO Y CREDITO ESTUDIANTIL LICEO FERNANDEZ MADRID EN LIQUIDACION"]
["1791384210001","COOPERATIVA DE AHORRO Y CREDITO BENITO JUAREZ"]
["1791387074001","COOPERATIVA DE AHORRO Y CREDITO COLEGIO 24 DE MAYO EN LIQUIDACION"]
["1791387945001","COOPERATIVA DE AHORRO Y CREDITO GENERAL RUMIÑAHUI"]
["1791422708001","COOPERATIVA DE AHORRO Y CREDITO UNIDAD Y PROGRESO"]
["1791423275001","COOPERATIVA DE AHORRO Y CREDITO SAN VICENTE DEL SUR LTDA."]
["1791423976001","COOPERATIVA DE AHORRO Y CREDITO AVIACION CIVIL"]
["1791426401001","COOPERATIVA DE AHORRO Y CREDITO ESTUDIANTIL GRAN COLOMBIA EN LIQUIDACION"]
["1791426541001","COOPERATIVA DE AHORRO Y CREDITO SAN BARTOLO LTDA."]
["1791430654001","COOPERATIVA DE AHORRO Y CREDITO DEL INSTITUTO NACIONAL DE METEOROLOGIA E HIDROLOGIA INAMHI"]
["1791430956001","COOPERATIVA DE AHORRO Y CREDITO HERMES GAIBOR VERDOSOTO"]
["1791431367001","COOPERATIVA DE AHORRO Y CREDITO DE LOS TRABAJADORES HOTELEROS CRISTOBAL COLON LTDA"]
["1791707079001","COOPERATIVA DE AHORRO Y CREDITO TRABAJADORES Y JUBILADOS DEL HOSPITAL EUGENIO ESPEJO"]
["1791708040001","CAJA CENTRAL FINANCOOP"]
["1791708288001","COOPERATIVA DE AHORRO Y CREDITO UNIVERSIDAD CATOLICA DEL ECUADOR"]
["1791709330001","COOPERATIVA DE AHORRO Y CREDITO MAR Y TIERRA"]
["1791709780001","COOPERATIVA DE AHORRO Y CREDITO DE LOS FUNCIONARIOS Y EMPLEADOS DE LA FUNCION JUDICIAL DE PICHINCHA"]
["1791717430001","COOPERATIVA DE AHORRO Y CREDITO TARQUI LIMITADA"]
["1791717910001","COOPERATIVA DE AHORRO Y CREDITO METEOROLOGIA DAC LTDA."]
["1791720644001","RED DE INTREGRACION ECUATORIANA DE COOPERATIVAS DE AHORRO Y CREDITO - ICORED"]
["1791726979001","COOPERATIVA DE AHORRO Y CREDITO CREDICOOP 10 DE FEBRERO"]
["1791733169001","COOPERATIVA DE AHORRO Y CREDITO NUEVA VISION"]
["1791746562001","COOPERATIVA DE AHORRO Y CREDITO FONDO DE AHORRO Y CREDITO COOPERATIVO FACC EN LIQUIDACION"]
["1791749200001","COOPERATIVA DE AHORRO Y CREDITO PUERTO LIMON"]
["1791755324001","COOPERATIVA DE AHORRO Y CREDITO UNIÓN FLOREQUISA LTDA"]
["1791776623001","COOPERATIVA DE AHORRO Y CREDITO INIAP LTDA"]
["1791784502001","COOPERATIVA DE AHORRO Y CREDITO LOS LIBERTADORES"]
["1791784979001","COOPERATIVA DE AHORRO Y CREDITO FONDO PARA EL DESARROLLO Y LA VIDA"]
["1791790723001","COOPERATIVA DE AHORRO Y CREDITO COLEGIO DE ARQUITECTOS DEL ECUADOR PROVINCIAL DE PICHINCHA LTDA. CAE P"]
["1791808673001","COOPERATIVA DE AHORRO Y CREDITO LA NUEVA JERUSALEN"]
["1791810899001","COOPERATIVA DE AHORRO Y CREDITO EMPLEADOS BAYER S.A"]
["1791847644001","COOPERATIVA DE AHORRO Y CREDITO  LUZ DEL VALLE"]
["1791849159001","COOPERATIVA DE AHORRO Y CREDITO MI COOPERATIVA PICHINCHA"]
["1791883586001","COOPERATIVA DE AHORRO Y CREDITO MANUELA CAÑIZARES"]
["1791905873001","COOPERATIVA DE AHORRO Y CREDITO DON BOSCO"]
["1791922298001","COOPERATIVA DE AHORRO Y CREDITO DE LA EMPRESA MUNICIPAL DE AGUA POTABLE DE QUITO LTDA."]
["1791927176001","COOPERATIVA DE AHORRO Y CREDITO NUEVA GENERACION EMPLEADOS EMPRESA AGA S.A."]
["1791928083001","COOPERATIVA DE AHORRO Y CREDITO HUAICANA LTDA"]
["1791935233001","COOPERATIVA DE AHORRO Y CREDITO SUBOFICIALES DE LA POLICIA NACIONAL"]
["1791944038001","COOPERATIVA DE AHORRO Y CREDITO CHOCO TUNGURAHUA RUNA LTDA."]
["1791957792001","COOPERATIVA DE AHORRO Y CREDITO ANDRADE SEVILLA LTDA."]
["1791962214001","COOPERATIVA DE AHORRO Y CREDITO TOTALIFE LTDA."]
["1791962648001","COOPERATIVA DE AHORRO Y CREDITO GESTION PARA EL DESARROLLO"]
["1791973186001","COOPERATIVA DE AHORRO Y CREDITO FENIX"]
["1791978455001","COOPERATIVA DE AHORRO Y CREDITO COMUNA EJIDO"]
["1791981006001","COOPERATIVA DE AHORRO Y CREDITO SANTA FE"]
["1792021162001","COOPERATIVA DE AHORRO Y CREDITO CAMARA DE COMERCIO DE SANTO DOMINGO"]
["1792023319001","COOPERATIVA DE AHORRO Y CREDITO TAME"]
["1792024641001","COOPERATIVA DE AHORRO Y CREDITO FUTURO Y DESARROLLO FUNDESARROLLO"]
["1792028043001","COOPERATIVA DE AHORRO Y CREDITO ESPERANZA Y PROGRESO DEL VALLE"]
["1792029945001","COOPERATIVA DE AHORRO Y CREDITO SUMAK YUYAY LTDA."]
["1792032814001","COOPERATIVA DE AHORRO Y CREDITO ANDINAHORRO LTDA EN LIQUIDACION"]
["1792037433001","COOPERATIVA DE AHORRO Y CREDITO UVECOOP LTDA UNION VASCO ECUATORIANA"]
["1792042518001","COOPERATIVA DE AHORRO Y CREDITO ESPERANZA DEL FUTURO LTDA."]
["1792057043001","COOPERATIVA DE AHORRO Y CREDITO PICHINCHA LTDA."]
["1792060559001","COOPERATIVA DE AHORRO Y CREDITO EL MOLINO LIMITADA"]
["1792063051001","COOPERATIVA DE AHORRO Y CREDITO COOPERARE"]
["1792066972001","COOPERATIVA DE AHORRO Y CREDITO CAPITALIZA LTDA. \"EN LIQUIDACION\""]
["1792070813001","COOPERATIVA DE AHORRO Y CREDITO SAN VICENTE DE YARUQUI LTDA."]
["1792072808001","COOPERATIVA DE AHORRO Y CREDITO DE LOS EMPLEADOS DE LA CORPORACION FINANCIERA NACIONAL CORFINAL"]
["1792073251001","COOPERATIVA DE AHORRO Y CREDITO RUMIÑAHUI LIMITADA"]
["1792076773001","COOPERATIVA DE AHORRO Y CREDITO MANANTIAL DE ORO LTDA."]
["1792076927001","COOPERATIVA DE AHORRO Y CREDITO EMPLEADOS Y TRABAJADORES DE LA EMPRESA ENKADOR"]
["1792077354001","COOPERATIVA DE AHORRO Y CREDITO COMUNIDAD EMPRESARIAL PARA EL DESARROLLO SOCIAL CEDES LTDA. EN LIQUIDACION"]
["1792078636001","COOPERATIVA DE AHORRO Y CREDITO 11 DE FEBRERO"]
["1792079276001","COOPERATIVA DE AHORRO Y CREDITO PARA EMPRESAS COMUNITARIAS COOCREDITO LTDA"]
["1792083192001","COOPERATIVA DE AHORRO Y CREDITO SANTO DOMINGO DE LOS COLORADOS"]
["1792088380001","COOPERATIVA DE AHORRO Y CREDITO NUEVA ESPERANZA - PUERTO QUITO"]
["1792096383001","COOPERATIVA DE AHORRO Y CREDITO ALIANZA SOCIAL ECUATORIANA ALSEC LTDA PRODUCCION, SERVICIOS Y CONSTRUCCIONES"]
["1792097207001","COOPERATIVA DE AHORRO Y CREDITO KISHWAR LTDA."]
["1792102146001","COOPERATIVA DE AHORRO Y CREDITO GRUPO COOPERATIVO DE CREDITO MUTUO COOP GROUP C & M LTDA"]
["1792102391001","COOPERATIVA DE AHORRO Y CREDITO LA BRAMADORA"]
["1792103231001","COOPERATIVA DE AHORRO Y CREDITO COOPERARTE LTDA."]
["1792107881001","COOPERATIVA DE AHORRO Y CREDITO EL TRANSPORTISTA CACET"]
["1792108683001","COOPERATIVA DE AHORRO Y CREDITO MILITARES EN SERVICIO PASIVO DE LAS FUERZAS ARMADAS"]
["1792111196001","COOPERATIVA DE AHORRO Y CREDITO COLLAS LTDA"]
["1792113016001","COOPERATIVA DE AHORRO Y CREDITO SAN SEBASTIAN LTDA EN LIQUIDACION"]
["1792114322001","COOPERATIVA DE AHORRO YCOOPERATIVA DE AHORRO Y CREDITO MUSHUK PAKARI LTDA. - PICHINCHA"]
["1792116449001","COOPERATIVA DE AHORRO Y CREDITO 17 DE MARZO LIMITADA"]
["1792116643001","COOPERATIVA DE AHORRO Y CREDITO DE LOS EMPLEADOS Y EX EMPLEADOS DE LA POLICIA METROPOLITANA DEL CANTON QUITO VIRGEN DE GUADALUPE LTDA EN LIQUIDACION"]
["1792128692001","COOPERATIVA DE AHORRO Y CREDITO INTI ÑAN LTDA."]
["1792133092001","COOPERATIVA DE AHORRO Y CREDITO CATOLICA DEL MUELLE LTDA."]
["1792136571001","COOPERATIVA DE AHORRO Y CREDITO PONCE YEPES"]
["1792136687001","COOPERATIVA DE AHORRO Y CREDITO AGROUNIVERSITARIA LTDA."]
["1792139635001","COOPERATIVA DE AHORRO Y CREDITO FORMACION INDIGENA LTDA."]
["1792145260001","COOPERATIVA DE AHORRO Y CREDITO AMERICA LTDA"]
["1792151147001","COOPERATIVA DE AHORRO Y CREDITO DESARROLLO INTEGRAL"]
["1792158974001","COOPERATIVA DE AHORRO Y CREDITO 20 DE FEBRERO LTDA."]
["1792165709001","COOPERATIVA DE AHORRO Y CREDITO MICROEMPRESARIOS EMPRENDEDORES LA MICREEM LTDA. EN LIQUIDACION"]
["1792172195001","COOPERATIVA DE AHORRO Y CREDITO INDIGENA ALFA Y OMEGA LTDA."]
["1792178924001","COOPERATIVA DE AHORRO Y CREDITO NUEVA ESPERANZA LTDA. - QUITO"]
["1792185688001","COOPERATIVA DE AHORRO Y CREDITO SAN JUAN LOMA UNO"]
["1792195381001","COOPERATIVA DE AHORRO Y CREDITO CMB CREDI"]
["1792198879001","COOPERATIVA DE AHORRO Y CREDITO KAWSAY"]
["1792201551001","COOPERATIVA DE AHORRO Y CREDITO ALANGASI LIMITADA"]
["1792204801001","COOPERATIVA DE AHORRO Y CREDITO SULTANA DE LOS ANDES"]
["1792205239001","COOPERATIVA DE AHORRO Y CREDITO ALLI TARPUK LTDA"]
["1792206138001","COOPERATIVA DE AHORRO Y CREDITO 5 DE ENERO DE INTENDENCIA LTDA."]
["1792214920001","RED DE ESTRUCTURAS FINANCIERAS POPULARES Y SOLIDARIAS EQUINOCCIO REDFINPSEQ"]
["1792218578001","COOPERATIVA DE AHORRO Y CREDITO CHIMBORAZO RUNA"]
["1792222788001","COOPERATIVA DE AHORRO Y CREDITO DE LOS TRABAJADORES DE LA CLINICA PASTEUR COOPASTEUR"]
["1792229197001","COOPERATIVA DE AHORRO Y CREDITO COOPREVID"]
["1792230977001","COOPERATIVA DE AHORRO Y CREDITO COOPARTAMOS LTDA."]
["1792235634001","COOPERATIVA DE AHORRO Y CREDITO NUEVO AMBATO"]
["1792235960001","COOPERATIVA DE AHORRO Y CREDITO DE LOS EMPLEADOS DE EDESA LTDA."]
["1792242991001","COOPERATIVA DE AHORRO Y CREDITO MISION DE INTEGRACION SERVICIO SOCIAL LTDA."]
["1792249252001","COOPERATIVA DE AHORRO Y CREDITO NUEVO AMANECER LTDA. - PICHINCHA"]
["1792249406001","COOPERATIVA DE AHORRO Y CREDITO 11 DE MARZO"]
["1792253411001","COOPERATIVA DE AHORRO Y CREDITO PARA LA VIVIENDA ORDEN Y SEGURIDAD"]
["1792253438001","COOPERATIVA DE AHORRO Y CREDITO LOS ATIS EN LIQUIDACION"]
["1792257697001","COOPERATIVA DE AHORRO Y CREDITO DESARROLLO COMUNITARIO COLLANAS"]
["1792261090001","COOPERATIVA DE AHORRO Y CREDITO DE EMPLEADOS Y FUNCIONARIOS DE LA SUPERINTENDENCIA DE TELECOMUNICACIONES 9 DE JULIO LTDA."]
["1792266246001","COOPERATIVA DE AHORRO Y CREDITO COOP. CATAR LTDA."]
["1792272068001","COOPERATIVA DE AHORRO Y CREDITO CREDISUR"]
["1792278503001","COOPERATIVA DE AHORRO Y CREDITO PRO DESARROLLO LTDA."]
["1792283426001","COOPERATIVA DE AHORRO Y CREDITO SOLIDARIDAD UNION Y PROGRESO S.U.P. LTDA."]
["1792284597001","COOPERATIVA DE AHORRO Y CREDITO VENCEDORES DE PICHINCHA LTDA CACVP"]
["1792291518001","COOPERATIVA DE AHORRO Y CREDITO LA CANDELARIA LTDA"]
["1792300657001","COOPERATIVA DE AHORRO Y CREDITO EMPRENDEDORES \"COOPEMPRENDER\" LIMITADA"]
["1792305209001","COOPERATIVA DE AHORRO Y CREDITO COFIPAB"]
["1792311071001","COOPERATIVA DE AHORRO Y CREDITO SAN VALENTIN"]
["1792311667001","COOPERATIVA DE AHORRO Y CREDITO CENTRO COMERCIAL DE MAYORISTAS Y NEGOCIOS ANDINOS LTDA"]
["1792314186001","COOPERATIVA DE AHORRO Y CREDITO AYLLUS ANDINOS LTDA."]
["1792318890001","UNION DE COOPERATIVAS DE AHORRO Y CREDITO DE PICHI"]
["1792323703001","COOPERATIVA DE AHORRO Y CREDITO DE ACCION POPULAR"]
["1792332842001","COOPERATIVA DE AHORRO Y CREDITO CORDILLERA DE LOS ANDES LTDA."]
["1792339146001","COOPERATIVA DE AHORRO Y CREDITO SISA ÑAN"]
["1792348560001","COOPERATIVA DE AHORRO Y CREDITO INTEGRACION Y DESARROLLO Y FUTURO INDESFUT"]
["1792352223001","COOPERATIVA DE AHORRO Y CREDITO COLINAS DEL NORTE"]
["1792352770001","COOPERATIVA DE AHORRO Y CREDITO JATUN PAMBA LTDA."]
["1792353521001","COOPERATIVA DE AHORRO Y CREDITO ACCION INDIGENA"]
["1792356520001","COOPERATIVA DE AHORRO Y CREDITO EURO CENTRO"]
["1792361974001","COOPERATIVA DE AHORRO Y CREDITO WAYUNKA"]
["1792382858001","COOPERATIVA DE AHORRO Y CREDITO PARA EL PROGRESO MICROEMPRESARIAL COOPROMIC LTDA."]
["1792387825001","COOPERATIVA DE AHORRO Y CREDITO TAMBILLO"]
["1792397014001","COOPERATIVA DE AHORRO Y CREDITO PADRE FRANCISCO RAMOS PICON LTDA."]
["1792427118001","COOPERATIVA DE AHORRO Y CREDITO AMAUTA KURIKAMAK"]
["1792427886001","COOPERATIVA DE AHORRO Y CREDITO RENOVADORA ECUATORIANA CON ACCION RESPONSABLE"]
["1890001323001","COOPERATIVA DE AHORRO Y CREDITO OSCUS LTDA"]
["1890003024001","COOPERATIVA DE AHORRO Y CREDITO LA MERCED LTDA. - AMBATO"]
["1890003628001","COOPERATIVA DE AHORRO Y CREDITO SAN FRANCISCO LTDA"]
["1890037646001","COOPERATIVA DE AHORRO Y CREDITO EL SAGRARIO LTDA"]
["1890049369001","COOPERATIVA DE AHORRO Y CREDITO EDUCADORES DE TUNGURAHUA LTDA"]
["1890063639001","COOPERATIVA DE AHORRO Y CREDITO UNION POPULAR LTDA."]
["1890074037001","COOPERATIVA DE AHORRO Y CREDITO UNIVERSITARIA LTDA."]
["1890080967001","COOPERATIVA DE AHORRO Y CREDITO CAMARA DE COMERCIO DE AMBATO LTDA."]
["1890097533001","COOPERATIVA DE AHORRO Y CREDITO UNIVERSIDAD TECNICA DE AMBATO LTDA."]
["1890124077001","COOPERATIVA DE AHORRO Y CREDITO CACPET TUNGURAHUA \"EN LIQUIDACION\""]
["1890141877001","COOPERATIVA DE AHORRO Y CREDITO MUSHUC RUNA LTDA"]
["1890142679001","COOPERATIVA DE AHORRO Y CREDITO INDIGENA SAC LTDA."]
["1890142733001","COOPERATIVA DE AHORRO Y CREDITO GELEC LTDA."]
["1891700136001","COOPERATIVA DE AHORRO Y CREDITO DE LA CORPORACION DE ORGANIZACIONES CAMPESINAS INDIGENAS DE QUISAPINCHA COCIQ"]
["1891700454001","COOPERATIVA DE AHORRO Y CREDITO EDUCADORES SECUNDARIOS DEL TUNGURAHUA LTDA."]
["1891702805001","COOPERATIVA DE AHORRO Y CREDITO SALATE LTDA."]
["1891706150001","COOPERATIVA DE AHORRO Y CREDITO MUSHUC ÑAN LTDA."]
["1891706347001","COOPERATIVA DE AHORRO Y CREDITO 1 DE JULIO"]
["1891706851001","COOPERATIVA DE AHORRO Y CREDITO INTERCULTURAL TAWANTINSUYU LTDA."]
["1891706932001","UNION DE COOPERATIVAS DE AHORRO Y CREDITO DEL MAGISTERIO ECUATORIANO – UCACME"]
["1891707297001","COOPERATIVA DE AHORRO Y CREDITO NUEVA ESPERANZA Y DESARROLLO \"EN LIQUIDACION\""]
["1891707610001","COOPERATIVA DE AHORRO Y CREDITO SURANGAY LTDA"]
["1891707769001","COOPERATIVA DE AHORRO Y CREDITO KURIÑAN"]
["1891707971001","COOPERATIVA DE AHORRO Y CREDITO NUEVO AMANECER LTDA. - TUNGURAHUA"]
["1891708013001","COOPERATIVA DE AHORRO Y CREDITO 15 DE DICIEMBRE LINDERO LTDA"]
["1891708358001","COOPERATIVA DE AHORRO Y CREDITO MAQUITA CUSHUN LTDA"]
["1891708684001","COOPERATIVA DE AHORRO Y CREDITO RUNAPAK RIKCHARI LTDA."]
["1891709281001","COOPERATIVA DE AHORRO Y CREDITO ESFUERZO UNIDO PARA EL DESARROLLO DEL CHILCO LA ESPERANZA LTDA."]
["1891709591001","COOPERATIVA DE AHORRO Y CREDITO AMBATO LTDA."]
["1891709761001","COOPERATIVA DE AHORRO Y CREDITO EL CALVARIO LTDA."]
["1891710050001","COOPERATIVA DE AHORRO Y CREDITO 15 DE MAYO LTDA"]
["1891710255001","COOPERATIVA DE AHORRO Y CREDITO KULLKI WASI LTDA."]
["1891710328001","COOPERATIVA DE AHORRO Y CREDITO CHIBULEO LTDA."]
["1891710581001","COOPERATIVA DE AHORRO Y CREDITO VENCEDORES DE TUNGURAHUA LTDA."]
["1891710697001","COOPERATIVA DE AHORRO Y CREDITO FORTALEZA INDIGENA LTDA EN LIQUIDACION"]
["1891710859001","COOPERATIVA DE AHORRO Y CREDITO REY DAVID LTDA."]
["1891711278001","COOPERATIVA DE AHORRO Y CREDITO SAN ALFONSO LTDA"]
["1891711359001","COOPERATIVA DE AHORRO Y CREDITO SAN PABLO LTDA."]
["1891711448001","COOPERATIVA DE AHORRO Y CREDITO CARROCEROS DE TUNGURAHUA"]
["1891712134001","COOPERATIVA DE AHORRO Y CREDITO SAINT MICHEL LTDA."]
["1891713467001","COOPERATIVA DE AHORRO Y CREDITO LLANGANATES"]
["1891713750001","COOPERATIVA DE AHORRO Y CREDITO CREDIAMBATO LTDA"]
["1891714269001","COOPERATIVA DE AHORRO Y CREDITO EL BUEN SAMARITANO \"EN LIQUIDACION\""]
["1891714374001","COOPERATIVA DE AHORRO Y CREDITO 10 DE AGOSTO LTDA"]
["1891714633001","COOPERATIVA DE AHORRO Y CREDITO LA FLORESTA LTDA"]
["1891715486001","COOPERATIVA DE AHORRO Y CREDITO 15 DE JUNIO LTDA."]
["1891715699001","COOPERATIVA DE AHORRO Y CREDITO CHASKI LTDA"]
["1891715877001","COOPERATIVA DE AHORRO Y CREDITO YACHAK RUNA LTDA EN LIQUIDACION"]
["1891716059001","COOPERATIVA DE AHORRO Y CREDITO EL TESORO PILLAREÑO"]
["1891716350001","COOPERATIVA DE AHORRO Y CREDITO SAN ANTONIO LTDA. - TUNGURAHUA "]
["1891716385001","COOPERATIVA DE AHORRO Y CREDITO SAN MARTIN DE TISALEO LTDA"]
["1891716466001","COOPERATIVA DE AHORRO Y CREDITO SAN MIGUEL DE ANGAHUANA ALTO"]
["1891716679001","COOPERATIVA DE AHORRO Y CREDITO WUIÑARISHUN CRECEREMOS"]
["1891717004001","COOPERATIVA DE AHORRO Y CREDITO INKA KIPU"]
["1891717136001","COOPERATIVA DE AHORRO Y CREDITO PRODEPA LTDA"]
["1891717217001","COOPERATIVA DE AHORRO Y CREDITO MUSHUG CAUSAY LTDA"]
["1891717896001","COOPERATIVA DE AHORRO Y CREDITO SALASACA"]
["1891718388001","COOPERATIVA DE AHORRO Y CREDITO INTERCULTURAL TARPUK RUNA LTDA."]
["1891718612001","COOPERATIVA DE AHORRO Y CREDITO MULTICULTURAL INDIGENA LTDA."]
["1891719023001","COOPERATIVA DE AHORRO Y CREDITO SUMAK RUNA LTDA"]
["1891719430001","COOPERATIVA DE AHORRO Y CREDITO TUNGURAHUA LTDA. \"EN LIQUIDACION\""]
["1891720587001","COOPERATIVA DE AHORRO Y CREDITO COORAMBATO LTDA."]
["1891720595001","COOPERATIVA DE AHORRO Y CREDITO SUMAK ÑAN LTDA"]
["1891720889001","COOPERATIVA DE AHORRO Y CREDITO STEPHEN HAWKING LTDA EN LIQUIDACION"]
["1891720978001","COOPERATIVA DE AHORRO Y CREDITO CAMPESINA COOPAC"]
["1891721362001","COOPERATIVA DE AHORRO Y CREDITO DE LOS ANDES LTDA."]
["1891721389001","COOPERATIVA DE AHORRO Y CREDITO INDIGENA DEL ECUADOR - TUNGURAHUA"]
["1891721451001","COOPERATIVA DE AHORRO Y CREDITO NUEVA SELECCION LTDA. \"EN LIQUIDACION\""]
["1891721591001","COOPERATIVA DE AHORRO Y CREDITO KISAPINCHA LTDA."]
["1891721710001","COOPERATIVA DE AHORRO Y CREDITO LLANKAK RUNA LTDA."]
["1891721761001","COOPERATIVA DE AHORRO Y CREDITO JATUN RUNA LTDA"]
["1891721796001","COOPERATIVA DE AHORRO Y CREDITO ACCION TUNGURAHUA LTDA."]
["1891721877001","COOPERATIVA DE AHORRO Y CREDITO MUJERES LIDERES LTDA"]
["1891722296001","COOPERATIVA DE AHORRO Y CRÉDITO SERVIDORES MUNICIPALES DE AMBATO LTDA"]
["1891722520001","COOPERATIVA DE AHORRO Y CREDITO UNION SOCIEDAD Y DESARROLLO DE LA PARROQUIA DE PILAHUIN \"EN LIQUIDACION\""]
["1891723241001","COOPERATIVA DE AHORRO Y CREDITO PAKARYMUY - AMANECIENDO"]
["1891723306001","COOPERATIVA DE AHORRO Y CREDITO 21 DE NOVIEMBRE LTDA."]
["1891723713001","COOPERATIVA DE AHORRO Y CREDITO UNIÓN QUISAPINCHA LTDA."]
["1891724124001","COOPERATIVA DE AHORRO Y CREDITO TRES ESQUINAS \"EN LIQUIDACION\""]
["1891724167001","COOPERATIVA DE AHORRO Y CREDITO CORPOTRANST"]
["1891724299001","COOPERATIVA DE AHORRO Y CREDITO 15 DE AGOSTO LTDA."]
["1891724558001","COOPERATIVA DE AHORRO Y CREDITO KURY WAYTA LTDA."]
["1891724787001","COOPERATIVA DE AHORRO Y CREDITO CREDI FACIL LTDA."]
["1891724892001","COOPERATIVA DE AHORRO Y CREDITO YUYAK RUNA LTDA. EN LIQUIDACION"]
["1891724914001","COOPERATIVA DE AHORRO Y CREDITO VALLES DEL LIRIO AICEP"]
["1891724949001","COOPERATIVA DE AHORRO Y CREDITO NUEVA FUERZA ALIANZA LTDA"]
["1891724973001","COOPERATIVA DE AHORRO Y CREDITO AMERIKA LTDA"]
["1891725104001","COOPERATIVA DE AHORRO Y CREDITO JUVENTUD UNIDA LTDA."]
["1891725473001","COOPERATIVA DE AHORRO Y CREDITO SAN BARTOLOME LTDA."]
["1891725732001","COOPERATIVA DE AHORRO Y CREDITO NUEVA ALIANZA AMBATILLO LTDA."]
["1891725791001","COOPERATIVA DE AHORRO Y CREDITO SEMBRANDO UN NUEVO PAIS"]
["1891725864001","COOPERATIVA DE AHORRO Y CREDITO JUAN BENIGNO VELA LTDA."]
["1891725910001","COOPERATIVA DE AHORRO Y CREDITO SUMAK SAMY LTDA."]
["1891725953001","COOPERATIVA DE AHORRO Y CREDITO SAN FERNANDO LTDA. - AMBATO"]
["1891726054001","COOPERATIVA DE AHORRO Y CREDITO VISION INDIGENA EN LIQUIDACION"]
["1891726070001","COOPERATIVA DE AHORRO Y CREDITO SANTA LUCIA LTDA."]
["1891726275001","COOPERATIVA DE AHORRO Y CREDITO CREDIFINSA LTDA."]
["1891726348001","COOPERATIVA DE AHORRO Y CREDITO GUANUJO LTDA. \"EN LIQUIDACION\""]
["1891726496001","COOPERATIVA DE AHORRO Y CREDITO MI TIERRA"]
["1891726682001","COOPERATIVA DE AHORRO Y CREDITO CREDIPICHINCHA LTDA EN LIQUIDACION"]
["1891726712001","COOPERATIVA DE AHORRO Y CREDITO CRECER WIÑARI"]
["1891726763001","COOPERATIVA DE AHORRO Y CREDITO INDIGENA SAC PILLARO LTDA."]
["1891726798001","COOPERATIVA DE AHORRO Y CREDITO INDIGENA SAC PELILEO LTDA."]
["1891726828001","COOPERATIVA DE AHORRO Y CREDITO INDIGENA SAC LATACUNGA LTDA"]
["1891727190001","COOPERATIVA DE AHORRO Y CREDITO MULTISERVICIOS"]
["1891727271001","COOPERATIVA DE AHORRO Y CREDITO SANTA ROSA - TUNGURAHUA LTDA."]
["1891727565001","COOPERATIVA DE AHORRO Y CREDITO WARMIKUNAPAK RIKCHARI LTDA."]
["1891727654001","COOPERATIVA DE AHORRO Y CREDITO SUMAK INTI LTDA. \"EN LIQUIDACION\""]
["1891728227001","COOPERATIVA DE AHORRO Y CREDITO SAQUISILI LTDA."]
["1891728340001","COOPERATIVA DE AHORRO Y CREDITO EL ESFUERZO LTDA"]
["1891728855001","COOPERATIVA DE AHORRO Y CREDITO TAMBOLOMA LTDA."]
["1891728928001","COOPERATIVA DE AHORRO Y CREDITO CREDI PRONT LTDA"]
["1891729193001","COOPERATIVA DE AHORRO Y CREDITO CORAZON DE JESUS LTDA"]
["1891730388001","COOPERATIVA DE AHORRO Y CREDITO MIRACHINA"]
["1891732429001","COOPERATIVA DE AHORRO Y CREDITO FOMENTO PARA LA PRODUCCION DE PEQUEÑAS Y MEDIANAS EMPRESAS"]
["1891733093001","COOPERATIVA DE AHORRO Y CREDITO WUAMANLOMA LTDA."]
["1891733174001","COOPERATIVA DE AHORRO Y CREDITO DE LA PRODUCCION LTDA."]
["1891733719001","COOPERATIVA DE AHORRO Y CREDITO DORADO LTDA"]
["1891733883001","COOPERATIVA DE AHORRO Y CREDITO DEL SISTEMA DE RIEGO AMBATO HUACHI PELILEO LTDA"]
["1891734545001","COOPERATIVA DE AHORRO Y CREDITO CREDI - LATINA"]
["1891734561001","COOPERATIVA DE AHORRO Y CREDITO SAN FRANCISCO DE CHIBULEO"]
["1891734650001","COOPERATIVA DE AHORRO Y CREDITO MIGRANTES DEL ECUADOR LTDA"]
["1891734677001","COOPERATIVA DE AHORRO Y CREDITO LUZ DE AMERICA LTDA"]
["1891734774001","COOPERATIVA DE AHORRO Y CREDITO ISLAS ENCANTADAS"]
["1891735002001","COOPERATIVA DE AHORRO Y CREDITO CREDIL LTDA."]
["1891735037001","COOPERATIVA DE AHORRO Y CREDITO DESARROLLO POPULAR LTDA."]
["1891735053001","COOPERATIVA DE AHORRO Y CREDITO REY DE LOS ANDES LTDA. \"EN LIQUIDACION\""]
["1891735207001","COOPERATIVA DE AHORRO Y CREDITO KURI WASI LTDA \"EN LIQUIDACION\""]
["1891735622001","COOPERATIVA DE AHORRO Y CREDITO ECUADOR SOLIDARIO LTDA."]
["1891735665001","COOPERATIVA DE AHORRO Y CREDITO SANTA ROSA DE AMBATO"]
["1891735932001","COOPERATIVA DE AHORRO Y CREDITO JATUN TANDANAKUI"]
["1891736335001","COOPERATIVA DE AHORRO Y CREDITO  EMPRENDA"]
["1891736785001","COOPERATIVA DE AHORRO Y CREDITO LA LIBERTAD 3"]
["1891736882001","COOPERATIVA DE AHORRO Y CREDITO ECUAFUTURO LTDA"]
["1891736947001","COOPERATIVA DE AHORRO Y CREDITO DESARROLLO ESCOLAR COMUNITARIO LTDA"]
["1891737307001","COOPERATIVA DE AHORRO Y CREDITO VS  VIDA SEGURA"]
["1891737439001","COOPERATIVA DE AHORRO Y CREDITO PUSHAK RUNA (HOMBRE LIDER)"]
["1891737501001","COOPERATIVA DE AHORRO Y CREDITO CODESE - ECUADOR"]
["1891737552001","COOPERATIVA DE AHORRO Y CREDITO FINANCREDIT LTDA."]
["1891737587001","COOPERATIVA DE AHORRO Y CREDITO YUYARIK"]
["1891737633001","COOPERATIVA DE AHORRO Y CREDITO SAN PEDRO DE PELILEO LTDA. \"EN LIQUIDACION\""]
["1891737668001","COOPERATIVA DE AHORRO Y CREDITO PISA LTDA."]
["1891737854001","COOPERATIVA DE AHORRO Y CREDITO TRINIDAD LTDA."]
["1891737927001","COOPERATIVA DE AHORRO Y CREDITO COTALO"]
["1891738206001","COOPERATIVA DE AHORRO Y CREDITO VALLE DEL SOL"]
["1891738567001","COOPERATIVA DE AHORRO Y CREDITO PRODUFINSA"]
["1891738850001","COOPERATIVA DE AHORRO Y CREDITO ALIANZA Y PROGRESO LTDA"]
["1891739113001","COOPERATIVA DE AHORRO Y CREDITO PRODUCCION AHORRO INVERSION SERVICIO LTDA."]
["1891739180001","COOPERATIVA DE AHORRO Y CREDITO PRESTAMOS DEL SUR LTDA"]
["1891739210001","COOPERATIVA DE AHORRO Y CREDITO MUSHUK PAKARIK LTDA \"EN LIQUIDACION\""]
["1891741959001","COOPERATIVA DE AHORRO Y CREDITO SUMAK YARI LTDA. \"EN LIQUIDACION\""]
["1891742106001","COOPERATIVA DE AHORRO Y CREDITO NATIVA LTDA."]
["1891742254001","UNION DE COOPERATIVAS DE AHORRO Y CREDITO INTERPROVINCIAL DEL ECUADOR LTDA"]
["1891742297001","COOPERATIVA DE AHORRO Y CREDITO INDIGENAS UNIDOS LTDA"]
["1891742319001","COOPERATIVA DE AHORRO Y CREDITO RHUMY WARA"]
["1891742548001","COOPERATIVA DE AHORRO Y CREDITO ALLI KAWSAY"]
["1891742637001","COOPERATIVA DE AHORRO Y CREDITO CREDI OPCION"]
["1891742904001","COOPERATIVA DE AHORRO Y CREDITO ANGAHUANA"]
["1891743005001","COOPERATIVA DE AHORRO Y CREDITO CREDI YA LTDA"]
["1891743323001","COOPERATIVA DE AHORRO Y CREDITO BAÑOS DE AGUA SANTA LTDA"]
["1891743536001","COOPERATIVA DE AHORRO Y CREDITO ALIANZA INDIGENA"]
["1891743838001","COOPERATIVA DE AHORRO Y CREDITO PRODUACTIVA LTDA."]
["1891744214001","COOPERATIVA DE AHORRO Y CREDITO SUMAK SISA"]
["1891744338001","COOPERATIVA DE AHORRO Y CREDITO TECNOCREDITO"]
["1891744443001","COOPERATIVA DE AHORRO Y CREDITO PRODVISION"]
["1891744591001","COOPERATIVA DE AHORRO Y CREDITO UNION FAMILIAR"]
["1891745040001","COOPERATIVA DE AHORRO Y CREDITO CONTINENTAL"]
["1891745075001","COOPERATIVA DE AHORRO Y CREDITO PRESTO"]
["1891745490001","COOPERATIVA DE AHORRO Y CREDITO UNICUENCA EN LIQUIDACION"]
["1891745539001","COOPERATIVA DE AHORRO Y CREDITO PICAIHUA"]
["1891745555001","COOPERATIVA DE AHORRO Y CREDITO CREDINSA"]
["1891745571001","COOPERATIVA DE AHORRO Y CREDITO INTERANDINA"]
["1891745687001","COOPERATIVA DE AHORRO Y CREDITO CREDIMAS"]
["1891745970001","COOPERATIVA DE AHORRO Y CREDITO FINANDER"]
["1891746020001","COOPERATIVA DE AHORRO Y CREDITO KICHWAS"]
["1891746691001","COOPERATIVA DE AHORRO Y CREDITO CORDESFIN"]
["1891746756001","COOPERATIVA DE AHORRO Y CREDITO AYNI- SUIZA"]
["1891747183001","COOPERATIVA DE AHORRO Y CREDITO EMPRENDEDORES INDIGENAS DE TUNGURAHUA - COACPRINTU"]
["1891747930001","COOPERATIVA DE AHORRO Y CREDITO CREDIPAC"]
["1891747981001","COOPERATIVA DE AHORRO Y CREDITO PUEBLOS ANDINOS"]
["1891748287001","COOPERATIVA DE AHORRO Y CREDITO NUEVOS EMPRENDEDORES"]
["1891748449001","COOPERATIVA DE AHORRO Y CREDITO NUEVA FUERZA ALIANZA DE TUNGURAHUA"]
["1891749135001","COOPERATIVA DE AHORRO Y CREDITO JUVENTUD LUCHADORA"]
["1891749186001","COOPERATIVA DE AHORRO Y CREDITO JUVENTUD SOLIDARIA"]
["1891749429001","COOPERATIVA DE AHORRO Y CREDITO NUEVOS LUCHADORES"]
["1891749690001","COOPERATIVA DE AHORRO Y CREDITO CREDI AGIL"]
["1990007019001","COOPERATIVA DE AHORRO Y CREDITO DE LA PEQUENA EMPRESA CACPE YANTZAZA LTDA"]
["1990007027001","COOPERATIVA DE AHORRO Y CREDITO DE LA PEQUENA EMPRESA CACPE ZAMORA LTDA"]
["1990007124001","COOPERATIVA DE AHORRO Y CREDITO CIUDAD DE ZAMORA"]
["1990010028001","COOPERATIVA DE AHORRO Y CREDITO EDUCADORES DE ZAMORA CHINCHIPE LTDA."]
["1990903073001","COOPERATIVA DE AHORRO Y CREDITO SOLIDARIA LTDA. - GUALAQUIZA"]
["1990909705001","COOPERATIVA DE AHORRO Y CREDITO SAN LUIS \"EN LIQUIDACION\""]
["1990910053001","COOPERATIVA DE AHORRO Y CREDITO DE APECAP CAC-APECAP LTDA"]
["1990910169001","COOPERATIVA DE AHORRO Y CREDITO KAWSAY NAN"]
["1990910312001","COOPERATIVA DE AHORRO Y CREDITO DE LA CAMARA DE COMERCIO DEL CANTON YANTZAZA"]
["1990911297001","COOPERATIVA DE AHORRO Y CREDITO INTERCULTURAL CENTINELA DEL CONDOR"]
["2091756342001","COOPERATIVA DE AHORRO Y CREDITO GALAPAGOS LTDA"]
["2091756601001","COOPERATIVA DE AHORRO Y CREDITO FUTURO Y PROGRESO DE GALAPAGOS"]
["2091756679001","COOPERATIVA DE AHORRO Y CREDITO INDIGENAS GALAPAGOS LTDA"]
["2191700271001","COOPERATIVA DE AHORRO Y CREDITO NUEVA LOJA LTDA."]
["2191701227001","COOPERATIVA DE AHORRO Y CREDITO FOCLA LTDA."]
["2191708116001","COOPERATIVA DE AHORRO Y CREDITO GRAMEEN AMAZONAS LTDA."]
["2191709716001","COOPERATIVA DE AHORRO Y CREDITO FOCASH LTDA."]
["2191710072001","COOPERATIVA DE AHORRO Y CREDITO FOCAP"]
["2191711176001","COOPERATIVA DE AHORRO Y CREDITO LA BONITA"]
["2290313166001","COOPERATIVA DE AHORRO Y CREDITO MUSHUK KAWSAY LTDA.-ORELLANA"]
["2290314103001","COOPERATIVA DE AHORRO Y CREDITO PUERTO FRANCISCO DE ORELLANA"]
["2290316440001","COOPERATIVA DE AHORRO Y CREDITO CRECIENDO JUNTOS LTDA."]
["2290316947001","COOPERATIVA DE AHORRO Y CREDITO CAMARA DE COMERCIO JOYA DE LOS SACHAS LTDA"]
["2390000262001","COOPERATIVA DE AHORRO Y CREDITO CREDISOCIO"]
["2390002230001","COOPERATIVA DE AHORRO Y CREDITO SANTA MARIA DE LA MANGA DEL CURA LTDA"]
["2390006554001","COOPERATIVA DE AHORRO Y CREDITO KASAMA LTDA."]
["2490000111001","COOPERATIVA DE AHORRO Y CREDITO LA LIBERTAD LTDA"]
["2490002092001","COOPERATIVA DE AHORRO Y CREDITO VISION INTEGRAL"]
["2490003315001","COOPERATIVA DE AHORRO Y CREDITO COSTA AZUL LTDA"]
["2490005210001","COOPERATIVA DE AHORRO Y CREDITO SANTA ELENA"]